{"text_format":"1","workbook":"xlsx","n_sheets":3,"sheets":["実行","分析","②ANALYTICSマニュアル"],"not_rendered":{"charts":0,"images":7,"macros":1,"external_links":0,"defined_names":0,"comments":0,"pivot_tables":0},"unopened":[],"bounds":{"document_bytes":16777216,"sheet_cells":100000,"rows_first":2000,"rows_last":500,"rows_between":2000,"halvings":0,"cell_chars":16384,"cell_head_chars":4096},"cells_cut":0,"cells_raw":0,"read":"whole","date_system":"1900"}

{"sheet":"実行","index":0,"n_rows":33,"n_cols":4,"rows_kept":33,"cut":false,"hidden":false,"merged":[]}
[]
[null,"プログラム実行手順"]
[]
[null,"①マクロを有効化してください。"]
[]
[]
[]
[null,"②自サイトのURLを入力してください。"]
[]
[null,"サイトurl→入力","https://〇〇〇.com/"]
[null,"domain",{"$f":"MID(C10,FIND(\"//\",C10,1)+2,LEN(C10)-FIND(\"//\",C10,1)-2)","v":"〇〇〇.com"},"←プログラム用変更しないでください。"]
[null,"検索用に変更",{"$f":"\"https://search.google.com/search-console/performance/search-analytics?resource_id=sc-domain%3A\"&C11&\"&num_of_days=28&metrics=CLICKS%2CIMPRESSIONS%2CCTR%2CPOSITION&page=*\"","v":"https://search.google.com/search-console/performance/search-analytics?resource_id=sc-domain%3A〇〇〇.com&num_of_days=28&metrics=CLICKS%2CIMPRESSIONS%2CCTR%2CPOSITION&page=*"},"←プログラム用変更しないでください。"]
[]
[]
[null,"②ANALYTICSマニュアルを参考に、アナリティクスより、データをダウンロードしてください。"]
[]
[null,"③下記実行ボタンを押して、②でダウンロードしたアナリティクスのファイルを選択してください。"]
[]
[]
[]
[]
[]
[]
[]
[null,"③下記実行ボタンを押して、②でダウンロードしたアナリティクスのファイルを選択してください。"]
[]
[]
[]
[]
[null,null,null," "]
[]
[null,"※WEBサイトの読み込みに時間がかかる可能性があります。"]
[null,"　途中で終了したい場合は「ESC」キーを押してください。"]

{"sheet":"分析","index":1,"n_rows":1034,"n_cols":553,"rows_kept":1034,"cut":false,"hidden":false,"merged":[]}
[null,null,null,{"$f":"COLUMN()-3","v":1},{"$f":"COLUMN()-3","v":2},3,4,5,6,7,8,9,10,11,12,13,14,15,16,17,18,19,20,21,22,23,24,25,26,27,28,29,30,31,32,33,34,35,36,37,38,39,40,41,42,43,44,45,46,47,48,49,50,51,52,53,54,55,56,57,58,59,60,61,62,63,64,65,{"$f":"COLUMN()-3","v":66},67,68,69,70,71,72,73,74,75,76,77,78,79,80,81,82,83,84,85,86,87,88,89,90,91,92,93,94,95,96,97,98,99,100,101,102,103,104,105,106,107,108,109,110,111,112,113,114,115,116,117,118,119,120,121,122,123,124,125,126,127,128,129,{"$f":"COLUMN()-3","v":130},131,132,133,134,135,136,137,138,139,140,141,142,143,144,145,146,147,148,149,150,151,152,153,154,155,156,157,158,159,160,161,162,163,164,165,166,167,168,169,170,171,172,173,174,175,176,177,178,179,180,181,182,183,184,185,186,187,188,189,190,191,192,193,{"$f":"COLUMN()-3","v":194},195,196,197,198,199,200,201,202,203,204,205,206,207,208,209,210,211,212,213,214,215,216,217,218,219,220,221,222,223,224,225,226,227,228,229,230,231,232,233,234,235,236,237,238,239,240,241,242,243,244,245,246,247,248,249,250,251,252,253,254,255,256,257,{"$f":"COLUMN()-3","v":258},259,260,261,262,263,264,265,266,267,268,269,270,271,272,273,274,275,276,277,278,279,280,281,282,283,284,285,286,287,288,289,290,291,292,293,294,295,296,297,298,299,300,301,302,303,304,305,306,307,308,309,310,311,312,313,314,315,316,317,318,319,320,321,{"$f":"COLUMN()-3","v":322},323,324,325,326,327,328,329,330,331,332,333,334,335,336,337,338,339,340,341,342,343,344,345,346,347,348,349,350,351,352,353,354,355,356,357,358,359,360,361,362,363,364,365,366,367,368,369,370,371,372,373,374,375,376,377,378,379,380,381,382,383,384,385,{"$f":"COLUMN()-3","v":386},387,388,389,390,391,392,393,394,395,396,397,398,399,400,401,402,403,404,405,406,407,408,409,410,411,412,413,414,415,416,417,418,419,420,421,422,423,424,425,426,427,428,429,430,431,432,433,434,435,436,437,438,439,440,441,442,443,444,445,446,447,448,449,{"$f":"COLUMN()-3","v":450},451,452,453,454,455,456,457,458,459,460,461,462,463,464,465,466,467,468,469,470,471,472,473,474,475,476,477,478,479,480,481,482,483,484,485,486,487,488,489,490,491,492,493,494,495,496,497,498,499,500,501,502,503,504,505,506,507,508,509,510,511,512,513,{"$f":"COLUMN()-3","v":514},515,516,517,518,519,520,521,522,523,524,525,526,527,528,529,530,531,532,533,534,535,536,537,538,539,540,541,542,543,544,545,546,547,548,549,550]
[null,"検索プログラム"]
[]
[null,null,null,{"$f":"実行!$C$12&分析!D6","v":"https://search.google.com/search-console/performance/search-analytics?resource_id=sc-domain%3A〇〇〇.com&num_of_days=28&metrics=CLICKS%2CIMPRESSIONS%2CCTR%2CPOSITION&page=*"},{"$f":"実行!$C$12&分析!E6","v":"https://search.google.com/search-console/performance/search-analytics?resource_id=sc-domain%3A〇〇〇.com&num_of_days=28&metrics=CLICKS%2CIMPRESSIONS%2CCTR%2CPOSITION&page=*"},{"$f":"実行!$C$12&分析!F6","v":"https://search.google.com/search-console/performance/search-analytics?resource_id=sc-domain%3A〇〇〇.com&num_of_days=28&metrics=CLICKS%2CIMPRESSIONS%2CCTR%2CPOSITION&page=*"},{"$f":"実行!$C$12&分析!G6","v":"https://search.google.com/search-console/performance/search-analytics?resource_id=sc-domain%3A〇〇〇.com&num_of_days=28&metrics=CLICKS%2CIMPRESSIONS%2CCTR%2CPOSITION&page=*"},{"$f":"実行!$C$12&分析!H6","v":"https://search.google.com/search-console/performance/search-analytics?resource_id=sc-domain%3A〇〇〇.com&num_of_days=28&metrics=CLICKS%2CIMPRESSIONS%2CCTR%2CPOSITION&page=*"},{"$f":"実行!$C$12&分析!I6","v":"https://search.google.com/search-console/performance/search-analytics?resource_id=sc-domain%3A〇〇〇.com&num_of_days=28&metrics=CLICKS%2CIMPRESSIONS%2CCTR%2CPOSITION&page=*"},{"$f":"実行!$C$12&分析!J6","v":"https://search.google.com/search-console/performance/search-analytics?resource_id=sc-domain%3A〇〇〇.com&num_of_days=28&metrics=CLICKS%2CIMPRESSIONS%2CCTR%2CPOSITION&page=*"},{"$f":"実行!$C$12&分析!K6","v":"https://search.google.com/search-console/performance/search-analytics?resource_id=sc-domain%3A〇〇〇.com&num_of_days=28&metrics=CLICKS%2CIMPRESSIONS%2CCTR%2CPOSITION&page=*"},{"$f":"実行!$C$12&分析!L6","v":"https://search.google.com/search-console/performance/search-analytics?resource_id=sc-domain%3A〇〇〇.com&num_of_days=28&metrics=CLICKS%2CIMPRESSIONS%2CCTR%2CPOSITION&page=*"},{"$f":"実行!$C$12&分析!M6","v":"https://search.google.com/search-console/performance/search-analytics?resource_id=sc-domain%3A〇〇〇.com&num_of_days=28&metrics=CLICKS%2CIMPRESSIONS%2CCTR%2CPOSITION&page=*"},{"$f":"実行!$C$12&分析!N6","v":"https://search.google.com/search-console/performance/search-analytics?resource_id=sc-domain%3A〇〇〇.com&num_of_days=28&metrics=CLICKS%2CIMPRESSIONS%2CCTR%2CPOSITION&page=*"},{"$f":"実行!$C$12&分析!O6","v":"https://search.google.com/search-console/performance/search-analytics?resource_id=sc-domain%3A〇〇〇.com&num_of_days=28&metrics=CLICKS%2CIMPRESSIONS%2CCTR%2CPOSITION&page=*"},{"$f":"実行!$C$12&分析!P6","v":"https://search.google.com/search-console/performance/search-analytics?resource_id=sc-domain%3A〇〇〇.com&num_of_days=28&metrics=CLICKS%2CIMPRESSIONS%2CCTR%2CPOSITION&page=*"},{"$f":"実行!$C$12&分析!Q6","v":"https://search.google.com/search-console/performance/search-analytics?resource_id=sc-domain%3A〇〇〇.com&num_of_days=28&metrics=CLICKS%2CIMPRESSIONS%2CCTR%2CPOSITION&page=*"},{"$f":"実行!$C$12&分析!R6","v":"https://search.google.com/search-console/performance/search-analytics?resource_id=sc-domain%3A〇〇〇.com&num_of_days=28&metrics=CLICKS%2CIMPRESSIONS%2CCTR%2CPOSITION&page=*"},{"$f":"実行!$C$12&分析!S6","v":"https://search.google.com/search-console/performance/search-analytics?resource_id=sc-domain%3A〇〇〇.com&num_of_days=28&metrics=CLICKS%2CIMPRESSIONS%2CCTR%2CPOSITION&page=*"},{"$f":"実行!$C$12&分析!T6","v":"https://search.google.com/search-console/performance/search-analytics?resource_id=sc-domain%3A〇〇〇.com&num_of_days=28&metrics=CLICKS%2CIMPRESSIONS%2CCTR%2CPOSITION&page=*"},{"$f":"実行!$C$12&分析!U6","v":"https://search.google.com/search-console/performance/search-analytics?resource_id=sc-domain%3A〇〇〇.com&num_of_days=28&metrics=CLICKS%2CIMPRESSIONS%2CCTR%2CPOSITION&page=*"},{"$f":"実行!$C$12&分析!V6","v":"https://search.google.com/search-console/performance/search-analytics?resource_id=sc-domain%3A〇〇〇.com&num_of_days=28&metrics=CLICKS%2CIMPRESSIONS%2CCTR%2CPOSITION&page=*"},{"$f":"実行!$C$12&分析!W6","v":"https://search.google.com/search-console/performance/search-analytics?resource_id=sc-domain%3A〇〇〇.com&num_of_days=28&metrics=CLICKS%2CIMPRESSIONS%2CCTR%2CPOSITION&page=*"},{"$f":"実行!$C$12&分析!X6","v":"https://search.google.com/search-console/performance/search-analytics?resource_id=sc-domain%3A〇〇〇.com&num_of_days=28&metrics=CLICKS%2CIMPRESSIONS%2CCTR%2CPOSITION&page=*"},{"$f":"実行!$C$12&分析!Y6","v":"https://search.google.com/search-console/performance/search-analytics?resource_id=sc-domain%3A〇〇〇.com&num_of_days=28&metrics=CLICKS%2CIMPRESSIONS%2CCTR%2CPOSITION&page=*"},{"$f":"実行!$C$12&分析!Z6","v":"https://search.google.com/search-console/performance/search-analytics?resource_id=sc-domain%3A〇〇〇.com&num_of_days=28&metrics=CLICKS%2CIMPRESSIONS%2CCTR%2CPOSITION&page=*"},{"$f":"実行!$C$12&分析!AA6","v":"https://search.google.com/search-console/performance/search-analytics?resource_id=sc-domain%3A〇〇〇.com&num_of_days=28&metrics=CLICKS%2CIMPRESSIONS%2CCTR%2CPOSITION&page=*"},{"$f":"実行!$C$12&分析!AB6","v":"https://search.google.com/search-console/performance/search-analytics?resource_id=sc-domain%3A〇〇〇.com&num_of_days=28&metrics=CLICKS%2CIMPRESSIONS%2CCTR%2CPOSITION&page=*"},{"$f":"実行!$C$12&分析!AC6","v":"https://search.google.com/search-console/performance/search-analytics?resource_id=sc-domain%3A〇〇〇.com&num_of_days=28&metrics=CLICKS%2CIMPRESSIONS%2CCTR%2CPOSITION&page=*"},{"$f":"実行!$C$12&分析!AD6","v":"https://search.google.com/search-console/performance/search-analytics?resource_id=sc-domain%3A〇〇〇.com&num_of_days=28&metrics=CLICKS%2CIMPRESSIONS%2CCTR%2CPOSITION&page=*"},{"$f":"実行!$C$12&分析!AE6","v":"https://search.google.com/search-console/performance/search-analytics?resource_id=sc-domain%3A〇〇〇.com&num_of_days=28&metrics=CLICKS%2CIMPRESSIONS%2CCTR%2CPOSITION&page=*"},{"$f":"実行!$C$12&分析!AF6","v":"https://search.google.com/search-console/performance/search-analytics?resource_id=sc-domain%3A〇〇〇.com&num_of_days=28&metrics=CLICKS%2CIMPRESSIONS%2CCTR%2CPOSITION&page=*"},{"$f":"実行!$C$12&分析!AG6","v":"https://search.google.com/search-console/performance/search-analytics?resource_id=sc-domain%3A〇〇〇.com&num_of_days=28&metrics=CLICKS%2CIMPRESSIONS%2CCTR%2CPOSITION&page=*"},{"$f":"実行!$C$12&分析!AH6","v":"https://search.google.com/search-console/performance/search-analytics?resource_id=sc-domain%3A〇〇〇.com&num_of_days=28&metrics=CLICKS%2CIMPRESSIONS%2CCTR%2CPOSITION&page=*"},{"$f":"実行!$C$12&分析!AI6","v":"https://search.google.com/search-console/performance/search-analytics?resource_id=sc-domain%3A〇〇〇.com&num_of_days=28&metrics=CLICKS%2CIMPRESSIONS%2CCTR%2CPOSITION&page=*"},{"$f":"実行!$C$12&分析!AJ6","v":"https://search.google.com/search-console/performance/search-analytics?resource_id=sc-domain%3A〇〇〇.com&num_of_days=28&metrics=CLICKS%2CIMPRESSIONS%2CCTR%2CPOSITION&page=*"},{"$f":"実行!$C$12&分析!AK6","v":"https://search.google.com/search-console/performance/search-analytics?resource_id=sc-domain%3A〇〇〇.com&num_of_days=28&metrics=CLICKS%2CIMPRESSIONS%2CCTR%2CPOSITION&page=*"},{"$f":"実行!$C$12&分析!AL6","v":"https://search.google.com/search-console/performance/search-analytics?resource_id=sc-domain%3A〇〇〇.com&num_of_days=28&metrics=CLICKS%2CIMPRESSIONS%2CCTR%2CPOSITION&page=*"},{"$f":"実行!$C$12&分析!AM6","v":"https://search.google.com/search-console/performance/search-analytics?resource_id=sc-domain%3A〇〇〇.com&num_of_days=28&metrics=CLICKS%2CIMPRESSIONS%2CCTR%2CPOSITION&page=*"},{"$f":"実行!$C$12&分析!AN6","v":"https://search.google.com/search-console/performance/search-analytics?resource_id=sc-domain%3A〇〇〇.com&num_of_days=28&metrics=CLICKS%2CIMPRESSIONS%2CCTR%2CPOSITION&page=*"},{"$f":"実行!$C$12&分析!AO6","v":"https://search.google.com/search-console/performance/search-analytics?resource_id=sc-domain%3A〇〇〇.com&num_of_days=28&metrics=CLICKS%2CIMPRESSIONS%2CCTR%2CPOSITION&page=*"},{"$f":"実行!$C$12&分析!AP6","v":"https://search.google.com/search-console/performance/search-analytics?resource_id=sc-domain%3A〇〇〇.com&num_of_days=28&metrics=CLICKS%2CIMPRESSIONS%2CCTR%2CPOSITION&page=*"},{"$f":"実行!$C$12&分析!AQ6","v":"https://search.google.com/search-console/performance/search-analytics?resource_id=sc-domain%3A〇〇〇.com&num_of_days=28&metrics=CLICKS%2CIMPRESSIONS%2CCTR%2CPOSITION&page=*"},{"$f":"実行!$C$12&分析!AR6","v":"https://search.google.com/search-console/performance/search-analytics?resource_id=sc-domain%3A〇〇〇.com&num_of_days=28&metrics=CLICKS%2CIMPRESSIONS%2CCTR%2CPOSITION&page=*"},{"$f":"実行!$C$12&分析!AS6","v":"https://search.google.com/search-console/performance/search-analytics?resource_id=sc-domain%3A〇〇〇.com&num_of_days=28&metrics=CLICKS%2CIMPRESSIONS%2CCTR%2CPOSITION&page=*"},{"$f":"実行!$C$12&分析!AT6","v":"https://search.google.com/search-console/performance/search-analytics?resource_id=sc-domain%3A〇〇〇.com&num_of_days=28&metrics=CLICKS%2CIMPRESSIONS%2CCTR%2CPOSITION&page=*"},{"$f":"実行!$C$12&分析!AU6","v":"https://search.google.com/search-console/performance/search-analytics?resource_id=sc-domain%3A〇〇〇.com&num_of_days=28&metrics=CLICKS%2CIMPRESSIONS%2CCTR%2CPOSITION&page=*"},{"$f":"実行!$C$12&分析!AV6","v":"https://search.google.com/search-console/performance/search-analytics?resource_id=sc-domain%3A〇〇〇.com&num_of_days=28&metrics=CLICKS%2CIMPRESSIONS%2CCTR%2CPOSITION&page=*"},{"$f":"実行!$C$12&分析!AW6","v":"https://search.google.com/search-console/performance/search-analytics?resource_id=sc-domain%3A〇〇〇.com&num_of_days=28&metrics=CLICKS%2CIMPRESSIONS%2CCTR%2CPOSITION&page=*"},{"$f":"実行!$C$12&分析!AX6","v":"https://search.google.com/search-console/performance/search-analytics?resource_id=sc-domain%3A〇〇〇.com&num_of_days=28&metrics=CLICKS%2CIMPRESSIONS%2CCTR%2CPOSITION&page=*"},{"$f":"実行!$C$12&分析!AY6","v":"https://search.google.com/search-console/performance/search-analytics?resource_id=sc-domain%3A〇〇〇.com&num_of_days=28&metrics=CLICKS%2CIMPRESSIONS%2CCTR%2CPOSITION&page=*"},{"$f":"実行!$C$12&分析!AZ6","v":"https://search.google.com/search-console/performance/search-analytics?resource_id=sc-domain%3A〇〇〇.com&num_of_days=28&metrics=CLICKS%2CIMPRESSIONS%2CCTR%2CPOSITION&page=*"},{"$f":"実行!$C$12&分析!BA6","v":"https://search.google.com/search-console/performance/search-analytics?resource_id=sc-domain%3A〇〇〇.com&num_of_days=28&metrics=CLICKS%2CIMPRESSIONS%2CCTR%2CPOSITION&page=*"},{"$f":"実行!$C$12&分析!BB6","v":"https://search.google.com/search-console/performance/search-analytics?resource_id=sc-domain%3A〇〇〇.com&num_of_days=28&metrics=CLICKS%2CIMPRESSIONS%2CCTR%2CPOSITION&page=*"},{"$f":"実行!$C$12&分析!BC6","v":"https://search.google.com/search-console/performance/search-analytics?resource_id=sc-domain%3A〇〇〇.com&num_of_days=28&metrics=CLICKS%2CIMPRESSIONS%2CCTR%2CPOSITION&page=*"},{"$f":"実行!$C$12&分析!BD6","v":"https://search.google.com/search-console/performance/search-analytics?resource_id=sc-domain%3A〇〇〇.com&num_of_days=28&metrics=CLICKS%2CIMPRESSIONS%2CCTR%2CPOSITION&page=*"},{"$f":"実行!$C$12&分析!BE6","v":"https://search.google.com/search-console/performance/search-analytics?resource_id=sc-domain%3A〇〇〇.com&num_of_days=28&metrics=CLICKS%2CIMPRESSIONS%2CCTR%2CPOSITION&page=*"},{"$f":"実行!$C$12&分析!BF6","v":"https://search.google.com/search-console/performance/search-analytics?resource_id=sc-domain%3A〇〇〇.com&num_of_days=28&metrics=CLICKS%2CIMPRESSIONS%2CCTR%2CPOSITION&page=*"},{"$f":"実行!$C$12&分析!BG6","v":"https://search.google.com/search-console/performance/search-analytics?resource_id=sc-domain%3A〇〇〇.com&num_of_days=28&metrics=CLICKS%2CIMPRESSIONS%2CCTR%2CPOSITION&page=*"},{"$f":"実行!$C$12&分析!BH6","v":"https://search.google.com/search-console/performance/search-analytics?resource_id=sc-domain%3A〇〇〇.com&num_of_days=28&metrics=CLICKS%2CIMPRESSIONS%2CCTR%2CPOSITION&page=*"},{"$f":"実行!$C$12&分析!BI6","v":"https://search.google.com/search-console/performance/search-analytics?resource_id=sc-domain%3A〇〇〇.com&num_of_days=28&metrics=CLICKS%2CIMPRESSIONS%2CCTR%2CPOSITION&page=*"},{"$f":"実行!$C$12&分析!BJ6","v":"https://search.google.com/search-console/performance/search-analytics?resource_id=sc-domain%3A〇〇〇.com&num_of_days=28&metrics=CLICKS%2CIMPRESSIONS%2CCTR%2CPOSITION&page=*"},{"$f":"実行!$C$12&分析!BK6","v":"https://search.google.com/search-console/performance/search-analytics?resource_id=sc-domain%3A〇〇〇.com&num_of_days=28&metrics=CLICKS%2CIMPRESSIONS%2CCTR%2CPOSITION&page=*"},{"$f":"実行!$C$12&分析!BL6","v":"https://search.google.com/search-console/performance/search-analytics?resource_id=sc-domain%3A〇〇〇.com&num_of_days=28&metrics=CLICKS%2CIMPRESSIONS%2CCTR%2CPOSITION&page=*"},{"$f":"実行!$C$12&分析!BM6","v":"https://search.google.com/search-console/performance/search-analytics?resource_id=sc-domain%3A〇〇〇.com&num_of_days=28&metrics=CLICKS%2CIMPRESSIONS%2CCTR%2CPOSITION&page=*"},{"$f":"実行!$C$12&分析!BN6","v":"https://search.google.com/search-console/performance/search-analytics?resource_id=sc-domain%3A〇〇〇.com&num_of_days=28&metrics=CLICKS%2CIMPRESSIONS%2CCTR%2CPOSITION&page=*"},{"$f":"実行!$C$12&分析!BO6","v":"https://search.google.com/search-console/performance/search-analytics?resource_id=sc-domain%3A〇〇〇.com&num_of_days=28&metrics=CLICKS%2CIMPRESSIONS%2CCTR%2CPOSITION&page=*"},{"$f":"実行!$C$12&分析!BP6","v":"https://search.google.com/search-console/performance/search-analytics?resource_id=sc-domain%3A〇〇〇.com&num_of_days=28&metrics=CLICKS%2CIMPRESSIONS%2CCTR%2CPOSITION&page=*"},{"$f":"実行!$C$12&分析!BQ6","v":"https://search.google.com/search-console/performance/search-analytics?resource_id=sc-domain%3A〇〇〇.com&num_of_days=28&metrics=CLICKS%2CIMPRESSIONS%2CCTR%2CPOSITION&page=*"},{"$f":"実行!$C$12&分析!BR6","v":"https://search.google.com/search-console/performance/search-analytics?resource_id=sc-domain%3A〇〇〇.com&num_of_days=28&metrics=CLICKS%2CIMPRESSIONS%2CCTR%2CPOSITION&page=*"},{"$f":"実行!$C$12&分析!BS6","v":"https://search.google.com/search-console/performance/search-analytics?resource_id=sc-domain%3A〇〇〇.com&num_of_days=28&metrics=CLICKS%2CIMPRESSIONS%2CCTR%2CPOSITION&page=*"},{"$f":"実行!$C$12&分析!BT6","v":"https://search.google.com/search-console/performance/search-analytics?resource_id=sc-domain%3A〇〇〇.com&num_of_days=28&metrics=CLICKS%2CIMPRESSIONS%2CCTR%2CPOSITION&page=*"},{"$f":"実行!$C$12&分析!BU6","v":"https://search.google.com/search-console/performance/search-analytics?resource_id=sc-domain%3A〇〇〇.com&num_of_days=28&metrics=CLICKS%2CIMPRESSIONS%2CCTR%2CPOSITION&page=*"},{"$f":"実行!$C$12&分析!BV6","v":"https://search.google.com/search-console/performance/search-analytics?resource_id=sc-domain%3A〇〇〇.com&num_of_days=28&metrics=CLICKS%2CIMPRESSIONS%2CCTR%2CPOSITION&page=*"},{"$f":"実行!$C$12&分析!BW6","v":"https://search.google.com/search-console/performance/search-analytics?resource_id=sc-domain%3A〇〇〇.com&num_of_days=28&metrics=CLICKS%2CIMPRESSIONS%2CCTR%2CPOSITION&page=*"},{"$f":"実行!$C$12&分析!BX6","v":"https://search.google.com/search-console/performance/search-analytics?resource_id=sc-domain%3A〇〇〇.com&num_of_days=28&metrics=CLICKS%2CIMPRESSIONS%2CCTR%2CPOSITION&page=*"},{"$f":"実行!$C$12&分析!BY6","v":"https://search.google.com/search-console/performance/search-analytics?resource_id=sc-domain%3A〇〇〇.com&num_of_days=28&metrics=CLICKS%2CIMPRESSIONS%2CCTR%2CPOSITION&page=*"},{"$f":"実行!$C$12&分析!BZ6","v":"https://search.google.com/search-console/performance/search-analytics?resource_id=sc-domain%3A〇〇〇.com&num_of_days=28&metrics=CLICKS%2CIMPRESSIONS%2CCTR%2CPOSITION&page=*"},{"$f":"実行!$C$12&分析!CA6","v":"https://search.google.com/search-console/performance/search-analytics?resource_id=sc-domain%3A〇〇〇.com&num_of_days=28&metrics=CLICKS%2CIMPRESSIONS%2CCTR%2CPOSITION&page=*"},{"$f":"実行!$C$12&分析!CB6","v":"https://search.google.com/search-console/performance/search-analytics?resource_id=sc-domain%3A〇〇〇.com&num_of_days=28&metrics=CLICKS%2CIMPRESSIONS%2CCTR%2CPOSITION&page=*"},{"$f":"実行!$C$12&分析!CC6","v":"https://search.google.com/search-console/performance/search-analytics?resource_id=sc-domain%3A〇〇〇.com&num_of_days=28&metrics=CLICKS%2CIMPRESSIONS%2CCTR%2CPOSITION&page=*"},{"$f":"実行!$C$12&分析!CD6","v":"https://search.google.com/search-console/performance/search-analytics?resource_id=sc-domain%3A〇〇〇.com&num_of_days=28&metrics=CLICKS%2CIMPRESSIONS%2CCTR%2CPOSITION&page=*"},{"$f":"実行!$C$12&分析!CE6","v":"https://search.google.com/search-console/performance/search-analytics?resource_id=sc-domain%3A〇〇〇.com&num_of_days=28&metrics=CLICKS%2CIMPRESSIONS%2CCTR%2CPOSITION&page=*"},{"$f":"実行!$C$12&分析!CF6","v":"https://search.google.com/search-console/performance/search-analytics?resource_id=sc-domain%3A〇〇〇.com&num_of_days=28&metrics=CLICKS%2CIMPRESSIONS%2CCTR%2CPOSITION&page=*"},{"$f":"実行!$C$12&分析!CG6","v":"https://search.google.com/search-console/performance/search-analytics?resource_id=sc-domain%3A〇〇〇.com&num_of_days=28&metrics=CLICKS%2CIMPRESSIONS%2CCTR%2CPOSITION&page=*"},{"$f":"実行!$C$12&分析!CH6","v":"https://search.google.com/search-console/performance/search-analytics?resource_id=sc-domain%3A〇〇〇.com&num_of_days=28&metrics=CLICKS%2CIMPRESSIONS%2CCTR%2CPOSITION&page=*"},{"$f":"実行!$C$12&分析!CI6","v":"https://search.google.com/search-console/performance/search-analytics?resource_id=sc-domain%3A〇〇〇.com&num_of_days=28&metrics=CLICKS%2CIMPRESSIONS%2CCTR%2CPOSITION&page=*"},{"$f":"実行!$C$12&分析!CJ6","v":"https://search.google.com/search-console/performance/search-analytics?resource_id=sc-domain%3A〇〇〇.com&num_of_days=28&metrics=CLICKS%2CIMPRESSIONS%2CCTR%2CPOSITION&page=*"},{"$f":"実行!$C$12&分析!CK6","v":"https://search.google.com/search-console/performance/search-analytics?resource_id=sc-domain%3A〇〇〇.com&num_of_days=28&metrics=CLICKS%2CIMPRESSIONS%2CCTR%2CPOSITION&page=*"},{"$f":"実行!$C$12&分析!CL6","v":"https://search.google.com/search-console/performance/search-analytics?resource_id=sc-domain%3A〇〇〇.com&num_of_days=28&metrics=CLICKS%2CIMPRESSIONS%2CCTR%2CPOSITION&page=*"},{"$f":"実行!$C$12&分析!CM6","v":"https://search.google.com/search-console/performance/search-analytics?resource_id=sc-domain%3A〇〇〇.com&num_of_days=28&metrics=CLICKS%2CIMPRESSIONS%2CCTR%2CPOSITION&page=*"},{"$f":"実行!$C$12&分析!CN6","v":"https://search.google.com/search-console/performance/search-analytics?resource_id=sc-domain%3A〇〇〇.com&num_of_days=28&metrics=CLICKS%2CIMPRESSIONS%2CCTR%2CPOSITION&page=*"},{"$f":"実行!$C$12&分析!CO6","v":"https://search.google.com/search-console/performance/search-analytics?resource_id=sc-domain%3A〇〇〇.com&num_of_days=28&metrics=CLICKS%2CIMPRESSIONS%2CCTR%2CPOSITION&page=*"},{"$f":"実行!$C$12&分析!CP6","v":"https://search.google.com/search-console/performance/search-analytics?resource_id=sc-domain%3A〇〇〇.com&num_of_days=28&metrics=CLICKS%2CIMPRESSIONS%2CCTR%2CPOSITION&page=*"},{"$f":"実行!$C$12&分析!CQ6","v":"https://search.google.com/search-console/performance/search-analytics?resource_id=sc-domain%3A〇〇〇.com&num_of_days=28&metrics=CLICKS%2CIMPRESSIONS%2CCTR%2CPOSITION&page=*"},{"$f":"実行!$C$12&分析!CR6","v":"https://search.google.com/search-console/performance/search-analytics?resource_id=sc-domain%3A〇〇〇.com&num_of_days=28&metrics=CLICKS%2CIMPRESSIONS%2CCTR%2CPOSITION&page=*"},{"$f":"実行!$C$12&分析!CS6","v":"https://search.google.com/search-console/performance/search-analytics?resource_id=sc-domain%3A〇〇〇.com&num_of_days=28&metrics=CLICKS%2CIMPRESSIONS%2CCTR%2CPOSITION&page=*"},{"$f":"実行!$C$12&分析!CT6","v":"https://search.google.com/search-console/performance/search-analytics?resource_id=sc-domain%3A〇〇〇.com&num_of_days=28&metrics=CLICKS%2CIMPRESSIONS%2CCTR%2CPOSITION&page=*"},{"$f":"実行!$C$12&分析!CU6","v":"https://search.google.com/search-console/performance/search-analytics?resource_id=sc-domain%3A〇〇〇.com&num_of_days=28&metrics=CLICKS%2CIMPRESSIONS%2CCTR%2CPOSITION&page=*"},{"$f":"実行!$C$12&分析!CV6","v":"https://search.google.com/search-console/performance/search-analytics?resource_id=sc-domain%3A〇〇〇.com&num_of_days=28&metrics=CLICKS%2CIMPRESSIONS%2CCTR%2CPOSITION&page=*"},{"$f":"実行!$C$12&分析!CW6","v":"https://search.google.com/search-console/performance/search-analytics?resource_id=sc-domain%3A〇〇〇.com&num_of_days=28&metrics=CLICKS%2CIMPRESSIONS%2CCTR%2CPOSITION&page=*"},{"$f":"実行!$C$12&分析!CX6","v":"https://search.google.com/search-console/performance/search-analytics?resource_id=sc-domain%3A〇〇〇.com&num_of_days=28&metrics=CLICKS%2CIMPRESSIONS%2CCTR%2CPOSITION&page=*"},{"$f":"実行!$C$12&分析!CY6","v":"https://search.google.com/search-console/performance/search-analytics?resource_id=sc-domain%3A〇〇〇.com&num_of_days=28&metrics=CLICKS%2CIMPRESSIONS%2CCTR%2CPOSITION&page=*"},{"$f":"実行!$C$12&分析!CZ6","v":"https://search.google.com/search-console/performance/search-analytics?resource_id=sc-domain%3A〇〇〇.com&num_of_days=28&metrics=CLICKS%2CIMPRESSIONS%2CCTR%2CPOSITION&page=*"},{"$f":"実行!$C$12&分析!DA6","v":"https://search.google.com/search-console/performance/search-analytics?resource_id=sc-domain%3A〇〇〇.com&num_of_days=28&metrics=CLICKS%2CIMPRESSIONS%2CCTR%2CPOSITION&page=*"},{"$f":"実行!$C$12&分析!DB6","v":"https://search.google.com/search-console/performance/search-analytics?resource_id=sc-domain%3A〇〇〇.com&num_of_days=28&metrics=CLICKS%2CIMPRESSIONS%2CCTR%2CPOSITION&page=*"},{"$f":"実行!$C$12&分析!DC6","v":"https://search.google.com/search-console/performance/search-analytics?resource_id=sc-domain%3A〇〇〇.com&num_of_days=28&metrics=CLICKS%2CIMPRESSIONS%2CCTR%2CPOSITION&page=*"},{"$f":"実行!$C$12&分析!DD6","v":"https://search.google.com/search-console/performance/search-analytics?resource_id=sc-domain%3A〇〇〇.com&num_of_days=28&metrics=CLICKS%2CIMPRESSIONS%2CCTR%2CPOSITION&page=*"},{"$f":"実行!$C$12&分析!DE6","v":"https://search.google.com/search-console/performance/search-analytics?resource_id=sc-domain%3A〇〇〇.com&num_of_days=28&metrics=CLICKS%2CIMPRESSIONS%2CCTR%2CPOSITION&page=*"},{"$f":"実行!$C$12&分析!DF6","v":"https://search.google.com/search-console/performance/search-analytics?resource_id=sc-domain%3A〇〇〇.com&num_of_days=28&metrics=CLICKS%2CIMPRESSIONS%2CCTR%2CPOSITION&page=*"},{"$f":"実行!$C$12&分析!DG6","v":"https://search.google.com/search-console/performance/search-analytics?resource_id=sc-domain%3A〇〇〇.com&num_of_days=28&metrics=CLICKS%2CIMPRESSIONS%2CCTR%2CPOSITION&page=*"},{"$f":"実行!$C$12&分析!DH6","v":"https://search.google.com/search-console/performance/search-analytics?resource_id=sc-domain%3A〇〇〇.com&num_of_days=28&metrics=CLICKS%2CIMPRESSIONS%2CCTR%2CPOSITION&page=*"},{"$f":"実行!$C$12&分析!DI6","v":"https://search.google.com/search-console/performance/search-analytics?resource_id=sc-domain%3A〇〇〇.com&num_of_days=28&metrics=CLICKS%2CIMPRESSIONS%2CCTR%2CPOSITION&page=*"},{"$f":"実行!$C$12&分析!DJ6","v":"https://search.google.com/search-console/performance/search-analytics?resource_id=sc-domain%3A〇〇〇.com&num_of_days=28&metrics=CLICKS%2CIMPRESSIONS%2CCTR%2CPOSITION&page=*"},{"$f":"実行!$C$12&分析!DK6","v":"https://search.google.com/search-console/performance/search-analytics?resource_id=sc-domain%3A〇〇〇.com&num_of_days=28&metrics=CLICKS%2CIMPRESSIONS%2CCTR%2CPOSITION&page=*"},{"$f":"実行!$C$12&分析!DL6","v":"https://search.google.com/search-console/performance/search-analytics?resource_id=sc-domain%3A〇〇〇.com&num_of_days=28&metrics=CLICKS%2CIMPRESSIONS%2CCTR%2CPOSITION&page=*"},{"$f":"実行!$C$12&分析!DM6","v":"https://search.google.com/search-console/performance/search-analytics?resource_id=sc-domain%3A〇〇〇.com&num_of_days=28&metrics=CLICKS%2CIMPRESSIONS%2CCTR%2CPOSITION&page=*"},{"$f":"実行!$C$12&分析!DN6","v":"https://search.google.com/search-console/performance/search-analytics?resource_id=sc-domain%3A〇〇〇.com&num_of_days=28&metrics=CLICKS%2CIMPRESSIONS%2CCTR%2CPOSITION&page=*"},{"$f":"実行!$C$12&分析!DO6","v":"https://search.google.com/search-console/performance/search-analytics?resource_id=sc-domain%3A〇〇〇.com&num_of_days=28&metrics=CLICKS%2CIMPRESSIONS%2CCTR%2CPOSITION&page=*"},{"$f":"実行!$C$12&分析!DP6","v":"https://search.google.com/search-console/performance/search-analytics?resource_id=sc-domain%3A〇〇〇.com&num_of_days=28&metrics=CLICKS%2CIMPRESSIONS%2CCTR%2CPOSITION&page=*"},{"$f":"実行!$C$12&分析!DQ6","v":"https://search.google.com/search-console/performance/search-analytics?resource_id=sc-domain%3A〇〇〇.com&num_of_days=28&metrics=CLICKS%2CIMPRESSIONS%2CCTR%2CPOSITION&page=*"},{"$f":"実行!$C$12&分析!DR6","v":"https://search.google.com/search-console/performance/search-analytics?resource_id=sc-domain%3A〇〇〇.com&num_of_days=28&metrics=CLICKS%2CIMPRESSIONS%2CCTR%2CPOSITION&page=*"},{"$f":"実行!$C$12&分析!DS6","v":"https://search.google.com/search-console/performance/search-analytics?resource_id=sc-domain%3A〇〇〇.com&num_of_days=28&metrics=CLICKS%2CIMPRESSIONS%2CCTR%2CPOSITION&page=*"},{"$f":"実行!$C$12&分析!DT6","v":"https://search.google.com/search-console/performance/search-analytics?resource_id=sc-domain%3A〇〇〇.com&num_of_days=28&metrics=CLICKS%2CIMPRESSIONS%2CCTR%2CPOSITION&page=*"},{"$f":"実行!$C$12&分析!DU6","v":"https://search.google.com/search-console/performance/search-analytics?resource_id=sc-domain%3A〇〇〇.com&num_of_days=28&metrics=CLICKS%2CIMPRESSIONS%2CCTR%2CPOSITION&page=*"},{"$f":"実行!$C$12&分析!DV6","v":"https://search.google.com/search-console/performance/search-analytics?resource_id=sc-domain%3A〇〇〇.com&num_of_days=28&metrics=CLICKS%2CIMPRESSIONS%2CCTR%2CPOSITION&page=*"},{"$f":"実行!$C$12&分析!DW6","v":"https://search.google.com/search-console/performance/search-analytics?resource_id=sc-domain%3A〇〇〇.com&num_of_days=28&metrics=CLICKS%2CIMPRESSIONS%2CCTR%2CPOSITION&page=*"},{"$f":"実行!$C$12&分析!DX6","v":"https://search.google.com/search-console/performance/search-analytics?resource_id=sc-domain%3A〇〇〇.com&num_of_days=28&metrics=CLICKS%2CIMPRESSIONS%2CCTR%2CPOSITION&page=*"},{"$f":"実行!$C$12&分析!DY6","v":"https://search.google.com/search-console/performance/search-analytics?resource_id=sc-domain%3A〇〇〇.com&num_of_days=28&metrics=CLICKS%2CIMPRESSIONS%2CCTR%2CPOSITION&page=*"},{"$f":"実行!$C$12&分析!DZ6","v":"https://search.google.com/search-console/performance/search-analytics?resource_id=sc-domain%3A〇〇〇.com&num_of_days=28&metrics=CLICKS%2CIMPRESSIONS%2CCTR%2CPOSITION&page=*"},{"$f":"実行!$C$12&分析!EA6","v":"https://search.google.com/search-console/performance/search-analytics?resource_id=sc-domain%3A〇〇〇.com&num_of_days=28&metrics=CLICKS%2CIMPRESSIONS%2CCTR%2CPOSITION&page=*"},{"$f":"実行!$C$12&分析!EB6","v":"https://search.google.com/search-console/performance/search-analytics?resource_id=sc-domain%3A〇〇〇.com&num_of_days=28&metrics=CLICKS%2CIMPRESSIONS%2CCTR%2CPOSITION&page=*"},{"$f":"実行!$C$12&分析!EC6","v":"https://search.google.com/search-console/performance/search-analytics?resource_id=sc-domain%3A〇〇〇.com&num_of_days=28&metrics=CLICKS%2CIMPRESSIONS%2CCTR%2CPOSITION&page=*"},{"$f":"実行!$C$12&分析!ED6","v":"https://search.google.com/search-console/performance/search-analytics?resource_id=sc-domain%3A〇〇〇.com&num_of_days=28&metrics=CLICKS%2CIMPRESSIONS%2CCTR%2CPOSITION&page=*"},{"$f":"実行!$C$12&分析!EE6","v":"https://search.google.com/search-console/performance/search-analytics?resource_id=sc-domain%3A〇〇〇.com&num_of_days=28&metrics=CLICKS%2CIMPRESSIONS%2CCTR%2CPOSITION&page=*"},{"$f":"実行!$C$12&分析!EF6","v":"https://search.google.com/search-console/performance/search-analytics?resource_id=sc-domain%3A〇〇〇.com&num_of_days=28&metrics=CLICKS%2CIMPRESSIONS%2CCTR%2CPOSITION&page=*"},{"$f":"実行!$C$12&分析!EG6","v":"https://search.google.com/search-console/performance/search-analytics?resource_id=sc-domain%3A〇〇〇.com&num_of_days=28&metrics=CLICKS%2CIMPRESSIONS%2CCTR%2CPOSITION&page=*"},{"$f":"実行!$C$12&分析!EH6","v":"https://search.google.com/search-console/performance/search-analytics?resource_id=sc-domain%3A〇〇〇.com&num_of_days=28&metrics=CLICKS%2CIMPRESSIONS%2CCTR%2CPOSITION&page=*"},{"$f":"実行!$C$12&分析!EI6","v":"https://search.google.com/search-console/performance/search-analytics?resource_id=sc-domain%3A〇〇〇.com&num_of_days=28&metrics=CLICKS%2CIMPRESSIONS%2CCTR%2CPOSITION&page=*"},{"$f":"実行!$C$12&分析!EJ6","v":"https://search.google.com/search-console/performance/search-analytics?resource_id=sc-domain%3A〇〇〇.com&num_of_days=28&metrics=CLICKS%2CIMPRESSIONS%2CCTR%2CPOSITION&page=*"},{"$f":"実行!$C$12&分析!EK6","v":"https://search.google.com/search-console/performance/search-analytics?resource_id=sc-domain%3A〇〇〇.com&num_of_days=28&metrics=CLICKS%2CIMPRESSIONS%2CCTR%2CPOSITION&page=*"},{"$f":"実行!$C$12&分析!EL6","v":"https://search.google.com/search-console/performance/search-analytics?resource_id=sc-domain%3A〇〇〇.com&num_of_days=28&metrics=CLICKS%2CIMPRESSIONS%2CCTR%2CPOSITION&page=*"},{"$f":"実行!$C$12&分析!EM6","v":"https://search.google.com/search-console/performance/search-analytics?resource_id=sc-domain%3A〇〇〇.com&num_of_days=28&metrics=CLICKS%2CIMPRESSIONS%2CCTR%2CPOSITION&page=*"},{"$f":"実行!$C$12&分析!EN6","v":"https://search.google.com/search-console/performance/search-analytics?resource_id=sc-domain%3A〇〇〇.com&num_of_days=28&metrics=CLICKS%2CIMPRESSIONS%2CCTR%2CPOSITION&page=*"},{"$f":"実行!$C$12&分析!EO6","v":"https://search.google.com/search-console/performance/search-analytics?resource_id=sc-domain%3A〇〇〇.com&num_of_days=28&metrics=CLICKS%2CIMPRESSIONS%2CCTR%2CPOSITION&page=*"},{"$f":"実行!$C$12&分析!EP6","v":"https://search.google.com/search-console/performance/search-analytics?resource_id=sc-domain%3A〇〇〇.com&num_of_days=28&metrics=CLICKS%2CIMPRESSIONS%2CCTR%2CPOSITION&page=*"},{"$f":"実行!$C$12&分析!EQ6","v":"https://search.google.com/search-console/performance/search-analytics?resource_id=sc-domain%3A〇〇〇.com&num_of_days=28&metrics=CLICKS%2CIMPRESSIONS%2CCTR%2CPOSITION&page=*"},{"$f":"実行!$C$12&分析!ER6","v":"https://search.google.com/search-console/performance/search-analytics?resource_id=sc-domain%3A〇〇〇.com&num_of_days=28&metrics=CLICKS%2CIMPRESSIONS%2CCTR%2CPOSITION&page=*"},{"$f":"実行!$C$12&分析!ES6","v":"https://search.google.com/search-console/performance/search-analytics?resource_id=sc-domain%3A〇〇〇.com&num_of_days=28&metrics=CLICKS%2CIMPRESSIONS%2CCTR%2CPOSITION&page=*"},{"$f":"実行!$C$12&分析!ET6","v":"https://search.google.com/search-console/performance/search-analytics?resource_id=sc-domain%3A〇〇〇.com&num_of_days=28&metrics=CLICKS%2CIMPRESSIONS%2CCTR%2CPOSITION&page=*"},{"$f":"実行!$C$12&分析!EU6","v":"https://search.google.com/search-console/performance/search-analytics?resource_id=sc-domain%3A〇〇〇.com&num_of_days=28&metrics=CLICKS%2CIMPRESSIONS%2CCTR%2CPOSITION&page=*"},{"$f":"実行!$C$12&分析!EV6","v":"https://search.google.com/search-console/performance/search-analytics?resource_id=sc-domain%3A〇〇〇.com&num_of_days=28&metrics=CLICKS%2CIMPRESSIONS%2CCTR%2CPOSITION&page=*"},{"$f":"実行!$C$12&分析!EW6","v":"https://search.google.com/search-console/performance/search-analytics?resource_id=sc-domain%3A〇〇〇.com&num_of_days=28&metrics=CLICKS%2CIMPRESSIONS%2CCTR%2CPOSITION&page=*"},{"$f":"実行!$C$12&分析!EX6","v":"https://search.google.com/search-console/performance/search-analytics?resource_id=sc-domain%3A〇〇〇.com&num_of_days=28&metrics=CLICKS%2CIMPRESSIONS%2CCTR%2CPOSITION&page=*"},{"$f":"実行!$C$12&分析!EY6","v":"https://search.google.com/search-console/performance/search-analytics?resource_id=sc-domain%3A〇〇〇.com&num_of_days=28&metrics=CLICKS%2CIMPRESSIONS%2CCTR%2CPOSITION&page=*"},{"$f":"実行!$C$12&分析!EZ6","v":"https://search.google.com/search-console/performance/search-analytics?resource_id=sc-domain%3A〇〇〇.com&num_of_days=28&metrics=CLICKS%2CIMPRESSIONS%2CCTR%2CPOSITION&page=*"},{"$f":"実行!$C$12&分析!FA6","v":"https://search.google.com/search-console/performance/search-analytics?resource_id=sc-domain%3A〇〇〇.com&num_of_days=28&metrics=CLICKS%2CIMPRESSIONS%2CCTR%2CPOSITION&page=*"},{"$f":"実行!$C$12&分析!FB6","v":"https://search.google.com/search-console/performance/search-analytics?resource_id=sc-domain%3A〇〇〇.com&num_of_days=28&metrics=CLICKS%2CIMPRESSIONS%2CCTR%2CPOSITION&page=*"},{"$f":"実行!$C$12&分析!FC6","v":"https://search.google.com/search-console/performance/search-analytics?resource_id=sc-domain%3A〇〇〇.com&num_of_days=28&metrics=CLICKS%2CIMPRESSIONS%2CCTR%2CPOSITION&page=*"},{"$f":"実行!$C$12&分析!FD6","v":"https://search.google.com/search-console/performance/search-analytics?resource_id=sc-domain%3A〇〇〇.com&num_of_days=28&metrics=CLICKS%2CIMPRESSIONS%2CCTR%2CPOSITION&page=*"},{"$f":"実行!$C$12&分析!FE6","v":"https://search.google.com/search-console/performance/search-analytics?resource_id=sc-domain%3A〇〇〇.com&num_of_days=28&metrics=CLICKS%2CIMPRESSIONS%2CCTR%2CPOSITION&page=*"},{"$f":"実行!$C$12&分析!FF6","v":"https://search.google.com/search-console/performance/search-analytics?resource_id=sc-domain%3A〇〇〇.com&num_of_days=28&metrics=CLICKS%2CIMPRESSIONS%2CCTR%2CPOSITION&page=*"},{"$f":"実行!$C$12&分析!FG6","v":"https://search.google.com/search-console/performance/search-analytics?resource_id=sc-domain%3A〇〇〇.com&num_of_days=28&metrics=CLICKS%2CIMPRESSIONS%2CCTR%2CPOSITION&page=*"},{"$f":"実行!$C$12&分析!FH6","v":"https://search.google.com/search-console/performance/search-analytics?resource_id=sc-domain%3A〇〇〇.com&num_of_days=28&metrics=CLICKS%2CIMPRESSIONS%2CCTR%2CPOSITION&page=*"},{"$f":"実行!$C$12&分析!FI6","v":"https://search.google.com/search-console/performance/search-analytics?resource_id=sc-domain%3A〇〇〇.com&num_of_days=28&metrics=CLICKS%2CIMPRESSIONS%2CCTR%2CPOSITION&page=*"},{"$f":"実行!$C$12&分析!FJ6","v":"https://search.google.com/search-console/performance/search-analytics?resource_id=sc-domain%3A〇〇〇.com&num_of_days=28&metrics=CLICKS%2CIMPRESSIONS%2CCTR%2CPOSITION&page=*"},{"$f":"実行!$C$12&分析!FK6","v":"https://search.google.com/search-console/performance/search-analytics?resource_id=sc-domain%3A〇〇〇.com&num_of_days=28&metrics=CLICKS%2CIMPRESSIONS%2CCTR%2CPOSITION&page=*"},{"$f":"実行!$C$12&分析!FL6","v":"https://search.google.com/search-console/performance/search-analytics?resource_id=sc-domain%3A〇〇〇.com&num_of_days=28&metrics=CLICKS%2CIMPRESSIONS%2CCTR%2CPOSITION&page=*"},{"$f":"実行!$C$12&分析!FM6","v":"https://search.google.com/search-console/performance/search-analytics?resource_id=sc-domain%3A〇〇〇.com&num_of_days=28&metrics=CLICKS%2CIMPRESSIONS%2CCTR%2CPOSITION&page=*"},{"$f":"実行!$C$12&分析!FN6","v":"https://search.google.com/search-console/performance/search-analytics?resource_id=sc-domain%3A〇〇〇.com&num_of_days=28&metrics=CLICKS%2CIMPRESSIONS%2CCTR%2CPOSITION&page=*"},{"$f":"実行!$C$12&分析!FO6","v":"https://search.google.com/search-console/performance/search-analytics?resource_id=sc-domain%3A〇〇〇.com&num_of_days=28&metrics=CLICKS%2CIMPRESSIONS%2CCTR%2CPOSITION&page=*"},{"$f":"実行!$C$12&分析!FP6","v":"https://search.google.com/search-console/performance/search-analytics?resource_id=sc-domain%3A〇〇〇.com&num_of_days=28&metrics=CLICKS%2CIMPRESSIONS%2CCTR%2CPOSITION&page=*"},{"$f":"実行!$C$12&分析!FQ6","v":"https://search.google.com/search-console/performance/search-analytics?resource_id=sc-domain%3A〇〇〇.com&num_of_days=28&metrics=CLICKS%2CIMPRESSIONS%2CCTR%2CPOSITION&page=*"},{"$f":"実行!$C$12&分析!FR6","v":"https://search.google.com/search-console/performance/search-analytics?resource_id=sc-domain%3A〇〇〇.com&num_of_days=28&metrics=CLICKS%2CIMPRESSIONS%2CCTR%2CPOSITION&page=*"},{"$f":"実行!$C$12&分析!FS6","v":"https://search.google.com/search-console/performance/search-analytics?resource_id=sc-domain%3A〇〇〇.com&num_of_days=28&metrics=CLICKS%2CIMPRESSIONS%2CCTR%2CPOSITION&page=*"},{"$f":"実行!$C$12&分析!FT6","v":"https://search.google.com/search-console/performance/search-analytics?resource_id=sc-domain%3A〇〇〇.com&num_of_days=28&metrics=CLICKS%2CIMPRESSIONS%2CCTR%2CPOSITION&page=*"},{"$f":"実行!$C$12&分析!FU6","v":"https://search.google.com/search-console/performance/search-analytics?resource_id=sc-domain%3A〇〇〇.com&num_of_days=28&metrics=CLICKS%2CIMPRESSIONS%2CCTR%2CPOSITION&page=*"},{"$f":"実行!$C$12&分析!FV6","v":"https://search.google.com/search-console/performance/search-analytics?resource_id=sc-domain%3A〇〇〇.com&num_of_days=28&metrics=CLICKS%2CIMPRESSIONS%2CCTR%2CPOSITION&page=*"},{"$f":"実行!$C$12&分析!FW6","v":"https://search.google.com/search-console/performance/search-analytics?resource_id=sc-domain%3A〇〇〇.com&num_of_days=28&metrics=CLICKS%2CIMPRESSIONS%2CCTR%2CPOSITION&page=*"},{"$f":"実行!$C$12&分析!FX6","v":"https://search.google.com/search-console/performance/search-analytics?resource_id=sc-domain%3A〇〇〇.com&num_of_days=28&metrics=CLICKS%2CIMPRESSIONS%2CCTR%2CPOSITION&page=*"},{"$f":"実行!$C$12&分析!FY6","v":"https://search.google.com/search-console/performance/search-analytics?resource_id=sc-domain%3A〇〇〇.com&num_of_days=28&metrics=CLICKS%2CIMPRESSIONS%2CCTR%2CPOSITION&page=*"},{"$f":"実行!$C$12&分析!FZ6","v":"https://search.google.com/search-console/performance/search-analytics?resource_id=sc-domain%3A〇〇〇.com&num_of_days=28&metrics=CLICKS%2CIMPRESSIONS%2CCTR%2CPOSITION&page=*"},{"$f":"実行!$C$12&分析!GA6","v":"https://search.google.com/search-console/performance/search-analytics?resource_id=sc-domain%3A〇〇〇.com&num_of_days=28&metrics=CLICKS%2CIMPRESSIONS%2CCTR%2CPOSITION&page=*"},{"$f":"実行!$C$12&分析!GB6","v":"https://search.google.com/search-console/performance/search-analytics?resource_id=sc-domain%3A〇〇〇.com&num_of_days=28&metrics=CLICKS%2CIMPRESSIONS%2CCTR%2CPOSITION&page=*"},{"$f":"実行!$C$12&分析!GC6","v":"https://search.google.com/search-console/performance/search-analytics?resource_id=sc-domain%3A〇〇〇.com&num_of_days=28&metrics=CLICKS%2CIMPRESSIONS%2CCTR%2CPOSITION&page=*"},{"$f":"実行!$C$12&分析!GD6","v":"https://search.google.com/search-console/performance/search-analytics?resource_id=sc-domain%3A〇〇〇.com&num_of_days=28&metrics=CLICKS%2CIMPRESSIONS%2CCTR%2CPOSITION&page=*"},{"$f":"実行!$C$12&分析!GE6","v":"https://search.google.com/search-console/performance/search-analytics?resource_id=sc-domain%3A〇〇〇.com&num_of_days=28&metrics=CLICKS%2CIMPRESSIONS%2CCTR%2CPOSITION&page=*"},{"$f":"実行!$C$12&分析!GF6","v":"https://search.google.com/search-console/performance/search-analytics?resource_id=sc-domain%3A〇〇〇.com&num_of_days=28&metrics=CLICKS%2CIMPRESSIONS%2CCTR%2CPOSITION&page=*"},{"$f":"実行!$C$12&分析!GG6","v":"https://search.google.com/search-console/performance/search-analytics?resource_id=sc-domain%3A〇〇〇.com&num_of_days=28&metrics=CLICKS%2CIMPRESSIONS%2CCTR%2CPOSITION&page=*"},{"$f":"実行!$C$12&分析!GH6","v":"https://search.google.com/search-console/performance/search-analytics?resource_id=sc-domain%3A〇〇〇.com&num_of_days=28&metrics=CLICKS%2CIMPRESSIONS%2CCTR%2CPOSITION&page=*"},{"$f":"実行!$C$12&分析!GI6","v":"https://search.google.com/search-console/performance/search-analytics?resource_id=sc-domain%3A〇〇〇.com&num_of_days=28&metrics=CLICKS%2CIMPRESSIONS%2CCTR%2CPOSITION&page=*"},{"$f":"実行!$C$12&分析!GJ6","v":"https://search.google.com/search-console/performance/search-analytics?resource_id=sc-domain%3A〇〇〇.com&num_of_days=28&metrics=CLICKS%2CIMPRESSIONS%2CCTR%2CPOSITION&page=*"},{"$f":"実行!$C$12&分析!GK6","v":"https://search.google.com/search-console/performance/search-analytics?resource_id=sc-domain%3A〇〇〇.com&num_of_days=28&metrics=CLICKS%2CIMPRESSIONS%2CCTR%2CPOSITION&page=*"},{"$f":"実行!$C$12&分析!GL6","v":"https://search.google.com/search-console/performance/search-analytics?resource_id=sc-domain%3A〇〇〇.com&num_of_days=28&metrics=CLICKS%2CIMPRESSIONS%2CCTR%2CPOSITION&page=*"},{"$f":"実行!$C$12&分析!GM6","v":"https://search.google.com/search-console/performance/search-analytics?resource_id=sc-domain%3A〇〇〇.com&num_of_days=28&metrics=CLICKS%2CIMPRESSIONS%2CCTR%2CPOSITION&page=*"},{"$f":"実行!$C$12&分析!GN6","v":"https://search.google.com/search-console/performance/search-analytics?resource_id=sc-domain%3A〇〇〇.com&num_of_days=28&metrics=CLICKS%2CIMPRESSIONS%2CCTR%2CPOSITION&page=*"},{"$f":"実行!$C$12&分析!GO6","v":"https://search.google.com/search-console/performance/search-analytics?resource_id=sc-domain%3A〇〇〇.com&num_of_days=28&metrics=CLICKS%2CIMPRESSIONS%2CCTR%2CPOSITION&page=*"},{"$f":"実行!$C$12&分析!GP6","v":"https://search.google.com/search-console/performance/search-analytics?resource_id=sc-domain%3A〇〇〇.com&num_of_days=28&metrics=CLICKS%2CIMPRESSIONS%2CCTR%2CPOSITION&page=*"},{"$f":"実行!$C$12&分析!GQ6","v":"https://search.google.com/search-console/performance/search-analytics?resource_id=sc-domain%3A〇〇〇.com&num_of_days=28&metrics=CLICKS%2CIMPRESSIONS%2CCTR%2CPOSITION&page=*"},{"$f":"実行!$C$12&分析!GR6","v":"https://search.google.com/search-console/performance/search-analytics?resource_id=sc-domain%3A〇〇〇.com&num_of_days=28&metrics=CLICKS%2CIMPRESSIONS%2CCTR%2CPOSITION&page=*"},{"$f":"実行!$C$12&分析!GS6","v":"https://search.google.com/search-console/performance/search-analytics?resource_id=sc-domain%3A〇〇〇.com&num_of_days=28&metrics=CLICKS%2CIMPRESSIONS%2CCTR%2CPOSITION&page=*"},{"$f":"実行!$C$12&分析!GT6","v":"https://search.google.com/search-console/performance/search-analytics?resource_id=sc-domain%3A〇〇〇.com&num_of_days=28&metrics=CLICKS%2CIMPRESSIONS%2CCTR%2CPOSITION&page=*"},{"$f":"実行!$C$12&分析!GU6","v":"https://search.google.com/search-console/performance/search-analytics?resource_id=sc-domain%3A〇〇〇.com&num_of_days=28&metrics=CLICKS%2CIMPRESSIONS%2CCTR%2CPOSITION&page=*"},{"$f":"実行!$C$12&分析!GV6","v":"https://search.google.com/search-console/performance/search-analytics?resource_id=sc-domain%3A〇〇〇.com&num_of_days=28&metrics=CLICKS%2CIMPRESSIONS%2CCTR%2CPOSITION&page=*"},{"$f":"実行!$C$12&分析!GW6","v":"https://search.google.com/search-console/performance/search-analytics?resource_id=sc-domain%3A〇〇〇.com&num_of_days=28&metrics=CLICKS%2CIMPRESSIONS%2CCTR%2CPOSITION&page=*"},{"$f":"実行!$C$12&分析!GX6","v":"https://search.google.com/search-console/performance/search-analytics?resource_id=sc-domain%3A〇〇〇.com&num_of_days=28&metrics=CLICKS%2CIMPRESSIONS%2CCTR%2CPOSITION&page=*"},{"$f":"実行!$C$12&分析!GY6","v":"https://search.google.com/search-console/performance/search-analytics?resource_id=sc-domain%3A〇〇〇.com&num_of_days=28&metrics=CLICKS%2CIMPRESSIONS%2CCTR%2CPOSITION&page=*"},{"$f":"実行!$C$12&分析!GZ6","v":"https://search.google.com/search-console/performance/search-analytics?resource_id=sc-domain%3A〇〇〇.com&num_of_days=28&metrics=CLICKS%2CIMPRESSIONS%2CCTR%2CPOSITION&page=*"},{"$f":"実行!$C$12&分析!HA6","v":"https://search.google.com/search-console/performance/search-analytics?resource_id=sc-domain%3A〇〇〇.com&num_of_days=28&metrics=CLICKS%2CIMPRESSIONS%2CCTR%2CPOSITION&page=*"},{"$f":"実行!$C$12&分析!HB6","v":"https://search.google.com/search-console/performance/search-analytics?resource_id=sc-domain%3A〇〇〇.com&num_of_days=28&metrics=CLICKS%2CIMPRESSIONS%2CCTR%2CPOSITION&page=*"},{"$f":"実行!$C$12&分析!HC6","v":"https://search.google.com/search-console/performance/search-analytics?resource_id=sc-domain%3A〇〇〇.com&num_of_days=28&metrics=CLICKS%2CIMPRESSIONS%2CCTR%2CPOSITION&page=*"},{"$f":"実行!$C$12&分析!HD6","v":"https://search.google.com/search-console/performance/search-analytics?resource_id=sc-domain%3A〇〇〇.com&num_of_days=28&metrics=CLICKS%2CIMPRESSIONS%2CCTR%2CPOSITION&page=*"},{"$f":"実行!$C$12&分析!HE6","v":"https://search.google.com/search-console/performance/search-analytics?resource_id=sc-domain%3A〇〇〇.com&num_of_days=28&metrics=CLICKS%2CIMPRESSIONS%2CCTR%2CPOSITION&page=*"},{"$f":"実行!$C$12&分析!HF6","v":"https://search.google.com/search-console/performance/search-analytics?resource_id=sc-domain%3A〇〇〇.com&num_of_days=28&metrics=CLICKS%2CIMPRESSIONS%2CCTR%2CPOSITION&page=*"},{"$f":"実行!$C$12&分析!HG6","v":"https://search.google.com/search-console/performance/search-analytics?resource_id=sc-domain%3A〇〇〇.com&num_of_days=28&metrics=CLICKS%2CIMPRESSIONS%2CCTR%2CPOSITION&page=*"},{"$f":"実行!$C$12&分析!HH6","v":"https://search.google.com/search-console/performance/search-analytics?resource_id=sc-domain%3A〇〇〇.com&num_of_days=28&metrics=CLICKS%2CIMPRESSIONS%2CCTR%2CPOSITION&page=*"},{"$f":"実行!$C$12&分析!HI6","v":"https://search.google.com/search-console/performance/search-analytics?resource_id=sc-domain%3A〇〇〇.com&num_of_days=28&metrics=CLICKS%2CIMPRESSIONS%2CCTR%2CPOSITION&page=*"},{"$f":"実行!$C$12&分析!HJ6","v":"https://search.google.com/search-console/performance/search-analytics?resource_id=sc-domain%3A〇〇〇.com&num_of_days=28&metrics=CLICKS%2CIMPRESSIONS%2CCTR%2CPOSITION&page=*"},{"$f":"実行!$C$12&分析!HK6","v":"https://search.google.com/search-console/performance/search-analytics?resource_id=sc-domain%3A〇〇〇.com&num_of_days=28&metrics=CLICKS%2CIMPRESSIONS%2CCTR%2CPOSITION&page=*"},{"$f":"実行!$C$12&分析!HL6","v":"https://search.google.com/search-console/performance/search-analytics?resource_id=sc-domain%3A〇〇〇.com&num_of_days=28&metrics=CLICKS%2CIMPRESSIONS%2CCTR%2CPOSITION&page=*"},{"$f":"実行!$C$12&分析!HM6","v":"https://search.google.com/search-console/performance/search-analytics?resource_id=sc-domain%3A〇〇〇.com&num_of_days=28&metrics=CLICKS%2CIMPRESSIONS%2CCTR%2CPOSITION&page=*"},{"$f":"実行!$C$12&分析!HN6","v":"https://search.google.com/search-console/performance/search-analytics?resource_id=sc-domain%3A〇〇〇.com&num_of_days=28&metrics=CLICKS%2CIMPRESSIONS%2CCTR%2CPOSITION&page=*"},{"$f":"実行!$C$12&分析!HO6","v":"https://search.google.com/search-console/performance/search-analytics?resource_id=sc-domain%3A〇〇〇.com&num_of_days=28&metrics=CLICKS%2CIMPRESSIONS%2CCTR%2CPOSITION&page=*"},{"$f":"実行!$C$12&分析!HP6","v":"https://search.google.com/search-console/performance/search-analytics?resource_id=sc-domain%3A〇〇〇.com&num_of_days=28&metrics=CLICKS%2CIMPRESSIONS%2CCTR%2CPOSITION&page=*"},{"$f":"実行!$C$12&分析!HQ6","v":"https://search.google.com/search-console/performance/search-analytics?resource_id=sc-domain%3A〇〇〇.com&num_of_days=28&metrics=CLICKS%2CIMPRESSIONS%2CCTR%2CPOSITION&page=*"},{"$f":"実行!$C$12&分析!HR6","v":"https://search.google.com/search-console/performance/search-analytics?resource_id=sc-domain%3A〇〇〇.com&num_of_days=28&metrics=CLICKS%2CIMPRESSIONS%2CCTR%2CPOSITION&page=*"},{"$f":"実行!$C$12&分析!HS6","v":"https://search.google.com/search-console/performance/search-analytics?resource_id=sc-domain%3A〇〇〇.com&num_of_days=28&metrics=CLICKS%2CIMPRESSIONS%2CCTR%2CPOSITION&page=*"},{"$f":"実行!$C$12&分析!HT6","v":"https://search.google.com/search-console/performance/search-analytics?resource_id=sc-domain%3A〇〇〇.com&num_of_days=28&metrics=CLICKS%2CIMPRESSIONS%2CCTR%2CPOSITION&page=*"},{"$f":"実行!$C$12&分析!HU6","v":"https://search.google.com/search-console/performance/search-analytics?resource_id=sc-domain%3A〇〇〇.com&num_of_days=28&metrics=CLICKS%2CIMPRESSIONS%2CCTR%2CPOSITION&page=*"},{"$f":"実行!$C$12&分析!HV6","v":"https://search.google.com/search-console/performance/search-analytics?resource_id=sc-domain%3A〇〇〇.com&num_of_days=28&metrics=CLICKS%2CIMPRESSIONS%2CCTR%2CPOSITION&page=*"},{"$f":"実行!$C$12&分析!HW6","v":"https://search.google.com/search-console/performance/search-analytics?resource_id=sc-domain%3A〇〇〇.com&num_of_days=28&metrics=CLICKS%2CIMPRESSIONS%2CCTR%2CPOSITION&page=*"},{"$f":"実行!$C$12&分析!HX6","v":"https://search.google.com/search-console/performance/search-analytics?resource_id=sc-domain%3A〇〇〇.com&num_of_days=28&metrics=CLICKS%2CIMPRESSIONS%2CCTR%2CPOSITION&page=*"},{"$f":"実行!$C$12&分析!HY6","v":"https://search.google.com/search-console/performance/search-analytics?resource_id=sc-domain%3A〇〇〇.com&num_of_days=28&metrics=CLICKS%2CIMPRESSIONS%2CCTR%2CPOSITION&page=*"},{"$f":"実行!$C$12&分析!HZ6","v":"https://search.google.com/search-console/performance/search-analytics?resource_id=sc-domain%3A〇〇〇.com&num_of_days=28&metrics=CLICKS%2CIMPRESSIONS%2CCTR%2CPOSITION&page=*"},{"$f":"実行!$C$12&分析!IA6","v":"https://search.google.com/search-console/performance/search-analytics?resource_id=sc-domain%3A〇〇〇.com&num_of_days=28&metrics=CLICKS%2CIMPRESSIONS%2CCTR%2CPOSITION&page=*"},{"$f":"実行!$C$12&分析!IB6","v":"https://search.google.com/search-console/performance/search-analytics?resource_id=sc-domain%3A〇〇〇.com&num_of_days=28&metrics=CLICKS%2CIMPRESSIONS%2CCTR%2CPOSITION&page=*"},{"$f":"実行!$C$12&分析!IC6","v":"https://search.google.com/search-console/performance/search-analytics?resource_id=sc-domain%3A〇〇〇.com&num_of_days=28&metrics=CLICKS%2CIMPRESSIONS%2CCTR%2CPOSITION&page=*"},{"$f":"実行!$C$12&分析!ID6","v":"https://search.google.com/search-console/performance/search-analytics?resource_id=sc-domain%3A〇〇〇.com&num_of_days=28&metrics=CLICKS%2CIMPRESSIONS%2CCTR%2CPOSITION&page=*"},{"$f":"実行!$C$12&分析!IE6","v":"https://search.google.com/search-console/performance/search-analytics?resource_id=sc-domain%3A〇〇〇.com&num_of_days=28&metrics=CLICKS%2CIMPRESSIONS%2CCTR%2CPOSITION&page=*"},{"$f":"実行!$C$12&分析!IF6","v":"https://search.google.com/search-console/performance/search-analytics?resource_id=sc-domain%3A〇〇〇.com&num_of_days=28&metrics=CLICKS%2CIMPRESSIONS%2CCTR%2CPOSITION&page=*"},{"$f":"実行!$C$12&分析!IG6","v":"https://search.google.com/search-console/performance/search-analytics?resource_id=sc-domain%3A〇〇〇.com&num_of_days=28&metrics=CLICKS%2CIMPRESSIONS%2CCTR%2CPOSITION&page=*"},{"$f":"実行!$C$12&分析!IH6","v":"https://search.google.com/search-console/performance/search-analytics?resource_id=sc-domain%3A〇〇〇.com&num_of_days=28&metrics=CLICKS%2CIMPRESSIONS%2CCTR%2CPOSITION&page=*"},{"$f":"実行!$C$12&分析!II6","v":"https://search.google.com/search-console/performance/search-analytics?resource_id=sc-domain%3A〇〇〇.com&num_of_days=28&metrics=CLICKS%2CIMPRESSIONS%2CCTR%2CPOSITION&page=*"},{"$f":"実行!$C$12&分析!IJ6","v":"https://search.google.com/search-console/performance/search-analytics?resource_id=sc-domain%3A〇〇〇.com&num_of_days=28&metrics=CLICKS%2CIMPRESSIONS%2CCTR%2CPOSITION&page=*"},{"$f":"実行!$C$12&分析!IK6","v":"https://search.google.com/search-console/performance/search-analytics?resource_id=sc-domain%3A〇〇〇.com&num_of_days=28&metrics=CLICKS%2CIMPRESSIONS%2CCTR%2CPOSITION&page=*"},{"$f":"実行!$C$12&分析!IL6","v":"https://search.google.com/search-console/performance/search-analytics?resource_id=sc-domain%3A〇〇〇.com&num_of_days=28&metrics=CLICKS%2CIMPRESSIONS%2CCTR%2CPOSITION&page=*"},{"$f":"実行!$C$12&分析!IM6","v":"https://search.google.com/search-console/performance/search-analytics?resource_id=sc-domain%3A〇〇〇.com&num_of_days=28&metrics=CLICKS%2CIMPRESSIONS%2CCTR%2CPOSITION&page=*"},{"$f":"実行!$C$12&分析!IN6","v":"https://search.google.com/search-console/performance/search-analytics?resource_id=sc-domain%3A〇〇〇.com&num_of_days=28&metrics=CLICKS%2CIMPRESSIONS%2CCTR%2CPOSITION&page=*"},{"$f":"実行!$C$12&分析!IO6","v":"https://search.google.com/search-console/performance/search-analytics?resource_id=sc-domain%3A〇〇〇.com&num_of_days=28&metrics=CLICKS%2CIMPRESSIONS%2CCTR%2CPOSITION&page=*"},{"$f":"実行!$C$12&分析!IP6","v":"https://search.google.com/search-console/performance/search-analytics?resource_id=sc-domain%3A〇〇〇.com&num_of_days=28&metrics=CLICKS%2CIMPRESSIONS%2CCTR%2CPOSITION&page=*"},{"$f":"実行!$C$12&分析!IQ6","v":"https://search.google.com/search-console/performance/search-analytics?resource_id=sc-domain%3A〇〇〇.com&num_of_days=28&metrics=CLICKS%2CIMPRESSIONS%2CCTR%2CPOSITION&page=*"},{"$f":"実行!$C$12&分析!IR6","v":"https://search.google.com/search-console/performance/search-analytics?resource_id=sc-domain%3A〇〇〇.com&num_of_days=28&metrics=CLICKS%2CIMPRESSIONS%2CCTR%2CPOSITION&page=*"},{"$f":"実行!$C$12&分析!IS6","v":"https://search.google.com/search-console/performance/search-analytics?resource_id=sc-domain%3A〇〇〇.com&num_of_days=28&metrics=CLICKS%2CIMPRESSIONS%2CCTR%2CPOSITION&page=*"},{"$f":"実行!$C$12&分析!IT6","v":"https://search.google.com/search-console/performance/search-analytics?resource_id=sc-domain%3A〇〇〇.com&num_of_days=28&metrics=CLICKS%2CIMPRESSIONS%2CCTR%2CPOSITION&page=*"},{"$f":"実行!$C$12&分析!IU6","v":"https://search.google.com/search-console/performance/search-analytics?resource_id=sc-domain%3A〇〇〇.com&num_of_days=28&metrics=CLICKS%2CIMPRESSIONS%2CCTR%2CPOSITION&page=*"},{"$f":"実行!$C$12&分析!IV6","v":"https://search.google.com/search-console/performance/search-analytics?resource_id=sc-domain%3A〇〇〇.com&num_of_days=28&metrics=CLICKS%2CIMPRESSIONS%2CCTR%2CPOSITION&page=*"},{"$f":"実行!$C$12&分析!IW6","v":"https://search.google.com/search-console/performance/search-analytics?resource_id=sc-domain%3A〇〇〇.com&num_of_days=28&metrics=CLICKS%2CIMPRESSIONS%2CCTR%2CPOSITION&page=*"},{"$f":"実行!$C$12&分析!IX6","v":"https://search.google.com/search-console/performance/search-analytics?resource_id=sc-domain%3A〇〇〇.com&num_of_days=28&metrics=CLICKS%2CIMPRESSIONS%2CCTR%2CPOSITION&page=*"},{"$f":"実行!$C$12&分析!IY6","v":"https://search.google.com/search-console/performance/search-analytics?resource_id=sc-domain%3A〇〇〇.com&num_of_days=28&metrics=CLICKS%2CIMPRESSIONS%2CCTR%2CPOSITION&page=*"},{"$f":"実行!$C$12&分析!IZ6","v":"https://search.google.com/search-console/performance/search-analytics?resource_id=sc-domain%3A〇〇〇.com&num_of_days=28&metrics=CLICKS%2CIMPRESSIONS%2CCTR%2CPOSITION&page=*"},{"$f":"実行!$C$12&分析!JA6","v":"https://search.google.com/search-console/performance/search-analytics?resource_id=sc-domain%3A〇〇〇.com&num_of_days=28&metrics=CLICKS%2CIMPRESSIONS%2CCTR%2CPOSITION&page=*"},{"$f":"実行!$C$12&分析!JB6","v":"https://search.google.com/search-console/performance/search-analytics?resource_id=sc-domain%3A〇〇〇.com&num_of_days=28&metrics=CLICKS%2CIMPRESSIONS%2CCTR%2CPOSITION&page=*"},{"$f":"実行!$C$12&分析!JC6","v":"https://search.google.com/search-console/performance/search-analytics?resource_id=sc-domain%3A〇〇〇.com&num_of_days=28&metrics=CLICKS%2CIMPRESSIONS%2CCTR%2CPOSITION&page=*"},{"$f":"実行!$C$12&分析!JD6","v":"https://search.google.com/search-console/performance/search-analytics?resource_id=sc-domain%3A〇〇〇.com&num_of_days=28&metrics=CLICKS%2CIMPRESSIONS%2CCTR%2CPOSITION&page=*"},{"$f":"実行!$C$12&分析!JE6","v":"https://search.google.com/search-console/performance/search-analytics?resource_id=sc-domain%3A〇〇〇.com&num_of_days=28&metrics=CLICKS%2CIMPRESSIONS%2CCTR%2CPOSITION&page=*"},{"$f":"実行!$C$12&分析!JF6","v":"https://search.google.com/search-console/performance/search-analytics?resource_id=sc-domain%3A〇〇〇.com&num_of_days=28&metrics=CLICKS%2CIMPRESSIONS%2CCTR%2CPOSITION&page=*"},{"$f":"実行!$C$12&分析!JG6","v":"https://search.google.com/search-console/performance/search-analytics?resource_id=sc-domain%3A〇〇〇.com&num_of_days=28&metrics=CLICKS%2CIMPRESSIONS%2CCTR%2CPOSITION&page=*"},{"$f":"実行!$C$12&分析!JH6","v":"https://search.google.com/search-console/performance/search-analytics?resource_id=sc-domain%3A〇〇〇.com&num_of_days=28&metrics=CLICKS%2CIMPRESSIONS%2CCTR%2CPOSITION&page=*"},{"$f":"実行!$C$12&分析!JI6","v":"https://search.google.com/search-console/performance/search-analytics?resource_id=sc-domain%3A〇〇〇.com&num_of_days=28&metrics=CLICKS%2CIMPRESSIONS%2CCTR%2CPOSITION&page=*"},{"$f":"実行!$C$12&分析!JJ6","v":"https://search.google.com/search-console/performance/search-analytics?resource_id=sc-domain%3A〇〇〇.com&num_of_days=28&metrics=CLICKS%2CIMPRESSIONS%2CCTR%2CPOSITION&page=*"},{"$f":"実行!$C$12&分析!JK6","v":"https://search.google.com/search-console/performance/search-analytics?resource_id=sc-domain%3A〇〇〇.com&num_of_days=28&metrics=CLICKS%2CIMPRESSIONS%2CCTR%2CPOSITION&page=*"},{"$f":"実行!$C$12&分析!JL6","v":"https://search.google.com/search-console/performance/search-analytics?resource_id=sc-domain%3A〇〇〇.com&num_of_days=28&metrics=CLICKS%2CIMPRESSIONS%2CCTR%2CPOSITION&page=*"},{"$f":"実行!$C$12&分析!JM6","v":"https://search.google.com/search-console/performance/search-analytics?resource_id=sc-domain%3A〇〇〇.com&num_of_days=28&metrics=CLICKS%2CIMPRESSIONS%2CCTR%2CPOSITION&page=*"},{"$f":"実行!$C$12&分析!JN6","v":"https://search.google.com/search-console/performance/search-analytics?resource_id=sc-domain%3A〇〇〇.com&num_of_days=28&metrics=CLICKS%2CIMPRESSIONS%2CCTR%2CPOSITION&page=*"},{"$f":"実行!$C$12&分析!JO6","v":"https://search.google.com/search-console/performance/search-analytics?resource_id=sc-domain%3A〇〇〇.com&num_of_days=28&metrics=CLICKS%2CIMPRESSIONS%2CCTR%2CPOSITION&page=*"},{"$f":"実行!$C$12&分析!JP6","v":"https://search.google.com/search-console/performance/search-analytics?resource_id=sc-domain%3A〇〇〇.com&num_of_days=28&metrics=CLICKS%2CIMPRESSIONS%2CCTR%2CPOSITION&page=*"},{"$f":"実行!$C$12&分析!JQ6","v":"https://search.google.com/search-console/performance/search-analytics?resource_id=sc-domain%3A〇〇〇.com&num_of_days=28&metrics=CLICKS%2CIMPRESSIONS%2CCTR%2CPOSITION&page=*"},{"$f":"実行!$C$12&分析!JR6","v":"https://search.google.com/search-console/performance/search-analytics?resource_id=sc-domain%3A〇〇〇.com&num_of_days=28&metrics=CLICKS%2CIMPRESSIONS%2CCTR%2CPOSITION&page=*"},{"$f":"実行!$C$12&分析!JS6","v":"https://search.google.com/search-console/performance/search-analytics?resource_id=sc-domain%3A〇〇〇.com&num_of_days=28&metrics=CLICKS%2CIMPRESSIONS%2CCTR%2CPOSITION&page=*"},{"$f":"実行!$C$12&分析!JT6","v":"https://search.google.com/search-console/performance/search-analytics?resource_id=sc-domain%3A〇〇〇.com&num_of_days=28&metrics=CLICKS%2CIMPRESSIONS%2CCTR%2CPOSITION&page=*"},{"$f":"実行!$C$12&分析!JU6","v":"https://search.google.com/search-console/performance/search-analytics?resource_id=sc-domain%3A〇〇〇.com&num_of_days=28&metrics=CLICKS%2CIMPRESSIONS%2CCTR%2CPOSITION&page=*"},{"$f":"実行!$C$12&分析!JV6","v":"https://search.google.com/search-console/performance/search-analytics?resource_id=sc-domain%3A〇〇〇.com&num_of_days=28&metrics=CLICKS%2CIMPRESSIONS%2CCTR%2CPOSITION&page=*"},{"$f":"実行!$C$12&分析!JW6","v":"https://search.google.com/search-console/performance/search-analytics?resource_id=sc-domain%3A〇〇〇.com&num_of_days=28&metrics=CLICKS%2CIMPRESSIONS%2CCTR%2CPOSITION&page=*"},{"$f":"実行!$C$12&分析!JX6","v":"https://search.google.com/search-console/performance/search-analytics?resource_id=sc-domain%3A〇〇〇.com&num_of_days=28&metrics=CLICKS%2CIMPRESSIONS%2CCTR%2CPOSITION&page=*"},{"$f":"実行!$C$12&分析!JY6","v":"https://search.google.com/search-console/performance/search-analytics?resource_id=sc-domain%3A〇〇〇.com&num_of_days=28&metrics=CLICKS%2CIMPRESSIONS%2CCTR%2CPOSITION&page=*"},{"$f":"実行!$C$12&分析!JZ6","v":"https://search.google.com/search-console/performance/search-analytics?resource_id=sc-domain%3A〇〇〇.com&num_of_days=28&metrics=CLICKS%2CIMPRESSIONS%2CCTR%2CPOSITION&page=*"},{"$f":"実行!$C$12&分析!KA6","v":"https://search.google.com/search-console/performance/search-analytics?resource_id=sc-domain%3A〇〇〇.com&num_of_days=28&metrics=CLICKS%2CIMPRESSIONS%2CCTR%2CPOSITION&page=*"},{"$f":"実行!$C$12&分析!KB6","v":"https://search.google.com/search-console/performance/search-analytics?resource_id=sc-domain%3A〇〇〇.com&num_of_days=28&metrics=CLICKS%2CIMPRESSIONS%2CCTR%2CPOSITION&page=*"},{"$f":"実行!$C$12&分析!KC6","v":"https://search.google.com/search-console/performance/search-analytics?resource_id=sc-domain%3A〇〇〇.com&num_of_days=28&metrics=CLICKS%2CIMPRESSIONS%2CCTR%2CPOSITION&page=*"},{"$f":"実行!$C$12&分析!KD6","v":"https://search.google.com/search-console/performance/search-analytics?resource_id=sc-domain%3A〇〇〇.com&num_of_days=28&metrics=CLICKS%2CIMPRESSIONS%2CCTR%2CPOSITION&page=*"},{"$f":"実行!$C$12&分析!KE6","v":"https://search.google.com/search-console/performance/search-analytics?resource_id=sc-domain%3A〇〇〇.com&num_of_days=28&metrics=CLICKS%2CIMPRESSIONS%2CCTR%2CPOSITION&page=*"},{"$f":"実行!$C$12&分析!KF6","v":"https://search.google.com/search-console/performance/search-analytics?resource_id=sc-domain%3A〇〇〇.com&num_of_days=28&metrics=CLICKS%2CIMPRESSIONS%2CCTR%2CPOSITION&page=*"},{"$f":"実行!$C$12&分析!KG6","v":"https://search.google.com/search-console/performance/search-analytics?resource_id=sc-domain%3A〇〇〇.com&num_of_days=28&metrics=CLICKS%2CIMPRESSIONS%2CCTR%2CPOSITION&page=*"},{"$f":"実行!$C$12&分析!KH6","v":"https://search.google.com/search-console/performance/search-analytics?resource_id=sc-domain%3A〇〇〇.com&num_of_days=28&metrics=CLICKS%2CIMPRESSIONS%2CCTR%2CPOSITION&page=*"},{"$f":"実行!$C$12&分析!KI6","v":"https://search.google.com/search-console/performance/search-analytics?resource_id=sc-domain%3A〇〇〇.com&num_of_days=28&metrics=CLICKS%2CIMPRESSIONS%2CCTR%2CPOSITION&page=*"},{"$f":"実行!$C$12&分析!KJ6","v":"https://search.google.com/search-console/performance/search-analytics?resource_id=sc-domain%3A〇〇〇.com&num_of_days=28&metrics=CLICKS%2CIMPRESSIONS%2CCTR%2CPOSITION&page=*"},{"$f":"実行!$C$12&分析!KK6","v":"https://search.google.com/search-console/performance/search-analytics?resource_id=sc-domain%3A〇〇〇.com&num_of_days=28&metrics=CLICKS%2CIMPRESSIONS%2CCTR%2CPOSITION&page=*"},{"$f":"実行!$C$12&分析!KL6","v":"https://search.google.com/search-console/performance/search-analytics?resource_id=sc-domain%3A〇〇〇.com&num_of_days=28&metrics=CLICKS%2CIMPRESSIONS%2CCTR%2CPOSITION&page=*"},{"$f":"実行!$C$12&分析!KM6","v":"https://search.google.com/search-console/performance/search-analytics?resource_id=sc-domain%3A〇〇〇.com&num_of_days=28&metrics=CLICKS%2CIMPRESSIONS%2CCTR%2CPOSITION&page=*"},{"$f":"実行!$C$12&分析!KN6","v":"https://search.google.com/search-console/performance/search-analytics?resource_id=sc-domain%3A〇〇〇.com&num_of_days=28&metrics=CLICKS%2CIMPRESSIONS%2CCTR%2CPOSITION&page=*"},{"$f":"実行!$C$12&分析!KO6","v":"https://search.google.com/search-console/performance/search-analytics?resource_id=sc-domain%3A〇〇〇.com&num_of_days=28&metrics=CLICKS%2CIMPRESSIONS%2CCTR%2CPOSITION&page=*"},{"$f":"実行!$C$12&分析!KP6","v":"https://search.google.com/search-console/performance/search-analytics?resource_id=sc-domain%3A〇〇〇.com&num_of_days=28&metrics=CLICKS%2CIMPRESSIONS%2CCTR%2CPOSITION&page=*"},{"$f":"実行!$C$12&分析!KQ6","v":"https://search.google.com/search-console/performance/search-analytics?resource_id=sc-domain%3A〇〇〇.com&num_of_days=28&metrics=CLICKS%2CIMPRESSIONS%2CCTR%2CPOSITION&page=*"},{"$f":"実行!$C$12&分析!KR6","v":"https://search.google.com/search-console/performance/search-analytics?resource_id=sc-domain%3A〇〇〇.com&num_of_days=28&metrics=CLICKS%2CIMPRESSIONS%2CCTR%2CPOSITION&page=*"},{"$f":"実行!$C$12&分析!KS6","v":"https://search.google.com/search-console/performance/search-analytics?resource_id=sc-domain%3A〇〇〇.com&num_of_days=28&metrics=CLICKS%2CIMPRESSIONS%2CCTR%2CPOSITION&page=*"},{"$f":"実行!$C$12&分析!KT6","v":"https://search.google.com/search-console/performance/search-analytics?resource_id=sc-domain%3A〇〇〇.com&num_of_days=28&metrics=CLICKS%2CIMPRESSIONS%2CCTR%2CPOSITION&page=*"},{"$f":"実行!$C$12&分析!KU6","v":"https://search.google.com/search-console/performance/search-analytics?resource_id=sc-domain%3A〇〇〇.com&num_of_days=28&metrics=CLICKS%2CIMPRESSIONS%2CCTR%2CPOSITION&page=*"},{"$f":"実行!$C$12&分析!KV6","v":"https://search.google.com/search-console/performance/search-analytics?resource_id=sc-domain%3A〇〇〇.com&num_of_days=28&metrics=CLICKS%2CIMPRESSIONS%2CCTR%2CPOSITION&page=*"},{"$f":"実行!$C$12&分析!KW6","v":"https://search.google.com/search-console/performance/search-analytics?resource_id=sc-domain%3A〇〇〇.com&num_of_days=28&metrics=CLICKS%2CIMPRESSIONS%2CCTR%2CPOSITION&page=*"},{"$f":"実行!$C$12&分析!KX6","v":"https://search.google.com/search-console/performance/search-analytics?resource_id=sc-domain%3A〇〇〇.com&num_of_days=28&metrics=CLICKS%2CIMPRESSIONS%2CCTR%2CPOSITION&page=*"},{"$f":"実行!$C$12&分析!KY6","v":"https://search.google.com/search-console/performance/search-analytics?resource_id=sc-domain%3A〇〇〇.com&num_of_days=28&metrics=CLICKS%2CIMPRESSIONS%2CCTR%2CPOSITION&page=*"},{"$f":"実行!$C$12&分析!KZ6","v":"https://search.google.com/search-console/performance/search-analytics?resource_id=sc-domain%3A〇〇〇.com&num_of_days=28&metrics=CLICKS%2CIMPRESSIONS%2CCTR%2CPOSITION&page=*"},{"$f":"実行!$C$12&分析!LA6","v":"https://search.google.com/search-console/performance/search-analytics?resource_id=sc-domain%3A〇〇〇.com&num_of_days=28&metrics=CLICKS%2CIMPRESSIONS%2CCTR%2CPOSITION&page=*"},{"$f":"実行!$C$12&分析!LB6","v":"https://search.google.com/search-console/performance/search-analytics?resource_id=sc-domain%3A〇〇〇.com&num_of_days=28&metrics=CLICKS%2CIMPRESSIONS%2CCTR%2CPOSITION&page=*"},{"$f":"実行!$C$12&分析!LC6","v":"https://search.google.com/search-console/performance/search-analytics?resource_id=sc-domain%3A〇〇〇.com&num_of_days=28&metrics=CLICKS%2CIMPRESSIONS%2CCTR%2CPOSITION&page=*"},{"$f":"実行!$C$12&分析!LD6","v":"https://search.google.com/search-console/performance/search-analytics?resource_id=sc-domain%3A〇〇〇.com&num_of_days=28&metrics=CLICKS%2CIMPRESSIONS%2CCTR%2CPOSITION&page=*"},{"$f":"実行!$C$12&分析!LE6","v":"https://search.google.com/search-console/performance/search-analytics?resource_id=sc-domain%3A〇〇〇.com&num_of_days=28&metrics=CLICKS%2CIMPRESSIONS%2CCTR%2CPOSITION&page=*"},{"$f":"実行!$C$12&分析!LF6","v":"https://search.google.com/search-console/performance/search-analytics?resource_id=sc-domain%3A〇〇〇.com&num_of_days=28&metrics=CLICKS%2CIMPRESSIONS%2CCTR%2CPOSITION&page=*"},{"$f":"実行!$C$12&分析!LG6","v":"https://search.google.com/search-console/performance/search-analytics?resource_id=sc-domain%3A〇〇〇.com&num_of_days=28&metrics=CLICKS%2CIMPRESSIONS%2CCTR%2CPOSITION&page=*"},{"$f":"実行!$C$12&分析!LH6","v":"https://search.google.com/search-console/performance/search-analytics?resource_id=sc-domain%3A〇〇〇.com&num_of_days=28&metrics=CLICKS%2CIMPRESSIONS%2CCTR%2CPOSITION&page=*"},{"$f":"実行!$C$12&分析!LI6","v":"https://search.google.com/search-console/performance/search-analytics?resource_id=sc-domain%3A〇〇〇.com&num_of_days=28&metrics=CLICKS%2CIMPRESSIONS%2CCTR%2CPOSITION&page=*"},{"$f":"実行!$C$12&分析!LJ6","v":"https://search.google.com/search-console/performance/search-analytics?resource_id=sc-domain%3A〇〇〇.com&num_of_days=28&metrics=CLICKS%2CIMPRESSIONS%2CCTR%2CPOSITION&page=*"},{"$f":"実行!$C$12&分析!LK6","v":"https://search.google.com/search-console/performance/search-analytics?resource_id=sc-domain%3A〇〇〇.com&num_of_days=28&metrics=CLICKS%2CIMPRESSIONS%2CCTR%2CPOSITION&page=*"},{"$f":"実行!$C$12&分析!LL6","v":"https://search.google.com/search-console/performance/search-analytics?resource_id=sc-domain%3A〇〇〇.com&num_of_days=28&metrics=CLICKS%2CIMPRESSIONS%2CCTR%2CPOSITION&page=*"},{"$f":"実行!$C$12&分析!LM6","v":"https://search.google.com/search-console/performance/search-analytics?resource_id=sc-domain%3A〇〇〇.com&num_of_days=28&metrics=CLICKS%2CIMPRESSIONS%2CCTR%2CPOSITION&page=*"},{"$f":"実行!$C$12&分析!LN6","v":"https://search.google.com/search-console/performance/search-analytics?resource_id=sc-domain%3A〇〇〇.com&num_of_days=28&metrics=CLICKS%2CIMPRESSIONS%2CCTR%2CPOSITION&page=*"},{"$f":"実行!$C$12&分析!LO6","v":"https://search.google.com/search-console/performance/search-analytics?resource_id=sc-domain%3A〇〇〇.com&num_of_days=28&metrics=CLICKS%2CIMPRESSIONS%2CCTR%2CPOSITION&page=*"},{"$f":"実行!$C$12&分析!LP6","v":"https://search.google.com/search-console/performance/search-analytics?resource_id=sc-domain%3A〇〇〇.com&num_of_days=28&metrics=CLICKS%2CIMPRESSIONS%2CCTR%2CPOSITION&page=*"},{"$f":"実行!$C$12&分析!LQ6","v":"https://search.google.com/search-console/performance/search-analytics?resource_id=sc-domain%3A〇〇〇.com&num_of_days=28&metrics=CLICKS%2CIMPRESSIONS%2CCTR%2CPOSITION&page=*"},{"$f":"実行!$C$12&分析!LR6","v":"https://search.google.com/search-console/performance/search-analytics?resource_id=sc-domain%3A〇〇〇.com&num_of_days=28&metrics=CLICKS%2CIMPRESSIONS%2CCTR%2CPOSITION&page=*"},{"$f":"実行!$C$12&分析!LS6","v":"https://search.google.com/search-console/performance/search-analytics?resource_id=sc-domain%3A〇〇〇.com&num_of_days=28&metrics=CLICKS%2CIMPRESSIONS%2CCTR%2CPOSITION&page=*"},{"$f":"実行!$C$12&分析!LT6","v":"https://search.google.com/search-console/performance/search-analytics?resource_id=sc-domain%3A〇〇〇.com&num_of_days=28&metrics=CLICKS%2CIMPRESSIONS%2CCTR%2CPOSITION&page=*"},{"$f":"実行!$C$12&分析!LU6","v":"https://search.google.com/search-console/performance/search-analytics?resource_id=sc-domain%3A〇〇〇.com&num_of_days=28&metrics=CLICKS%2CIMPRESSIONS%2CCTR%2CPOSITION&page=*"},{"$f":"実行!$C$12&分析!LV6","v":"https://search.google.com/search-console/performance/search-analytics?resource_id=sc-domain%3A〇〇〇.com&num_of_days=28&metrics=CLICKS%2CIMPRESSIONS%2CCTR%2CPOSITION&page=*"},{"$f":"実行!$C$12&分析!LW6","v":"https://search.google.com/search-console/performance/search-analytics?resource_id=sc-domain%3A〇〇〇.com&num_of_days=28&metrics=CLICKS%2CIMPRESSIONS%2CCTR%2CPOSITION&page=*"},{"$f":"実行!$C$12&分析!LX6","v":"https://search.google.com/search-console/performance/search-analytics?resource_id=sc-domain%3A〇〇〇.com&num_of_days=28&metrics=CLICKS%2CIMPRESSIONS%2CCTR%2CPOSITION&page=*"},{"$f":"実行!$C$12&分析!LY6","v":"https://search.google.com/search-console/performance/search-analytics?resource_id=sc-domain%3A〇〇〇.com&num_of_days=28&metrics=CLICKS%2CIMPRESSIONS%2CCTR%2CPOSITION&page=*"},{"$f":"実行!$C$12&分析!LZ6","v":"https://search.google.com/search-console/performance/search-analytics?resource_id=sc-domain%3A〇〇〇.com&num_of_days=28&metrics=CLICKS%2CIMPRESSIONS%2CCTR%2CPOSITION&page=*"},{"$f":"実行!$C$12&分析!MA6","v":"https://search.google.com/search-console/performance/search-analytics?resource_id=sc-domain%3A〇〇〇.com&num_of_days=28&metrics=CLICKS%2CIMPRESSIONS%2CCTR%2CPOSITION&page=*"},{"$f":"実行!$C$12&分析!MB6","v":"https://search.google.com/search-console/performance/search-analytics?resource_id=sc-domain%3A〇〇〇.com&num_of_days=28&metrics=CLICKS%2CIMPRESSIONS%2CCTR%2CPOSITION&page=*"},{"$f":"実行!$C$12&分析!MC6","v":"https://search.google.com/search-console/performance/search-analytics?resource_id=sc-domain%3A〇〇〇.com&num_of_days=28&metrics=CLICKS%2CIMPRESSIONS%2CCTR%2CPOSITION&page=*"},{"$f":"実行!$C$12&分析!MD6","v":"https://search.google.com/search-console/performance/search-analytics?resource_id=sc-domain%3A〇〇〇.com&num_of_days=28&metrics=CLICKS%2CIMPRESSIONS%2CCTR%2CPOSITION&page=*"},{"$f":"実行!$C$12&分析!ME6","v":"https://search.google.com/search-console/performance/search-analytics?resource_id=sc-domain%3A〇〇〇.com&num_of_days=28&metrics=CLICKS%2CIMPRESSIONS%2CCTR%2CPOSITION&page=*"},{"$f":"実行!$C$12&分析!MF6","v":"https://search.google.com/search-console/performance/search-analytics?resource_id=sc-domain%3A〇〇〇.com&num_of_days=28&metrics=CLICKS%2CIMPRESSIONS%2CCTR%2CPOSITION&page=*"},{"$f":"実行!$C$12&分析!MG6","v":"https://search.google.com/search-console/performance/search-analytics?resource_id=sc-domain%3A〇〇〇.com&num_of_days=28&metrics=CLICKS%2CIMPRESSIONS%2CCTR%2CPOSITION&page=*"},{"$f":"実行!$C$12&分析!MH6","v":"https://search.google.com/search-console/performance/search-analytics?resource_id=sc-domain%3A〇〇〇.com&num_of_days=28&metrics=CLICKS%2CIMPRESSIONS%2CCTR%2CPOSITION&page=*"},{"$f":"実行!$C$12&分析!MI6","v":"https://search.google.com/search-console/performance/search-analytics?resource_id=sc-domain%3A〇〇〇.com&num_of_days=28&metrics=CLICKS%2CIMPRESSIONS%2CCTR%2CPOSITION&page=*"},{"$f":"実行!$C$12&分析!MJ6","v":"https://search.google.com/search-console/performance/search-analytics?resource_id=sc-domain%3A〇〇〇.com&num_of_days=28&metrics=CLICKS%2CIMPRESSIONS%2CCTR%2CPOSITION&page=*"},{"$f":"実行!$C$12&分析!MK6","v":"https://search.google.com/search-console/performance/search-analytics?resource_id=sc-domain%3A〇〇〇.com&num_of_days=28&metrics=CLICKS%2CIMPRESSIONS%2CCTR%2CPOSITION&page=*"},{"$f":"実行!$C$12&分析!ML6","v":"https://search.google.com/search-console/performance/search-analytics?resource_id=sc-domain%3A〇〇〇.com&num_of_days=28&metrics=CLICKS%2CIMPRESSIONS%2CCTR%2CPOSITION&page=*"},{"$f":"実行!$C$12&分析!MM6","v":"https://search.google.com/search-console/performance/search-analytics?resource_id=sc-domain%3A〇〇〇.com&num_of_days=28&metrics=CLICKS%2CIMPRESSIONS%2CCTR%2CPOSITION&page=*"},{"$f":"実行!$C$12&分析!MN6","v":"https://search.google.com/search-console/performance/search-analytics?resource_id=sc-domain%3A〇〇〇.com&num_of_days=28&metrics=CLICKS%2CIMPRESSIONS%2CCTR%2CPOSITION&page=*"},{"$f":"実行!$C$12&分析!MO6","v":"https://search.google.com/search-console/performance/search-analytics?resource_id=sc-domain%3A〇〇〇.com&num_of_days=28&metrics=CLICKS%2CIMPRESSIONS%2CCTR%2CPOSITION&page=*"},{"$f":"実行!$C$12&分析!MP6","v":"https://search.google.com/search-console/performance/search-analytics?resource_id=sc-domain%3A〇〇〇.com&num_of_days=28&metrics=CLICKS%2CIMPRESSIONS%2CCTR%2CPOSITION&page=*"},{"$f":"実行!$C$12&分析!MQ6","v":"https://search.google.com/search-console/performance/search-analytics?resource_id=sc-domain%3A〇〇〇.com&num_of_days=28&metrics=CLICKS%2CIMPRESSIONS%2CCTR%2CPOSITION&page=*"},{"$f":"実行!$C$12&分析!MR6","v":"https://search.google.com/search-console/performance/search-analytics?resource_id=sc-domain%3A〇〇〇.com&num_of_days=28&metrics=CLICKS%2CIMPRESSIONS%2CCTR%2CPOSITION&page=*"},{"$f":"実行!$C$12&分析!MS6","v":"https://search.google.com/search-console/performance/search-analytics?resource_id=sc-domain%3A〇〇〇.com&num_of_days=28&metrics=CLICKS%2CIMPRESSIONS%2CCTR%2CPOSITION&page=*"},{"$f":"実行!$C$12&分析!MT6","v":"https://search.google.com/search-console/performance/search-analytics?resource_id=sc-domain%3A〇〇〇.com&num_of_days=28&metrics=CLICKS%2CIMPRESSIONS%2CCTR%2CPOSITION&page=*"},{"$f":"実行!$C$12&分析!MU6","v":"https://search.google.com/search-console/performance/search-analytics?resource_id=sc-domain%3A〇〇〇.com&num_of_days=28&metrics=CLICKS%2CIMPRESSIONS%2CCTR%2CPOSITION&page=*"},{"$f":"実行!$C$12&分析!MV6","v":"https://search.google.com/search-console/performance/search-analytics?resource_id=sc-domain%3A〇〇〇.com&num_of_days=28&metrics=CLICKS%2CIMPRESSIONS%2CCTR%2CPOSITION&page=*"},{"$f":"実行!$C$12&分析!MW6","v":"https://search.google.com/search-console/performance/search-analytics?resource_id=sc-domain%3A〇〇〇.com&num_of_days=28&metrics=CLICKS%2CIMPRESSIONS%2CCTR%2CPOSITION&page=*"},{"$f":"実行!$C$12&分析!MX6","v":"https://search.google.com/search-console/performance/search-analytics?resource_id=sc-domain%3A〇〇〇.com&num_of_days=28&metrics=CLICKS%2CIMPRESSIONS%2CCTR%2CPOSITION&page=*"},{"$f":"実行!$C$12&分析!MY6","v":"https://search.google.com/search-console/performance/search-analytics?resource_id=sc-domain%3A〇〇〇.com&num_of_days=28&metrics=CLICKS%2CIMPRESSIONS%2CCTR%2CPOSITION&page=*"},{"$f":"実行!$C$12&分析!MZ6","v":"https://search.google.com/search-console/performance/search-analytics?resource_id=sc-domain%3A〇〇〇.com&num_of_days=28&metrics=CLICKS%2CIMPRESSIONS%2CCTR%2CPOSITION&page=*"},{"$f":"実行!$C$12&分析!NA6","v":"https://search.google.com/search-console/performance/search-analytics?resource_id=sc-domain%3A〇〇〇.com&num_of_days=28&metrics=CLICKS%2CIMPRESSIONS%2CCTR%2CPOSITION&page=*"},{"$f":"実行!$C$12&分析!NB6","v":"https://search.google.com/search-console/performance/search-analytics?resource_id=sc-domain%3A〇〇〇.com&num_of_days=28&metrics=CLICKS%2CIMPRESSIONS%2CCTR%2CPOSITION&page=*"},{"$f":"実行!$C$12&分析!NC6","v":"https://search.google.com/search-console/performance/search-analytics?resource_id=sc-domain%3A〇〇〇.com&num_of_days=28&metrics=CLICKS%2CIMPRESSIONS%2CCTR%2CPOSITION&page=*"},{"$f":"実行!$C$12&分析!ND6","v":"https://search.google.com/search-console/performance/search-analytics?resource_id=sc-domain%3A〇〇〇.com&num_of_days=28&metrics=CLICKS%2CIMPRESSIONS%2CCTR%2CPOSITION&page=*"},{"$f":"実行!$C$12&分析!NE6","v":"https://search.google.com/search-console/performance/search-analytics?resource_id=sc-domain%3A〇〇〇.com&num_of_days=28&metrics=CLICKS%2CIMPRESSIONS%2CCTR%2CPOSITION&page=*"},{"$f":"実行!$C$12&分析!NF6","v":"https://search.google.com/search-console/performance/search-analytics?resource_id=sc-domain%3A〇〇〇.com&num_of_days=28&metrics=CLICKS%2CIMPRESSIONS%2CCTR%2CPOSITION&page=*"},{"$f":"実行!$C$12&分析!NG6","v":"https://search.google.com/search-console/performance/search-analytics?resource_id=sc-domain%3A〇〇〇.com&num_of_days=28&metrics=CLICKS%2CIMPRESSIONS%2CCTR%2CPOSITION&page=*"},{"$f":"実行!$C$12&分析!NH6","v":"https://search.google.com/search-console/performance/search-analytics?resource_id=sc-domain%3A〇〇〇.com&num_of_days=28&metrics=CLICKS%2CIMPRESSIONS%2CCTR%2CPOSITION&page=*"},{"$f":"実行!$C$12&分析!NI6","v":"https://search.google.com/search-console/performance/search-analytics?resource_id=sc-domain%3A〇〇〇.com&num_of_days=28&metrics=CLICKS%2CIMPRESSIONS%2CCTR%2CPOSITION&page=*"},{"$f":"実行!$C$12&分析!NJ6","v":"https://search.google.com/search-console/performance/search-analytics?resource_id=sc-domain%3A〇〇〇.com&num_of_days=28&metrics=CLICKS%2CIMPRESSIONS%2CCTR%2CPOSITION&page=*"},{"$f":"実行!$C$12&分析!NK6","v":"https://search.google.com/search-console/performance/search-analytics?resource_id=sc-domain%3A〇〇〇.com&num_of_days=28&metrics=CLICKS%2CIMPRESSIONS%2CCTR%2CPOSITION&page=*"},{"$f":"実行!$C$12&分析!NL6","v":"https://search.google.com/search-console/performance/search-analytics?resource_id=sc-domain%3A〇〇〇.com&num_of_days=28&metrics=CLICKS%2CIMPRESSIONS%2CCTR%2CPOSITION&page=*"},{"$f":"実行!$C$12&分析!NM6","v":"https://search.google.com/search-console/performance/search-analytics?resource_id=sc-domain%3A〇〇〇.com&num_of_days=28&metrics=CLICKS%2CIMPRESSIONS%2CCTR%2CPOSITION&page=*"},{"$f":"実行!$C$12&分析!NN6","v":"https://search.google.com/search-console/performance/search-analytics?resource_id=sc-domain%3A〇〇〇.com&num_of_days=28&metrics=CLICKS%2CIMPRESSIONS%2CCTR%2CPOSITION&page=*"},{"$f":"実行!$C$12&分析!NO6","v":"https://search.google.com/search-console/performance/search-analytics?resource_id=sc-domain%3A〇〇〇.com&num_of_days=28&metrics=CLICKS%2CIMPRESSIONS%2CCTR%2CPOSITION&page=*"},{"$f":"実行!$C$12&分析!NP6","v":"https://search.google.com/search-console/performance/search-analytics?resource_id=sc-domain%3A〇〇〇.com&num_of_days=28&metrics=CLICKS%2CIMPRESSIONS%2CCTR%2CPOSITION&page=*"},{"$f":"実行!$C$12&分析!NQ6","v":"https://search.google.com/search-console/performance/search-analytics?resource_id=sc-domain%3A〇〇〇.com&num_of_days=28&metrics=CLICKS%2CIMPRESSIONS%2CCTR%2CPOSITION&page=*"},{"$f":"実行!$C$12&分析!NR6","v":"https://search.google.com/search-console/performance/search-analytics?resource_id=sc-domain%3A〇〇〇.com&num_of_days=28&metrics=CLICKS%2CIMPRESSIONS%2CCTR%2CPOSITION&page=*"},{"$f":"実行!$C$12&分析!NS6","v":"https://search.google.com/search-console/performance/search-analytics?resource_id=sc-domain%3A〇〇〇.com&num_of_days=28&metrics=CLICKS%2CIMPRESSIONS%2CCTR%2CPOSITION&page=*"},{"$f":"実行!$C$12&分析!NT6","v":"https://search.google.com/search-console/performance/search-analytics?resource_id=sc-domain%3A〇〇〇.com&num_of_days=28&metrics=CLICKS%2CIMPRESSIONS%2CCTR%2CPOSITION&page=*"},{"$f":"実行!$C$12&分析!NU6","v":"https://search.google.com/search-console/performance/search-analytics?resource_id=sc-domain%3A〇〇〇.com&num_of_days=28&metrics=CLICKS%2CIMPRESSIONS%2CCTR%2CPOSITION&page=*"},{"$f":"実行!$C$12&分析!NV6","v":"https://search.google.com/search-console/performance/search-analytics?resource_id=sc-domain%3A〇〇〇.com&num_of_days=28&metrics=CLICKS%2CIMPRESSIONS%2CCTR%2CPOSITION&page=*"},{"$f":"実行!$C$12&分析!NW6","v":"https://search.google.com/search-console/performance/search-analytics?resource_id=sc-domain%3A〇〇〇.com&num_of_days=28&metrics=CLICKS%2CIMPRESSIONS%2CCTR%2CPOSITION&page=*"},{"$f":"実行!$C$12&分析!NX6","v":"https://search.google.com/search-console/performance/search-analytics?resource_id=sc-domain%3A〇〇〇.com&num_of_days=28&metrics=CLICKS%2CIMPRESSIONS%2CCTR%2CPOSITION&page=*"},{"$f":"実行!$C$12&分析!NY6","v":"https://search.google.com/search-console/performance/search-analytics?resource_id=sc-domain%3A〇〇〇.com&num_of_days=28&metrics=CLICKS%2CIMPRESSIONS%2CCTR%2CPOSITION&page=*"},{"$f":"実行!$C$12&分析!NZ6","v":"https://search.google.com/search-console/performance/search-analytics?resource_id=sc-domain%3A〇〇〇.com&num_of_days=28&metrics=CLICKS%2CIMPRESSIONS%2CCTR%2CPOSITION&page=*"},{"$f":"実行!$C$12&分析!OA6","v":"https://search.google.com/search-console/performance/search-analytics?resource_id=sc-domain%3A〇〇〇.com&num_of_days=28&metrics=CLICKS%2CIMPRESSIONS%2CCTR%2CPOSITION&page=*"},{"$f":"実行!$C$12&分析!OB6","v":"https://search.google.com/search-console/performance/search-analytics?resource_id=sc-domain%3A〇〇〇.com&num_of_days=28&metrics=CLICKS%2CIMPRESSIONS%2CCTR%2CPOSITION&page=*"},{"$f":"実行!$C$12&分析!OC6","v":"https://search.google.com/search-console/performance/search-analytics?resource_id=sc-domain%3A〇〇〇.com&num_of_days=28&metrics=CLICKS%2CIMPRESSIONS%2CCTR%2CPOSITION&page=*"},{"$f":"実行!$C$12&分析!OD6","v":"https://search.google.com/search-console/performance/search-analytics?resource_id=sc-domain%3A〇〇〇.com&num_of_days=28&metrics=CLICKS%2CIMPRESSIONS%2CCTR%2CPOSITION&page=*"},{"$f":"実行!$C$12&分析!OE6","v":"https://search.google.com/search-console/performance/search-analytics?resource_id=sc-domain%3A〇〇〇.com&num_of_days=28&metrics=CLICKS%2CIMPRESSIONS%2CCTR%2CPOSITION&page=*"},{"$f":"実行!$C$12&分析!OF6","v":"https://search.google.com/search-console/performance/search-analytics?resource_id=sc-domain%3A〇〇〇.com&num_of_days=28&metrics=CLICKS%2CIMPRESSIONS%2CCTR%2CPOSITION&page=*"},{"$f":"実行!$C$12&分析!OG6","v":"https://search.google.com/search-console/performance/search-analytics?resource_id=sc-domain%3A〇〇〇.com&num_of_days=28&metrics=CLICKS%2CIMPRESSIONS%2CCTR%2CPOSITION&page=*"},{"$f":"実行!$C$12&分析!OH6","v":"https://search.google.com/search-console/performance/search-analytics?resource_id=sc-domain%3A〇〇〇.com&num_of_days=28&metrics=CLICKS%2CIMPRESSIONS%2CCTR%2CPOSITION&page=*"},{"$f":"実行!$C$12&分析!OI6","v":"https://search.google.com/search-console/performance/search-analytics?resource_id=sc-domain%3A〇〇〇.com&num_of_days=28&metrics=CLICKS%2CIMPRESSIONS%2CCTR%2CPOSITION&page=*"},{"$f":"実行!$C$12&分析!OJ6","v":"https://search.google.com/search-console/performance/search-analytics?resource_id=sc-domain%3A〇〇〇.com&num_of_days=28&metrics=CLICKS%2CIMPRESSIONS%2CCTR%2CPOSITION&page=*"},{"$f":"実行!$C$12&分析!OK6","v":"https://search.google.com/search-console/performance/search-analytics?resource_id=sc-domain%3A〇〇〇.com&num_of_days=28&metrics=CLICKS%2CIMPRESSIONS%2CCTR%2CPOSITION&page=*"},{"$f":"実行!$C$12&分析!OL6","v":"https://search.google.com/search-console/performance/search-analytics?resource_id=sc-domain%3A〇〇〇.com&num_of_days=28&metrics=CLICKS%2CIMPRESSIONS%2CCTR%2CPOSITION&page=*"},{"$f":"実行!$C$12&分析!OM6","v":"https://search.google.com/search-console/performance/search-analytics?resource_id=sc-domain%3A〇〇〇.com&num_of_days=28&metrics=CLICKS%2CIMPRESSIONS%2CCTR%2CPOSITION&page=*"},{"$f":"実行!$C$12&分析!ON6","v":"https://search.google.com/search-console/performance/search-analytics?resource_id=sc-domain%3A〇〇〇.com&num_of_days=28&metrics=CLICKS%2CIMPRESSIONS%2CCTR%2CPOSITION&page=*"},{"$f":"実行!$C$12&分析!OO6","v":"https://search.google.com/search-console/performance/search-analytics?resource_id=sc-domain%3A〇〇〇.com&num_of_days=28&metrics=CLICKS%2CIMPRESSIONS%2CCTR%2CPOSITION&page=*"},{"$f":"実行!$C$12&分析!OP6","v":"https://search.google.com/search-console/performance/search-analytics?resource_id=sc-domain%3A〇〇〇.com&num_of_days=28&metrics=CLICKS%2CIMPRESSIONS%2CCTR%2CPOSITION&page=*"},{"$f":"実行!$C$12&分析!OQ6","v":"https://search.google.com/search-console/performance/search-analytics?resource_id=sc-domain%3A〇〇〇.com&num_of_days=28&metrics=CLICKS%2CIMPRESSIONS%2CCTR%2CPOSITION&page=*"},{"$f":"実行!$C$12&分析!OR6","v":"https://search.google.com/search-console/performance/search-analytics?resource_id=sc-domain%3A〇〇〇.com&num_of_days=28&metrics=CLICKS%2CIMPRESSIONS%2CCTR%2CPOSITION&page=*"},{"$f":"実行!$C$12&分析!OS6","v":"https://search.google.com/search-console/performance/search-analytics?resource_id=sc-domain%3A〇〇〇.com&num_of_days=28&metrics=CLICKS%2CIMPRESSIONS%2CCTR%2CPOSITION&page=*"},{"$f":"実行!$C$12&分析!OT6","v":"https://search.google.com/search-console/performance/search-analytics?resource_id=sc-domain%3A〇〇〇.com&num_of_days=28&metrics=CLICKS%2CIMPRESSIONS%2CCTR%2CPOSITION&page=*"},{"$f":"実行!$C$12&分析!OU6","v":"https://search.google.com/search-console/performance/search-analytics?resource_id=sc-domain%3A〇〇〇.com&num_of_days=28&metrics=CLICKS%2CIMPRESSIONS%2CCTR%2CPOSITION&page=*"},{"$f":"実行!$C$12&分析!OV6","v":"https://search.google.com/search-console/performance/search-analytics?resource_id=sc-domain%3A〇〇〇.com&num_of_days=28&metrics=CLICKS%2CIMPRESSIONS%2CCTR%2CPOSITION&page=*"},{"$f":"実行!$C$12&分析!OW6","v":"https://search.google.com/search-console/performance/search-analytics?resource_id=sc-domain%3A〇〇〇.com&num_of_days=28&metrics=CLICKS%2CIMPRESSIONS%2CCTR%2CPOSITION&page=*"},{"$f":"実行!$C$12&分析!OX6","v":"https://search.google.com/search-console/performance/search-analytics?resource_id=sc-domain%3A〇〇〇.com&num_of_days=28&metrics=CLICKS%2CIMPRESSIONS%2CCTR%2CPOSITION&page=*"},{"$f":"実行!$C$12&分析!OY6","v":"https://search.google.com/search-console/performance/search-analytics?resource_id=sc-domain%3A〇〇〇.com&num_of_days=28&metrics=CLICKS%2CIMPRESSIONS%2CCTR%2CPOSITION&page=*"},{"$f":"実行!$C$12&分析!OZ6","v":"https://search.google.com/search-console/performance/search-analytics?resource_id=sc-domain%3A〇〇〇.com&num_of_days=28&metrics=CLICKS%2CIMPRESSIONS%2CCTR%2CPOSITION&page=*"},{"$f":"実行!$C$12&分析!PA6","v":"https://search.google.com/search-console/performance/search-analytics?resource_id=sc-domain%3A〇〇〇.com&num_of_days=28&metrics=CLICKS%2CIMPRESSIONS%2CCTR%2CPOSITION&page=*"},{"$f":"実行!$C$12&分析!PB6","v":"https://search.google.com/search-console/performance/search-analytics?resource_id=sc-domain%3A〇〇〇.com&num_of_days=28&metrics=CLICKS%2CIMPRESSIONS%2CCTR%2CPOSITION&page=*"},{"$f":"実行!$C$12&分析!PC6","v":"https://search.google.com/search-console/performance/search-analytics?resource_id=sc-domain%3A〇〇〇.com&num_of_days=28&metrics=CLICKS%2CIMPRESSIONS%2CCTR%2CPOSITION&page=*"},{"$f":"実行!$C$12&分析!PD6","v":"https://search.google.com/search-console/performance/search-analytics?resource_id=sc-domain%3A〇〇〇.com&num_of_days=28&metrics=CLICKS%2CIMPRESSIONS%2CCTR%2CPOSITION&page=*"},{"$f":"実行!$C$12&分析!PE6","v":"https://search.google.com/search-console/performance/search-analytics?resource_id=sc-domain%3A〇〇〇.com&num_of_days=28&metrics=CLICKS%2CIMPRESSIONS%2CCTR%2CPOSITION&page=*"},{"$f":"実行!$C$12&分析!PF6","v":"https://search.google.com/search-console/performance/search-analytics?resource_id=sc-domain%3A〇〇〇.com&num_of_days=28&metrics=CLICKS%2CIMPRESSIONS%2CCTR%2CPOSITION&page=*"},{"$f":"実行!$C$12&分析!PG6","v":"https://search.google.com/search-console/performance/search-analytics?resource_id=sc-domain%3A〇〇〇.com&num_of_days=28&metrics=CLICKS%2CIMPRESSIONS%2CCTR%2CPOSITION&page=*"},{"$f":"実行!$C$12&分析!PH6","v":"https://search.google.com/search-console/performance/search-analytics?resource_id=sc-domain%3A〇〇〇.com&num_of_days=28&metrics=CLICKS%2CIMPRESSIONS%2CCTR%2CPOSITION&page=*"},{"$f":"実行!$C$12&分析!PI6","v":"https://search.google.com/search-console/performance/search-analytics?resource_id=sc-domain%3A〇〇〇.com&num_of_days=28&metrics=CLICKS%2CIMPRESSIONS%2CCTR%2CPOSITION&page=*"},{"$f":"実行!$C$12&分析!PJ6","v":"https://search.google.com/search-console/performance/search-analytics?resource_id=sc-domain%3A〇〇〇.com&num_of_days=28&metrics=CLICKS%2CIMPRESSIONS%2CCTR%2CPOSITION&page=*"},{"$f":"実行!$C$12&分析!PK6","v":"https://search.google.com/search-console/performance/search-analytics?resource_id=sc-domain%3A〇〇〇.com&num_of_days=28&metrics=CLICKS%2CIMPRESSIONS%2CCTR%2CPOSITION&page=*"},{"$f":"実行!$C$12&分析!PL6","v":"https://search.google.com/search-console/performance/search-analytics?resource_id=sc-domain%3A〇〇〇.com&num_of_days=28&metrics=CLICKS%2CIMPRESSIONS%2CCTR%2CPOSITION&page=*"},{"$f":"実行!$C$12&分析!PM6","v":"https://search.google.com/search-console/performance/search-analytics?resource_id=sc-domain%3A〇〇〇.com&num_of_days=28&metrics=CLICKS%2CIMPRESSIONS%2CCTR%2CPOSITION&page=*"},{"$f":"実行!$C$12&分析!PN6","v":"https://search.google.com/search-console/performance/search-analytics?resource_id=sc-domain%3A〇〇〇.com&num_of_days=28&metrics=CLICKS%2CIMPRESSIONS%2CCTR%2CPOSITION&page=*"},{"$f":"実行!$C$12&分析!PO6","v":"https://search.google.com/search-console/performance/search-analytics?resource_id=sc-domain%3A〇〇〇.com&num_of_days=28&metrics=CLICKS%2CIMPRESSIONS%2CCTR%2CPOSITION&page=*"},{"$f":"実行!$C$12&分析!PP6","v":"https://search.google.com/search-console/performance/search-analytics?resource_id=sc-domain%3A〇〇〇.com&num_of_days=28&metrics=CLICKS%2CIMPRESSIONS%2CCTR%2CPOSITION&page=*"},{"$f":"実行!$C$12&分析!PQ6","v":"https://search.google.com/search-console/performance/search-analytics?resource_id=sc-domain%3A〇〇〇.com&num_of_days=28&metrics=CLICKS%2CIMPRESSIONS%2CCTR%2CPOSITION&page=*"},{"$f":"実行!$C$12&分析!PR6","v":"https://search.google.com/search-console/performance/search-analytics?resource_id=sc-domain%3A〇〇〇.com&num_of_days=28&metrics=CLICKS%2CIMPRESSIONS%2CCTR%2CPOSITION&page=*"},{"$f":"実行!$C$12&分析!PS6","v":"https://search.google.com/search-console/performance/search-analytics?resource_id=sc-domain%3A〇〇〇.com&num_of_days=28&metrics=CLICKS%2CIMPRESSIONS%2CCTR%2CPOSITION&page=*"},{"$f":"実行!$C$12&分析!PT6","v":"https://search.google.com/search-console/performance/search-analytics?resource_id=sc-domain%3A〇〇〇.com&num_of_days=28&metrics=CLICKS%2CIMPRESSIONS%2CCTR%2CPOSITION&page=*"},{"$f":"実行!$C$12&分析!PU6","v":"https://search.google.com/search-console/performance/search-analytics?resource_id=sc-domain%3A〇〇〇.com&num_of_days=28&metrics=CLICKS%2CIMPRESSIONS%2CCTR%2CPOSITION&page=*"},{"$f":"実行!$C$12&分析!PV6","v":"https://search.google.com/search-console/performance/search-analytics?resource_id=sc-domain%3A〇〇〇.com&num_of_days=28&metrics=CLICKS%2CIMPRESSIONS%2CCTR%2CPOSITION&page=*"},{"$f":"実行!$C$12&分析!PW6","v":"https://search.google.com/search-console/performance/search-analytics?resource_id=sc-domain%3A〇〇〇.com&num_of_days=28&metrics=CLICKS%2CIMPRESSIONS%2CCTR%2CPOSITION&page=*"},{"$f":"実行!$C$12&分析!PX6","v":"https://search.google.com/search-console/performance/search-analytics?resource_id=sc-domain%3A〇〇〇.com&num_of_days=28&metrics=CLICKS%2CIMPRESSIONS%2CCTR%2CPOSITION&page=*"},{"$f":"実行!$C$12&分析!PY6","v":"https://search.google.com/search-console/performance/search-analytics?resource_id=sc-domain%3A〇〇〇.com&num_of_days=28&metrics=CLICKS%2CIMPRESSIONS%2CCTR%2CPOSITION&page=*"},{"$f":"実行!$C$12&分析!PZ6","v":"https://search.google.com/search-console/performance/search-analytics?resource_id=sc-domain%3A〇〇〇.com&num_of_days=28&metrics=CLICKS%2CIMPRESSIONS%2CCTR%2CPOSITION&page=*"},{"$f":"実行!$C$12&分析!QA6","v":"https://search.google.com/search-console/performance/search-analytics?resource_id=sc-domain%3A〇〇〇.com&num_of_days=28&metrics=CLICKS%2CIMPRESSIONS%2CCTR%2CPOSITION&page=*"},{"$f":"実行!$C$12&分析!QB6","v":"https://search.google.com/search-console/performance/search-analytics?resource_id=sc-domain%3A〇〇〇.com&num_of_days=28&metrics=CLICKS%2CIMPRESSIONS%2CCTR%2CPOSITION&page=*"},{"$f":"実行!$C$12&分析!QC6","v":"https://search.google.com/search-console/performance/search-analytics?resource_id=sc-domain%3A〇〇〇.com&num_of_days=28&metrics=CLICKS%2CIMPRESSIONS%2CCTR%2CPOSITION&page=*"},{"$f":"実行!$C$12&分析!QD6","v":"https://search.google.com/search-console/performance/search-analytics?resource_id=sc-domain%3A〇〇〇.com&num_of_days=28&metrics=CLICKS%2CIMPRESSIONS%2CCTR%2CPOSITION&page=*"},{"$f":"実行!$C$12&分析!QE6","v":"https://search.google.com/search-console/performance/search-analytics?resource_id=sc-domain%3A〇〇〇.com&num_of_days=28&metrics=CLICKS%2CIMPRESSIONS%2CCTR%2CPOSITION&page=*"},{"$f":"実行!$C$12&分析!QF6","v":"https://search.google.com/search-console/performance/search-analytics?resource_id=sc-domain%3A〇〇〇.com&num_of_days=28&metrics=CLICKS%2CIMPRESSIONS%2CCTR%2CPOSITION&page=*"},{"$f":"実行!$C$12&分析!QG6","v":"https://search.google.com/search-console/performance/search-analytics?resource_id=sc-domain%3A〇〇〇.com&num_of_days=28&metrics=CLICKS%2CIMPRESSIONS%2CCTR%2CPOSITION&page=*"},{"$f":"実行!$C$12&分析!QH6","v":"https://search.google.com/search-console/performance/search-analytics?resource_id=sc-domain%3A〇〇〇.com&num_of_days=28&metrics=CLICKS%2CIMPRESSIONS%2CCTR%2CPOSITION&page=*"},{"$f":"実行!$C$12&分析!QI6","v":"https://search.google.com/search-console/performance/search-analytics?resource_id=sc-domain%3A〇〇〇.com&num_of_days=28&metrics=CLICKS%2CIMPRESSIONS%2CCTR%2CPOSITION&page=*"},{"$f":"実行!$C$12&分析!QJ6","v":"https://search.google.com/search-console/performance/search-analytics?resource_id=sc-domain%3A〇〇〇.com&num_of_days=28&metrics=CLICKS%2CIMPRESSIONS%2CCTR%2CPOSITION&page=*"},{"$f":"実行!$C$12&分析!QK6","v":"https://search.google.com/search-console/performance/search-analytics?resource_id=sc-domain%3A〇〇〇.com&num_of_days=28&metrics=CLICKS%2CIMPRESSIONS%2CCTR%2CPOSITION&page=*"},{"$f":"実行!$C$12&分析!QL6","v":"https://search.google.com/search-console/performance/search-analytics?resource_id=sc-domain%3A〇〇〇.com&num_of_days=28&metrics=CLICKS%2CIMPRESSIONS%2CCTR%2CPOSITION&page=*"},{"$f":"実行!$C$12&分析!QM6","v":"https://search.google.com/search-console/performance/search-analytics?resource_id=sc-domain%3A〇〇〇.com&num_of_days=28&metrics=CLICKS%2CIMPRESSIONS%2CCTR%2CPOSITION&page=*"},{"$f":"実行!$C$12&分析!QN6","v":"https://search.google.com/search-console/performance/search-analytics?resource_id=sc-domain%3A〇〇〇.com&num_of_days=28&metrics=CLICKS%2CIMPRESSIONS%2CCTR%2CPOSITION&page=*"},{"$f":"実行!$C$12&分析!QO6","v":"https://search.google.com/search-console/performance/search-analytics?resource_id=sc-domain%3A〇〇〇.com&num_of_days=28&metrics=CLICKS%2CIMPRESSIONS%2CCTR%2CPOSITION&page=*"},{"$f":"実行!$C$12&分析!QP6","v":"https://search.google.com/search-console/performance/search-analytics?resource_id=sc-domain%3A〇〇〇.com&num_of_days=28&metrics=CLICKS%2CIMPRESSIONS%2CCTR%2CPOSITION&page=*"},{"$f":"実行!$C$12&分析!QQ6","v":"https://search.google.com/search-console/performance/search-analytics?resource_id=sc-domain%3A〇〇〇.com&num_of_days=28&metrics=CLICKS%2CIMPRESSIONS%2CCTR%2CPOSITION&page=*"},{"$f":"実行!$C$12&分析!QR6","v":"https://search.google.com/search-console/performance/search-analytics?resource_id=sc-domain%3A〇〇〇.com&num_of_days=28&metrics=CLICKS%2CIMPRESSIONS%2CCTR%2CPOSITION&page=*"},{"$f":"実行!$C$12&分析!QS6","v":"https://search.google.com/search-console/performance/search-analytics?resource_id=sc-domain%3A〇〇〇.com&num_of_days=28&metrics=CLICKS%2CIMPRESSIONS%2CCTR%2CPOSITION&page=*"},{"$f":"実行!$C$12&分析!QT6","v":"https://search.google.com/search-console/performance/search-analytics?resource_id=sc-domain%3A〇〇〇.com&num_of_days=28&metrics=CLICKS%2CIMPRESSIONS%2CCTR%2CPOSITION&page=*"},{"$f":"実行!$C$12&分析!QU6","v":"https://search.google.com/search-console/performance/search-analytics?resource_id=sc-domain%3A〇〇〇.com&num_of_days=28&metrics=CLICKS%2CIMPRESSIONS%2CCTR%2CPOSITION&page=*"},{"$f":"実行!$C$12&分析!QV6","v":"https://search.google.com/search-console/performance/search-analytics?resource_id=sc-domain%3A〇〇〇.com&num_of_days=28&metrics=CLICKS%2CIMPRESSIONS%2CCTR%2CPOSITION&page=*"},{"$f":"実行!$C$12&分析!QW6","v":"https://search.google.com/search-console/performance/search-analytics?resource_id=sc-domain%3A〇〇〇.com&num_of_days=28&metrics=CLICKS%2CIMPRESSIONS%2CCTR%2CPOSITION&page=*"},{"$f":"実行!$C$12&分析!QX6","v":"https://search.google.com/search-console/performance/search-analytics?resource_id=sc-domain%3A〇〇〇.com&num_of_days=28&metrics=CLICKS%2CIMPRESSIONS%2CCTR%2CPOSITION&page=*"},{"$f":"実行!$C$12&分析!QY6","v":"https://search.google.com/search-console/performance/search-analytics?resource_id=sc-domain%3A〇〇〇.com&num_of_days=28&metrics=CLICKS%2CIMPRESSIONS%2CCTR%2CPOSITION&page=*"},{"$f":"実行!$C$12&分析!QZ6","v":"https://search.google.com/search-console/performance/search-analytics?resource_id=sc-domain%3A〇〇〇.com&num_of_days=28&metrics=CLICKS%2CIMPRESSIONS%2CCTR%2CPOSITION&page=*"},{"$f":"実行!$C$12&分析!RA6","v":"https://search.google.com/search-console/performance/search-analytics?resource_id=sc-domain%3A〇〇〇.com&num_of_days=28&metrics=CLICKS%2CIMPRESSIONS%2CCTR%2CPOSITION&page=*"},{"$f":"実行!$C$12&分析!RB6","v":"https://search.google.com/search-console/performance/search-analytics?resource_id=sc-domain%3A〇〇〇.com&num_of_days=28&metrics=CLICKS%2CIMPRESSIONS%2CCTR%2CPOSITION&page=*"},{"$f":"実行!$C$12&分析!RC6","v":"https://search.google.com/search-console/performance/search-analytics?resource_id=sc-domain%3A〇〇〇.com&num_of_days=28&metrics=CLICKS%2CIMPRESSIONS%2CCTR%2CPOSITION&page=*"},{"$f":"実行!$C$12&分析!RD6","v":"https://search.google.com/search-console/performance/search-analytics?resource_id=sc-domain%3A〇〇〇.com&num_of_days=28&metrics=CLICKS%2CIMPRESSIONS%2CCTR%2CPOSITION&page=*"},{"$f":"実行!$C$12&分析!RE6","v":"https://search.google.com/search-console/performance/search-analytics?resource_id=sc-domain%3A〇〇〇.com&num_of_days=28&metrics=CLICKS%2CIMPRESSIONS%2CCTR%2CPOSITION&page=*"},{"$f":"実行!$C$12&分析!RF6","v":"https://search.google.com/search-console/performance/search-analytics?resource_id=sc-domain%3A〇〇〇.com&num_of_days=28&metrics=CLICKS%2CIMPRESSIONS%2CCTR%2CPOSITION&page=*"},{"$f":"実行!$C$12&分析!RG6","v":"https://search.google.com/search-console/performance/search-analytics?resource_id=sc-domain%3A〇〇〇.com&num_of_days=28&metrics=CLICKS%2CIMPRESSIONS%2CCTR%2CPOSITION&page=*"},{"$f":"実行!$C$12&分析!RH6","v":"https://search.google.com/search-console/performance/search-analytics?resource_id=sc-domain%3A〇〇〇.com&num_of_days=28&metrics=CLICKS%2CIMPRESSIONS%2CCTR%2CPOSITION&page=*"},{"$f":"実行!$C$12&分析!RI6","v":"https://search.google.com/search-console/performance/search-analytics?resource_id=sc-domain%3A〇〇〇.com&num_of_days=28&metrics=CLICKS%2CIMPRESSIONS%2CCTR%2CPOSITION&page=*"},{"$f":"実行!$C$12&分析!RJ6","v":"https://search.google.com/search-console/performance/search-analytics?resource_id=sc-domain%3A〇〇〇.com&num_of_days=28&metrics=CLICKS%2CIMPRESSIONS%2CCTR%2CPOSITION&page=*"},{"$f":"実行!$C$12&分析!RK6","v":"https://search.google.com/search-console/performance/search-analytics?resource_id=sc-domain%3A〇〇〇.com&num_of_days=28&metrics=CLICKS%2CIMPRESSIONS%2CCTR%2CPOSITION&page=*"},{"$f":"実行!$C$12&分析!RL6","v":"https://search.google.com/search-console/performance/search-analytics?resource_id=sc-domain%3A〇〇〇.com&num_of_days=28&metrics=CLICKS%2CIMPRESSIONS%2CCTR%2CPOSITION&page=*"},{"$f":"実行!$C$12&分析!RM6","v":"https://search.google.com/search-console/performance/search-analytics?resource_id=sc-domain%3A〇〇〇.com&num_of_days=28&metrics=CLICKS%2CIMPRESSIONS%2CCTR%2CPOSITION&page=*"},{"$f":"実行!$C$12&分析!RN6","v":"https://search.google.com/search-console/performance/search-analytics?resource_id=sc-domain%3A〇〇〇.com&num_of_days=28&metrics=CLICKS%2CIMPRESSIONS%2CCTR%2CPOSITION&page=*"},{"$f":"実行!$C$12&分析!RO6","v":"https://search.google.com/search-console/performance/search-analytics?resource_id=sc-domain%3A〇〇〇.com&num_of_days=28&metrics=CLICKS%2CIMPRESSIONS%2CCTR%2CPOSITION&page=*"},{"$f":"実行!$C$12&分析!RP6","v":"https://search.google.com/search-console/performance/search-analytics?resource_id=sc-domain%3A〇〇〇.com&num_of_days=28&metrics=CLICKS%2CIMPRESSIONS%2CCTR%2CPOSITION&page=*"},{"$f":"実行!$C$12&分析!RQ6","v":"https://search.google.com/search-console/performance/search-analytics?resource_id=sc-domain%3A〇〇〇.com&num_of_days=28&metrics=CLICKS%2CIMPRESSIONS%2CCTR%2CPOSITION&page=*"},{"$f":"実行!$C$12&分析!RR6","v":"https://search.google.com/search-console/performance/search-analytics?resource_id=sc-domain%3A〇〇〇.com&num_of_days=28&metrics=CLICKS%2CIMPRESSIONS%2CCTR%2CPOSITION&page=*"},{"$f":"実行!$C$12&分析!RS6","v":"https://search.google.com/search-console/performance/search-analytics?resource_id=sc-domain%3A〇〇〇.com&num_of_days=28&metrics=CLICKS%2CIMPRESSIONS%2CCTR%2CPOSITION&page=*"},{"$f":"実行!$C$12&分析!RT6","v":"https://search.google.com/search-console/performance/search-analytics?resource_id=sc-domain%3A〇〇〇.com&num_of_days=28&metrics=CLICKS%2CIMPRESSIONS%2CCTR%2CPOSITION&page=*"},{"$f":"実行!$C$12&分析!RU6","v":"https://search.google.com/search-console/performance/search-analytics?resource_id=sc-domain%3A〇〇〇.com&num_of_days=28&metrics=CLICKS%2CIMPRESSIONS%2CCTR%2CPOSITION&page=*"},{"$f":"実行!$C$12&分析!RV6","v":"https://search.google.com/search-console/performance/search-analytics?resource_id=sc-domain%3A〇〇〇.com&num_of_days=28&metrics=CLICKS%2CIMPRESSIONS%2CCTR%2CPOSITION&page=*"},{"$f":"実行!$C$12&分析!RW6","v":"https://search.google.com/search-console/performance/search-analytics?resource_id=sc-domain%3A〇〇〇.com&num_of_days=28&metrics=CLICKS%2CIMPRESSIONS%2CCTR%2CPOSITION&page=*"},{"$f":"実行!$C$12&分析!RX6","v":"https://search.google.com/search-console/performance/search-analytics?resource_id=sc-domain%3A〇〇〇.com&num_of_days=28&metrics=CLICKS%2CIMPRESSIONS%2CCTR%2CPOSITION&page=*"},{"$f":"実行!$C$12&分析!RY6","v":"https://search.google.com/search-console/performance/search-analytics?resource_id=sc-domain%3A〇〇〇.com&num_of_days=28&metrics=CLICKS%2CIMPRESSIONS%2CCTR%2CPOSITION&page=*"},{"$f":"実行!$C$12&分析!RZ6","v":"https://search.google.com/search-console/performance/search-analytics?resource_id=sc-domain%3A〇〇〇.com&num_of_days=28&metrics=CLICKS%2CIMPRESSIONS%2CCTR%2CPOSITION&page=*"},{"$f":"実行!$C$12&分析!SA6","v":"https://search.google.com/search-console/performance/search-analytics?resource_id=sc-domain%3A〇〇〇.com&num_of_days=28&metrics=CLICKS%2CIMPRESSIONS%2CCTR%2CPOSITION&page=*"},{"$f":"実行!$C$12&分析!SB6","v":"https://search.google.com/search-console/performance/search-analytics?resource_id=sc-domain%3A〇〇〇.com&num_of_days=28&metrics=CLICKS%2CIMPRESSIONS%2CCTR%2CPOSITION&page=*"},{"$f":"実行!$C$12&分析!SC6","v":"https://search.google.com/search-console/performance/search-analytics?resource_id=sc-domain%3A〇〇〇.com&num_of_days=28&metrics=CLICKS%2CIMPRESSIONS%2CCTR%2CPOSITION&page=*"},{"$f":"実行!$C$12&分析!SD6","v":"https://search.google.com/search-console/performance/search-analytics?resource_id=sc-domain%3A〇〇〇.com&num_of_days=28&metrics=CLICKS%2CIMPRESSIONS%2CCTR%2CPOSITION&page=*"},{"$f":"実行!$C$12&分析!SE6","v":"https://search.google.com/search-console/performance/search-analytics?resource_id=sc-domain%3A〇〇〇.com&num_of_days=28&metrics=CLICKS%2CIMPRESSIONS%2CCTR%2CPOSITION&page=*"},{"$f":"実行!$C$12&分析!SF6","v":"https://search.google.com/search-console/performance/search-analytics?resource_id=sc-domain%3A〇〇〇.com&num_of_days=28&metrics=CLICKS%2CIMPRESSIONS%2CCTR%2CPOSITION&page=*"},{"$f":"実行!$C$12&分析!SG6","v":"https://search.google.com/search-console/performance/search-analytics?resource_id=sc-domain%3A〇〇〇.com&num_of_days=28&metrics=CLICKS%2CIMPRESSIONS%2CCTR%2CPOSITION&page=*"},{"$f":"実行!$C$12&分析!SH6","v":"https://search.google.com/search-console/performance/search-analytics?resource_id=sc-domain%3A〇〇〇.com&num_of_days=28&metrics=CLICKS%2CIMPRESSIONS%2CCTR%2CPOSITION&page=*"},{"$f":"実行!$C$12&分析!SI6","v":"https://search.google.com/search-console/performance/search-analytics?resource_id=sc-domain%3A〇〇〇.com&num_of_days=28&metrics=CLICKS%2CIMPRESSIONS%2CCTR%2CPOSITION&page=*"},{"$f":"実行!$C$12&分析!SJ6","v":"https://search.google.com/search-console/performance/search-analytics?resource_id=sc-domain%3A〇〇〇.com&num_of_days=28&metrics=CLICKS%2CIMPRESSIONS%2CCTR%2CPOSITION&page=*"},{"$f":"実行!$C$12&分析!SK6","v":"https://search.google.com/search-console/performance/search-analytics?resource_id=sc-domain%3A〇〇〇.com&num_of_days=28&metrics=CLICKS%2CIMPRESSIONS%2CCTR%2CPOSITION&page=*"},{"$f":"実行!$C$12&分析!SL6","v":"https://search.google.com/search-console/performance/search-analytics?resource_id=sc-domain%3A〇〇〇.com&num_of_days=28&metrics=CLICKS%2CIMPRESSIONS%2CCTR%2CPOSITION&page=*"},{"$f":"実行!$C$12&分析!SM6","v":"https://search.google.com/search-console/performance/search-analytics?resource_id=sc-domain%3A〇〇〇.com&num_of_days=28&metrics=CLICKS%2CIMPRESSIONS%2CCTR%2CPOSITION&page=*"},{"$f":"実行!$C$12&分析!SN6","v":"https://search.google.com/search-console/performance/search-analytics?resource_id=sc-domain%3A〇〇〇.com&num_of_days=28&metrics=CLICKS%2CIMPRESSIONS%2CCTR%2CPOSITION&page=*"},{"$f":"実行!$C$12&分析!SO6","v":"https://search.google.com/search-console/performance/search-analytics?resource_id=sc-domain%3A〇〇〇.com&num_of_days=28&metrics=CLICKS%2CIMPRESSIONS%2CCTR%2CPOSITION&page=*"},{"$f":"実行!$C$12&分析!SP6","v":"https://search.google.com/search-console/performance/search-analytics?resource_id=sc-domain%3A〇〇〇.com&num_of_days=28&metrics=CLICKS%2CIMPRESSIONS%2CCTR%2CPOSITION&page=*"},{"$f":"実行!$C$12&分析!SQ6","v":"https://search.google.com/search-console/performance/search-analytics?resource_id=sc-domain%3A〇〇〇.com&num_of_days=28&metrics=CLICKS%2CIMPRESSIONS%2CCTR%2CPOSITION&page=*"},{"$f":"実行!$C$12&分析!SR6","v":"https://search.google.com/search-console/performance/search-analytics?resource_id=sc-domain%3A〇〇〇.com&num_of_days=28&metrics=CLICKS%2CIMPRESSIONS%2CCTR%2CPOSITION&page=*"},{"$f":"実行!$C$12&分析!SS6","v":"https://search.google.com/search-console/performance/search-analytics?resource_id=sc-domain%3A〇〇〇.com&num_of_days=28&metrics=CLICKS%2CIMPRESSIONS%2CCTR%2CPOSITION&page=*"},{"$f":"実行!$C$12&分析!ST6","v":"https://search.google.com/search-console/performance/search-analytics?resource_id=sc-domain%3A〇〇〇.com&num_of_days=28&metrics=CLICKS%2CIMPRESSIONS%2CCTR%2CPOSITION&page=*"},{"$f":"実行!$C$12&分析!SU6","v":"https://search.google.com/search-console/performance/search-analytics?resource_id=sc-domain%3A〇〇〇.com&num_of_days=28&metrics=CLICKS%2CIMPRESSIONS%2CCTR%2CPOSITION&page=*"},{"$f":"実行!$C$12&分析!SV6","v":"https://search.google.com/search-console/performance/search-analytics?resource_id=sc-domain%3A〇〇〇.com&num_of_days=28&metrics=CLICKS%2CIMPRESSIONS%2CCTR%2CPOSITION&page=*"},{"$f":"実行!$C$12&分析!SW6","v":"https://search.google.com/search-console/performance/search-analytics?resource_id=sc-domain%3A〇〇〇.com&num_of_days=28&metrics=CLICKS%2CIMPRESSIONS%2CCTR%2CPOSITION&page=*"},{"$f":"実行!$C$12&分析!SX6","v":"https://search.google.com/search-console/performance/search-analytics?resource_id=sc-domain%3A〇〇〇.com&num_of_days=28&metrics=CLICKS%2CIMPRESSIONS%2CCTR%2CPOSITION&page=*"},{"$f":"実行!$C$12&分析!SY6","v":"https://search.google.com/search-console/performance/search-analytics?resource_id=sc-domain%3A〇〇〇.com&num_of_days=28&metrics=CLICKS%2CIMPRESSIONS%2CCTR%2CPOSITION&page=*"},{"$f":"実行!$C$12&分析!SZ6","v":"https://search.google.com/search-console/performance/search-analytics?resource_id=sc-domain%3A〇〇〇.com&num_of_days=28&metrics=CLICKS%2CIMPRESSIONS%2CCTR%2CPOSITION&page=*"},{"$f":"実行!$C$12&分析!TA6","v":"https://search.google.com/search-console/performance/search-analytics?resource_id=sc-domain%3A〇〇〇.com&num_of_days=28&metrics=CLICKS%2CIMPRESSIONS%2CCTR%2CPOSITION&page=*"},{"$f":"実行!$C$12&分析!TB6","v":"https://search.google.com/search-console/performance/search-analytics?resource_id=sc-domain%3A〇〇〇.com&num_of_days=28&metrics=CLICKS%2CIMPRESSIONS%2CCTR%2CPOSITION&page=*"},{"$f":"実行!$C$12&分析!TC6","v":"https://search.google.com/search-console/performance/search-analytics?resource_id=sc-domain%3A〇〇〇.com&num_of_days=28&metrics=CLICKS%2CIMPRESSIONS%2CCTR%2CPOSITION&page=*"},{"$f":"実行!$C$12&分析!TD6","v":"https://search.google.com/search-console/performance/search-analytics?resource_id=sc-domain%3A〇〇〇.com&num_of_days=28&metrics=CLICKS%2CIMPRESSIONS%2CCTR%2CPOSITION&page=*"},{"$f":"実行!$C$12&分析!TE6","v":"https://search.google.com/search-console/performance/search-analytics?resource_id=sc-domain%3A〇〇〇.com&num_of_days=28&metrics=CLICKS%2CIMPRESSIONS%2CCTR%2CPOSITION&page=*"},{"$f":"実行!$C$12&分析!TF6","v":"https://search.google.com/search-console/performance/search-analytics?resource_id=sc-domain%3A〇〇〇.com&num_of_days=28&metrics=CLICKS%2CIMPRESSIONS%2CCTR%2CPOSITION&page=*"},{"$f":"実行!$C$12&分析!TG6","v":"https://search.google.com/search-console/performance/search-analytics?resource_id=sc-domain%3A〇〇〇.com&num_of_days=28&metrics=CLICKS%2CIMPRESSIONS%2CCTR%2CPOSITION&page=*"},{"$f":"実行!$C$12&分析!TH6","v":"https://search.google.com/search-console/performance/search-analytics?resource_id=sc-domain%3A〇〇〇.com&num_of_days=28&metrics=CLICKS%2CIMPRESSIONS%2CCTR%2CPOSITION&page=*"},{"$f":"実行!$C$12&分析!TI6","v":"https://search.google.com/search-console/performance/search-analytics?resource_id=sc-domain%3A〇〇〇.com&num_of_days=28&metrics=CLICKS%2CIMPRESSIONS%2CCTR%2CPOSITION&page=*"},{"$f":"実行!$C$12&分析!TJ6","v":"https://search.google.com/search-console/performance/search-analytics?resource_id=sc-domain%3A〇〇〇.com&num_of_days=28&metrics=CLICKS%2CIMPRESSIONS%2CCTR%2CPOSITION&page=*"},{"$f":"実行!$C$12&分析!TK6","v":"https://search.google.com/search-console/performance/search-analytics?resource_id=sc-domain%3A〇〇〇.com&num_of_days=28&metrics=CLICKS%2CIMPRESSIONS%2CCTR%2CPOSITION&page=*"},{"$f":"実行!$C$12&分析!TL6","v":"https://search.google.com/search-console/performance/search-analytics?resource_id=sc-domain%3A〇〇〇.com&num_of_days=28&metrics=CLICKS%2CIMPRESSIONS%2CCTR%2CPOSITION&page=*"},{"$f":"実行!$C$12&分析!TM6","v":"https://search.google.com/search-console/performance/search-analytics?resource_id=sc-domain%3A〇〇〇.com&num_of_days=28&metrics=CLICKS%2CIMPRESSIONS%2CCTR%2CPOSITION&page=*"},{"$f":"実行!$C$12&分析!TN6","v":"https://search.google.com/search-console/performance/search-analytics?resource_id=sc-domain%3A〇〇〇.com&num_of_days=28&metrics=CLICKS%2CIMPRESSIONS%2CCTR%2CPOSITION&page=*"},{"$f":"実行!$C$12&分析!TO6","v":"https://search.google.com/search-console/performance/search-analytics?resource_id=sc-domain%3A〇〇〇.com&num_of_days=28&metrics=CLICKS%2CIMPRESSIONS%2CCTR%2CPOSITION&page=*"},{"$f":"実行!$C$12&分析!TP6","v":"https://search.google.com/search-console/performance/search-analytics?resource_id=sc-domain%3A〇〇〇.com&num_of_days=28&metrics=CLICKS%2CIMPRESSIONS%2CCTR%2CPOSITION&page=*"},{"$f":"実行!$C$12&分析!TQ6","v":"https://search.google.com/search-console/performance/search-analytics?resource_id=sc-domain%3A〇〇〇.com&num_of_days=28&metrics=CLICKS%2CIMPRESSIONS%2CCTR%2CPOSITION&page=*"},{"$f":"実行!$C$12&分析!TR6","v":"https://search.google.com/search-console/performance/search-analytics?resource_id=sc-domain%3A〇〇〇.com&num_of_days=28&metrics=CLICKS%2CIMPRESSIONS%2CCTR%2CPOSITION&page=*"},{"$f":"実行!$C$12&分析!TS6","v":"https://search.google.com/search-console/performance/search-analytics?resource_id=sc-domain%3A〇〇〇.com&num_of_days=28&metrics=CLICKS%2CIMPRESSIONS%2CCTR%2CPOSITION&page=*"},{"$f":"実行!$C$12&分析!TT6","v":"https://search.google.com/search-console/performance/search-analytics?resource_id=sc-domain%3A〇〇〇.com&num_of_days=28&metrics=CLICKS%2CIMPRESSIONS%2CCTR%2CPOSITION&page=*"},{"$f":"実行!$C$12&分析!TU6","v":"https://search.google.com/search-console/performance/search-analytics?resource_id=sc-domain%3A〇〇〇.com&num_of_days=28&metrics=CLICKS%2CIMPRESSIONS%2CCTR%2CPOSITION&page=*"},{"$f":"実行!$C$12&分析!TV6","v":"https://search.google.com/search-console/performance/search-analytics?resource_id=sc-domain%3A〇〇〇.com&num_of_days=28&metrics=CLICKS%2CIMPRESSIONS%2CCTR%2CPOSITION&page=*"},{"$f":"実行!$C$12&分析!TW6","v":"https://search.google.com/search-console/performance/search-analytics?resource_id=sc-domain%3A〇〇〇.com&num_of_days=28&metrics=CLICKS%2CIMPRESSIONS%2CCTR%2CPOSITION&page=*"},{"$f":"実行!$C$12&分析!TX6","v":"https://search.google.com/search-console/performance/search-analytics?resource_id=sc-domain%3A〇〇〇.com&num_of_days=28&metrics=CLICKS%2CIMPRESSIONS%2CCTR%2CPOSITION&page=*"},{"$f":"実行!$C$12&分析!TY6","v":"https://search.google.com/search-console/performance/search-analytics?resource_id=sc-domain%3A〇〇〇.com&num_of_days=28&metrics=CLICKS%2CIMPRESSIONS%2CCTR%2CPOSITION&page=*"},{"$f":"実行!$C$12&分析!TZ6","v":"https://search.google.com/search-console/performance/search-analytics?resource_id=sc-domain%3A〇〇〇.com&num_of_days=28&metrics=CLICKS%2CIMPRESSIONS%2CCTR%2CPOSITION&page=*"},{"$f":"実行!$C$12&分析!UA6","v":"https://search.google.com/search-console/performance/search-analytics?resource_id=sc-domain%3A〇〇〇.com&num_of_days=28&metrics=CLICKS%2CIMPRESSIONS%2CCTR%2CPOSITION&page=*"},{"$f":"実行!$C$12&分析!UB6","v":"https://search.google.com/search-console/performance/search-analytics?resource_id=sc-domain%3A〇〇〇.com&num_of_days=28&metrics=CLICKS%2CIMPRESSIONS%2CCTR%2CPOSITION&page=*"},{"$f":"実行!$C$12&分析!UC6","v":"https://search.google.com/search-console/performance/search-analytics?resource_id=sc-domain%3A〇〇〇.com&num_of_days=28&metrics=CLICKS%2CIMPRESSIONS%2CCTR%2CPOSITION&page=*"},{"$f":"実行!$C$12&分析!UD6","v":"https://search.google.com/search-console/performance/search-analytics?resource_id=sc-domain%3A〇〇〇.com&num_of_days=28&metrics=CLICKS%2CIMPRESSIONS%2CCTR%2CPOSITION&page=*"},{"$f":"実行!$C$12&分析!UE6","v":"https://search.google.com/search-console/performance/search-analytics?resource_id=sc-domain%3A〇〇〇.com&num_of_days=28&metrics=CLICKS%2CIMPRESSIONS%2CCTR%2CPOSITION&page=*"},{"$f":"実行!$C$12&分析!UF6","v":"https://search.google.com/search-console/performance/search-analytics?resource_id=sc-domain%3A〇〇〇.com&num_of_days=28&metrics=CLICKS%2CIMPRESSIONS%2CCTR%2CPOSITION&page=*"},{"$f":"実行!$C$12&分析!UG6","v":"https://search.google.com/search-console/performance/search-analytics?resource_id=sc-domain%3A〇〇〇.com&num_of_days=28&metrics=CLICKS%2CIMPRESSIONS%2CCTR%2CPOSITION&page=*"}]
[null,null,null,{"$f":"HYPERLINK(実行!$C$10&分析!D6,\"リンク\")","v":"リンク"},{"$f":"HYPERLINK(実行!$C$10&分析!E6,\"リンク\")","v":"リンク"},{"$f":"HYPERLINK(実行!$C$10&分析!F6,\"リンク\")","v":"リンク"},{"$f":"HYPERLINK(実行!$C$10&分析!G6,\"リンク\")","v":"リンク"},{"$f":"HYPERLINK(実行!$C$10&分析!H6,\"リンク\")","v":"リンク"},{"$f":"HYPERLINK(実行!$C$10&分析!I6,\"リンク\")","v":"リンク"},{"$f":"HYPERLINK(実行!$C$10&分析!J6,\"リンク\")","v":"リンク"},{"$f":"HYPERLINK(実行!$C$10&分析!K6,\"リンク\")","v":"リンク"},{"$f":"HYPERLINK(実行!$C$10&分析!L6,\"リンク\")","v":"リンク"},{"$f":"HYPERLINK(実行!$C$10&分析!M6,\"リンク\")","v":"リンク"},{"$f":"HYPERLINK(実行!$C$10&分析!N6,\"リンク\")","v":"リンク"},{"$f":"HYPERLINK(実行!$C$10&分析!O6,\"リンク\")","v":"リンク"},{"$f":"HYPERLINK(実行!$C$10&分析!P6,\"リンク\")","v":"リンク"},{"$f":"HYPERLINK(実行!$C$10&分析!Q6,\"リンク\")","v":"リンク"},{"$f":"HYPERLINK(実行!$C$10&分析!R6,\"リンク\")","v":"リンク"},{"$f":"HYPERLINK(実行!$C$10&分析!S6,\"リンク\")","v":"リンク"},{"$f":"HYPERLINK(実行!$C$10&分析!T6,\"リンク\")","v":"リンク"},{"$f":"HYPERLINK(実行!$C$10&分析!U6,\"リンク\")","v":"リンク"},{"$f":"HYPERLINK(実行!$C$10&分析!V6,\"リンク\")","v":"リンク"},{"$f":"HYPERLINK(実行!$C$10&分析!W6,\"リンク\")","v":"リンク"},{"$f":"HYPERLINK(実行!$C$10&分析!X6,\"リンク\")","v":"リンク"},{"$f":"HYPERLINK(実行!$C$10&分析!Y6,\"リンク\")","v":"リンク"},{"$f":"HYPERLINK(実行!$C$10&分析!Z6,\"リンク\")","v":"リンク"},{"$f":"HYPERLINK(実行!$C$10&分析!AA6,\"リンク\")","v":"リンク"},{"$f":"HYPERLINK(実行!$C$10&分析!AB6,\"リンク\")","v":"リンク"},{"$f":"HYPERLINK(実行!$C$10&分析!AC6,\"リンク\")","v":"リンク"},{"$f":"HYPERLINK(実行!$C$10&分析!AD6,\"リンク\")","v":"リンク"},{"$f":"HYPERLINK(実行!$C$10&分析!AE6,\"リンク\")","v":"リンク"},{"$f":"HYPERLINK(実行!$C$10&分析!AF6,\"リンク\")","v":"リンク"},{"$f":"HYPERLINK(実行!$C$10&分析!AG6,\"リンク\")","v":"リンク"},{"$f":"HYPERLINK(実行!$C$10&分析!AH6,\"リンク\")","v":"リンク"},{"$f":"HYPERLINK(実行!$C$10&分析!AI6,\"リンク\")","v":"リンク"},{"$f":"HYPERLINK(実行!$C$10&分析!AJ6,\"リンク\")","v":"リンク"},{"$f":"HYPERLINK(実行!$C$10&分析!AK6,\"リンク\")","v":"リンク"},{"$f":"HYPERLINK(実行!$C$10&分析!AL6,\"リンク\")","v":"リンク"},{"$f":"HYPERLINK(実行!$C$10&分析!AM6,\"リンク\")","v":"リンク"},{"$f":"HYPERLINK(実行!$C$10&分析!AN6,\"リンク\")","v":"リンク"},{"$f":"HYPERLINK(実行!$C$10&分析!AO6,\"リンク\")","v":"リンク"},{"$f":"HYPERLINK(実行!$C$10&分析!AP6,\"リンク\")","v":"リンク"},{"$f":"HYPERLINK(実行!$C$10&分析!AQ6,\"リンク\")","v":"リンク"},{"$f":"HYPERLINK(実行!$C$10&分析!AR6,\"リンク\")","v":"リンク"},{"$f":"HYPERLINK(実行!$C$10&分析!AS6,\"リンク\")","v":"リンク"},{"$f":"HYPERLINK(実行!$C$10&分析!AT6,\"リンク\")","v":"リンク"},{"$f":"HYPERLINK(実行!$C$10&分析!AU6,\"リンク\")","v":"リンク"},{"$f":"HYPERLINK(実行!$C$10&分析!AV6,\"リンク\")","v":"リンク"},{"$f":"HYPERLINK(実行!$C$10&分析!AW6,\"リンク\")","v":"リンク"},{"$f":"HYPERLINK(実行!$C$10&分析!AX6,\"リンク\")","v":"リンク"},{"$f":"HYPERLINK(実行!$C$10&分析!AY6,\"リンク\")","v":"リンク"},{"$f":"HYPERLINK(実行!$C$10&分析!AZ6,\"リンク\")","v":"リンク"},{"$f":"HYPERLINK(実行!$C$10&分析!BA6,\"リンク\")","v":"リンク"},{"$f":"HYPERLINK(実行!$C$10&分析!BB6,\"リンク\")","v":"リンク"},{"$f":"HYPERLINK(実行!$C$10&分析!BC6,\"リンク\")","v":"リンク"},{"$f":"HYPERLINK(実行!$C$10&分析!BD6,\"リンク\")","v":"リンク"},{"$f":"HYPERLINK(実行!$C$10&分析!BE6,\"リンク\")","v":"リンク"},{"$f":"HYPERLINK(実行!$C$10&分析!BF6,\"リンク\")","v":"リンク"},{"$f":"HYPERLINK(実行!$C$10&分析!BG6,\"リンク\")","v":"リンク"},{"$f":"HYPERLINK(実行!$C$10&分析!BH6,\"リンク\")","v":"リンク"},{"$f":"HYPERLINK(実行!$C$10&分析!BI6,\"リンク\")","v":"リンク"},{"$f":"HYPERLINK(実行!$C$10&分析!BJ6,\"リンク\")","v":"リンク"},{"$f":"HYPERLINK(実行!$C$10&分析!BK6,\"リンク\")","v":"リンク"},{"$f":"HYPERLINK(実行!$C$10&分析!BL6,\"リンク\")","v":"リンク"},{"$f":"HYPERLINK(実行!$C$10&分析!BM6,\"リンク\")","v":"リンク"},{"$f":"HYPERLINK(実行!$C$10&分析!BN6,\"リンク\")","v":"リンク"},{"$f":"HYPERLINK(実行!$C$10&分析!BO6,\"リンク\")","v":"リンク"},{"$f":"HYPERLINK(実行!$C$10&分析!BP6,\"リンク\")","v":"リンク"},{"$f":"HYPERLINK(実行!$C$10&分析!BQ6,\"リンク\")","v":"リンク"},{"$f":"HYPERLINK(実行!$C$10&分析!BR6,\"リンク\")","v":"リンク"},{"$f":"HYPERLINK(実行!$C$10&分析!BS6,\"リンク\")","v":"リンク"},{"$f":"HYPERLINK(実行!$C$10&分析!BT6,\"リンク\")","v":"リンク"},{"$f":"HYPERLINK(実行!$C$10&分析!BU6,\"リンク\")","v":"リンク"},{"$f":"HYPERLINK(実行!$C$10&分析!BV6,\"リンク\")","v":"リンク"},{"$f":"HYPERLINK(実行!$C$10&分析!BW6,\"リンク\")","v":"リンク"},{"$f":"HYPERLINK(実行!$C$10&分析!BX6,\"リンク\")","v":"リンク"},{"$f":"HYPERLINK(実行!$C$10&分析!BY6,\"リンク\")","v":"リンク"},{"$f":"HYPERLINK(実行!$C$10&分析!BZ6,\"リンク\")","v":"リンク"},{"$f":"HYPERLINK(実行!$C$10&分析!CA6,\"リンク\")","v":"リンク"},{"$f":"HYPERLINK(実行!$C$10&分析!CB6,\"リンク\")","v":"リンク"},{"$f":"HYPERLINK(実行!$C$10&分析!CC6,\"リンク\")","v":"リンク"},{"$f":"HYPERLINK(実行!$C$10&分析!CD6,\"リンク\")","v":"リンク"},{"$f":"HYPERLINK(実行!$C$10&分析!CE6,\"リンク\")","v":"リンク"},{"$f":"HYPERLINK(実行!$C$10&分析!CF6,\"リンク\")","v":"リンク"},{"$f":"HYPERLINK(実行!$C$10&分析!CG6,\"リンク\")","v":"リンク"},{"$f":"HYPERLINK(実行!$C$10&分析!CH6,\"リンク\")","v":"リンク"},{"$f":"HYPERLINK(実行!$C$10&分析!CI6,\"リンク\")","v":"リンク"},{"$f":"HYPERLINK(実行!$C$10&分析!CJ6,\"リンク\")","v":"リンク"},{"$f":"HYPERLINK(実行!$C$10&分析!CK6,\"リンク\")","v":"リンク"},{"$f":"HYPERLINK(実行!$C$10&分析!CL6,\"リンク\")","v":"リンク"},{"$f":"HYPERLINK(実行!$C$10&分析!CM6,\"リンク\")","v":"リンク"},{"$f":"HYPERLINK(実行!$C$10&分析!CN6,\"リンク\")","v":"リンク"},{"$f":"HYPERLINK(実行!$C$10&分析!CO6,\"リンク\")","v":"リンク"},{"$f":"HYPERLINK(実行!$C$10&分析!CP6,\"リンク\")","v":"リンク"},{"$f":"HYPERLINK(実行!$C$10&分析!CQ6,\"リンク\")","v":"リンク"},{"$f":"HYPERLINK(実行!$C$10&分析!CR6,\"リンク\")","v":"リンク"},{"$f":"HYPERLINK(実行!$C$10&分析!CS6,\"リンク\")","v":"リンク"},{"$f":"HYPERLINK(実行!$C$10&分析!CT6,\"リンク\")","v":"リンク"},{"$f":"HYPERLINK(実行!$C$10&分析!CU6,\"リンク\")","v":"リンク"},{"$f":"HYPERLINK(実行!$C$10&分析!CV6,\"リンク\")","v":"リンク"},{"$f":"HYPERLINK(実行!$C$10&分析!CW6,\"リンク\")","v":"リンク"},{"$f":"HYPERLINK(実行!$C$10&分析!CX6,\"リンク\")","v":"リンク"},{"$f":"HYPERLINK(実行!$C$10&分析!CY6,\"リンク\")","v":"リンク"},{"$f":"HYPERLINK(実行!$C$10&分析!CZ6,\"リンク\")","v":"リンク"},{"$f":"HYPERLINK(実行!$C$10&分析!DA6,\"リンク\")","v":"リンク"},{"$f":"HYPERLINK(実行!$C$10&分析!DB6,\"リンク\")","v":"リンク"},{"$f":"HYPERLINK(実行!$C$10&分析!DC6,\"リンク\")","v":"リンク"},{"$f":"HYPERLINK(実行!$C$10&分析!DD6,\"リンク\")","v":"リンク"},{"$f":"HYPERLINK(実行!$C$10&分析!DE6,\"リンク\")","v":"リンク"},{"$f":"HYPERLINK(実行!$C$10&分析!DF6,\"リンク\")","v":"リンク"},{"$f":"HYPERLINK(実行!$C$10&分析!DG6,\"リンク\")","v":"リンク"},{"$f":"HYPERLINK(実行!$C$10&分析!DH6,\"リンク\")","v":"リンク"},{"$f":"HYPERLINK(実行!$C$10&分析!DI6,\"リンク\")","v":"リンク"},{"$f":"HYPERLINK(実行!$C$10&分析!DJ6,\"リンク\")","v":"リンク"},{"$f":"HYPERLINK(実行!$C$10&分析!DK6,\"リンク\")","v":"リンク"},{"$f":"HYPERLINK(実行!$C$10&分析!DL6,\"リンク\")","v":"リンク"},{"$f":"HYPERLINK(実行!$C$10&分析!DM6,\"リンク\")","v":"リンク"},{"$f":"HYPERLINK(実行!$C$10&分析!DN6,\"リンク\")","v":"リンク"},{"$f":"HYPERLINK(実行!$C$10&分析!DO6,\"リンク\")","v":"リンク"},{"$f":"HYPERLINK(実行!$C$10&分析!DP6,\"リンク\")","v":"リンク"},{"$f":"HYPERLINK(実行!$C$10&分析!DQ6,\"リンク\")","v":"リンク"},{"$f":"HYPERLINK(実行!$C$10&分析!DR6,\"リンク\")","v":"リンク"},{"$f":"HYPERLINK(実行!$C$10&分析!DS6,\"リンク\")","v":"リンク"},{"$f":"HYPERLINK(実行!$C$10&分析!DT6,\"リンク\")","v":"リンク"},{"$f":"HYPERLINK(実行!$C$10&分析!DU6,\"リンク\")","v":"リンク"},{"$f":"HYPERLINK(実行!$C$10&分析!DV6,\"リンク\")","v":"リンク"},{"$f":"HYPERLINK(実行!$C$10&分析!DW6,\"リンク\")","v":"リンク"},{"$f":"HYPERLINK(実行!$C$10&分析!DX6,\"リンク\")","v":"リンク"},{"$f":"HYPERLINK(実行!$C$10&分析!DY6,\"リンク\")","v":"リンク"},{"$f":"HYPERLINK(実行!$C$10&分析!DZ6,\"リンク\")","v":"リンク"},{"$f":"HYPERLINK(実行!$C$10&分析!EA6,\"リンク\")","v":"リンク"},{"$f":"HYPERLINK(実行!$C$10&分析!EB6,\"リンク\")","v":"リンク"},{"$f":"HYPERLINK(実行!$C$10&分析!EC6,\"リンク\")","v":"リンク"},{"$f":"HYPERLINK(実行!$C$10&分析!ED6,\"リンク\")","v":"リンク"},{"$f":"HYPERLINK(実行!$C$10&分析!EE6,\"リンク\")","v":"リンク"},{"$f":"HYPERLINK(実行!$C$10&分析!EF6,\"リンク\")","v":"リンク"},{"$f":"HYPERLINK(実行!$C$10&分析!EG6,\"リンク\")","v":"リンク"},{"$f":"HYPERLINK(実行!$C$10&分析!EH6,\"リンク\")","v":"リンク"},{"$f":"HYPERLINK(実行!$C$10&分析!EI6,\"リンク\")","v":"リンク"},{"$f":"HYPERLINK(実行!$C$10&分析!EJ6,\"リンク\")","v":"リンク"},{"$f":"HYPERLINK(実行!$C$10&分析!EK6,\"リンク\")","v":"リンク"},{"$f":"HYPERLINK(実行!$C$10&分析!EL6,\"リンク\")","v":"リンク"},{"$f":"HYPERLINK(実行!$C$10&分析!EM6,\"リンク\")","v":"リンク"},{"$f":"HYPERLINK(実行!$C$10&分析!EN6,\"リンク\")","v":"リンク"},{"$f":"HYPERLINK(実行!$C$10&分析!EO6,\"リンク\")","v":"リンク"},{"$f":"HYPERLINK(実行!$C$10&分析!EP6,\"リンク\")","v":"リンク"},{"$f":"HYPERLINK(実行!$C$10&分析!EQ6,\"リンク\")","v":"リンク"},{"$f":"HYPERLINK(実行!$C$10&分析!ER6,\"リンク\")","v":"リンク"},{"$f":"HYPERLINK(実行!$C$10&分析!ES6,\"リンク\")","v":"リンク"},{"$f":"HYPERLINK(実行!$C$10&分析!ET6,\"リンク\")","v":"リンク"},{"$f":"HYPERLINK(実行!$C$10&分析!EU6,\"リンク\")","v":"リンク"},{"$f":"HYPERLINK(実行!$C$10&分析!EV6,\"リンク\")","v":"リンク"},{"$f":"HYPERLINK(実行!$C$10&分析!EW6,\"リンク\")","v":"リンク"},{"$f":"HYPERLINK(実行!$C$10&分析!EX6,\"リンク\")","v":"リンク"},{"$f":"HYPERLINK(実行!$C$10&分析!EY6,\"リンク\")","v":"リンク"},{"$f":"HYPERLINK(実行!$C$10&分析!EZ6,\"リンク\")","v":"リンク"},{"$f":"HYPERLINK(実行!$C$10&分析!FA6,\"リンク\")","v":"リンク"},{"$f":"HYPERLINK(実行!$C$10&分析!FB6,\"リンク\")","v":"リンク"},{"$f":"HYPERLINK(実行!$C$10&分析!FC6,\"リンク\")","v":"リンク"},{"$f":"HYPERLINK(実行!$C$10&分析!FD6,\"リンク\")","v":"リンク"},{"$f":"HYPERLINK(実行!$C$10&分析!FE6,\"リンク\")","v":"リンク"},{"$f":"HYPERLINK(実行!$C$10&分析!FF6,\"リンク\")","v":"リンク"},{"$f":"HYPERLINK(実行!$C$10&分析!FG6,\"リンク\")","v":"リンク"},{"$f":"HYPERLINK(実行!$C$10&分析!FH6,\"リンク\")","v":"リンク"},{"$f":"HYPERLINK(実行!$C$10&分析!FI6,\"リンク\")","v":"リンク"},{"$f":"HYPERLINK(実行!$C$10&分析!FJ6,\"リンク\")","v":"リンク"},{"$f":"HYPERLINK(実行!$C$10&分析!FK6,\"リンク\")","v":"リンク"},{"$f":"HYPERLINK(実行!$C$10&分析!FL6,\"リンク\")","v":"リンク"},{"$f":"HYPERLINK(実行!$C$10&分析!FM6,\"リンク\")","v":"リンク"},{"$f":"HYPERLINK(実行!$C$10&分析!FN6,\"リンク\")","v":"リンク"},{"$f":"HYPERLINK(実行!$C$10&分析!FO6,\"リンク\")","v":"リンク"},{"$f":"HYPERLINK(実行!$C$10&分析!FP6,\"リンク\")","v":"リンク"},{"$f":"HYPERLINK(実行!$C$10&分析!FQ6,\"リンク\")","v":"リンク"},{"$f":"HYPERLINK(実行!$C$10&分析!FR6,\"リンク\")","v":"リンク"},{"$f":"HYPERLINK(実行!$C$10&分析!FS6,\"リンク\")","v":"リンク"},{"$f":"HYPERLINK(実行!$C$10&分析!FT6,\"リンク\")","v":"リンク"},{"$f":"HYPERLINK(実行!$C$10&分析!FU6,\"リンク\")","v":"リンク"},{"$f":"HYPERLINK(実行!$C$10&分析!FV6,\"リンク\")","v":"リンク"},{"$f":"HYPERLINK(実行!$C$10&分析!FW6,\"リンク\")","v":"リンク"},{"$f":"HYPERLINK(実行!$C$10&分析!FX6,\"リンク\")","v":"リンク"},{"$f":"HYPERLINK(実行!$C$10&分析!FY6,\"リンク\")","v":"リンク"},{"$f":"HYPERLINK(実行!$C$10&分析!FZ6,\"リンク\")","v":"リンク"},{"$f":"HYPERLINK(実行!$C$10&分析!GA6,\"リンク\")","v":"リンク"},{"$f":"HYPERLINK(実行!$C$10&分析!GB6,\"リンク\")","v":"リンク"},{"$f":"HYPERLINK(実行!$C$10&分析!GC6,\"リンク\")","v":"リンク"},{"$f":"HYPERLINK(実行!$C$10&分析!GD6,\"リンク\")","v":"リンク"},{"$f":"HYPERLINK(実行!$C$10&分析!GE6,\"リンク\")","v":"リンク"},{"$f":"HYPERLINK(実行!$C$10&分析!GF6,\"リンク\")","v":"リンク"},{"$f":"HYPERLINK(実行!$C$10&分析!GG6,\"リンク\")","v":"リンク"},{"$f":"HYPERLINK(実行!$C$10&分析!GH6,\"リンク\")","v":"リンク"},{"$f":"HYPERLINK(実行!$C$10&分析!GI6,\"リンク\")","v":"リンク"},{"$f":"HYPERLINK(実行!$C$10&分析!GJ6,\"リンク\")","v":"リンク"},{"$f":"HYPERLINK(実行!$C$10&分析!GK6,\"リンク\")","v":"リンク"},{"$f":"HYPERLINK(実行!$C$10&分析!GL6,\"リンク\")","v":"リンク"},{"$f":"HYPERLINK(実行!$C$10&分析!GM6,\"リンク\")","v":"リンク"},{"$f":"HYPERLINK(実行!$C$10&分析!GN6,\"リンク\")","v":"リンク"},{"$f":"HYPERLINK(実行!$C$10&分析!GO6,\"リンク\")","v":"リンク"},{"$f":"HYPERLINK(実行!$C$10&分析!GP6,\"リンク\")","v":"リンク"},{"$f":"HYPERLINK(実行!$C$10&分析!GQ6,\"リンク\")","v":"リンク"},{"$f":"HYPERLINK(実行!$C$10&分析!GR6,\"リンク\")","v":"リンク"},{"$f":"HYPERLINK(実行!$C$10&分析!GS6,\"リンク\")","v":"リンク"},{"$f":"HYPERLINK(実行!$C$10&分析!GT6,\"リンク\")","v":"リンク"},{"$f":"HYPERLINK(実行!$C$10&分析!GU6,\"リンク\")","v":"リンク"},{"$f":"HYPERLINK(実行!$C$10&分析!GV6,\"リンク\")","v":"リンク"},{"$f":"HYPERLINK(実行!$C$10&分析!GW6,\"リンク\")","v":"リンク"},{"$f":"HYPERLINK(実行!$C$10&分析!GX6,\"リンク\")","v":"リンク"},{"$f":"HYPERLINK(実行!$C$10&分析!GY6,\"リンク\")","v":"リンク"},{"$f":"HYPERLINK(実行!$C$10&分析!GZ6,\"リンク\")","v":"リンク"},{"$f":"HYPERLINK(実行!$C$10&分析!HA6,\"リンク\")","v":"リンク"},{"$f":"HYPERLINK(実行!$C$10&分析!HB6,\"リンク\")","v":"リンク"},{"$f":"HYPERLINK(実行!$C$10&分析!HC6,\"リンク\")","v":"リンク"},{"$f":"HYPERLINK(実行!$C$10&分析!HD6,\"リンク\")","v":"リンク"},{"$f":"HYPERLINK(実行!$C$10&分析!HE6,\"リンク\")","v":"リンク"},{"$f":"HYPERLINK(実行!$C$10&分析!HF6,\"リンク\")","v":"リンク"},{"$f":"HYPERLINK(実行!$C$10&分析!HG6,\"リンク\")","v":"リンク"},{"$f":"HYPERLINK(実行!$C$10&分析!HH6,\"リンク\")","v":"リンク"},{"$f":"HYPERLINK(実行!$C$10&分析!HI6,\"リンク\")","v":"リンク"},{"$f":"HYPERLINK(実行!$C$10&分析!HJ6,\"リンク\")","v":"リンク"},{"$f":"HYPERLINK(実行!$C$10&分析!HK6,\"リンク\")","v":"リンク"},{"$f":"HYPERLINK(実行!$C$10&分析!HL6,\"リンク\")","v":"リンク"},{"$f":"HYPERLINK(実行!$C$10&分析!HM6,\"リンク\")","v":"リンク"},{"$f":"HYPERLINK(実行!$C$10&分析!HN6,\"リンク\")","v":"リンク"},{"$f":"HYPERLINK(実行!$C$10&分析!HO6,\"リンク\")","v":"リンク"},{"$f":"HYPERLINK(実行!$C$10&分析!HP6,\"リンク\")","v":"リンク"},{"$f":"HYPERLINK(実行!$C$10&分析!HQ6,\"リンク\")","v":"リンク"},{"$f":"HYPERLINK(実行!$C$10&分析!HR6,\"リンク\")","v":"リンク"},{"$f":"HYPERLINK(実行!$C$10&分析!HS6,\"リンク\")","v":"リンク"},{"$f":"HYPERLINK(実行!$C$10&分析!HT6,\"リンク\")","v":"リンク"},{"$f":"HYPERLINK(実行!$C$10&分析!HU6,\"リンク\")","v":"リンク"},{"$f":"HYPERLINK(実行!$C$10&分析!HV6,\"リンク\")","v":"リンク"},{"$f":"HYPERLINK(実行!$C$10&分析!HW6,\"リンク\")","v":"リンク"},{"$f":"HYPERLINK(実行!$C$10&分析!HX6,\"リンク\")","v":"リンク"},{"$f":"HYPERLINK(実行!$C$10&分析!HY6,\"リンク\")","v":"リンク"},{"$f":"HYPERLINK(実行!$C$10&分析!HZ6,\"リンク\")","v":"リンク"},{"$f":"HYPERLINK(実行!$C$10&分析!IA6,\"リンク\")","v":"リンク"},{"$f":"HYPERLINK(実行!$C$10&分析!IB6,\"リンク\")","v":"リンク"},{"$f":"HYPERLINK(実行!$C$10&分析!IC6,\"リンク\")","v":"リンク"},{"$f":"HYPERLINK(実行!$C$10&分析!ID6,\"リンク\")","v":"リンク"},{"$f":"HYPERLINK(実行!$C$10&分析!IE6,\"リンク\")","v":"リンク"},{"$f":"HYPERLINK(実行!$C$10&分析!IF6,\"リンク\")","v":"リンク"},{"$f":"HYPERLINK(実行!$C$10&分析!IG6,\"リンク\")","v":"リンク"},{"$f":"HYPERLINK(実行!$C$10&分析!IH6,\"リンク\")","v":"リンク"},{"$f":"HYPERLINK(実行!$C$10&分析!II6,\"リンク\")","v":"リンク"},{"$f":"HYPERLINK(実行!$C$10&分析!IJ6,\"リンク\")","v":"リンク"},{"$f":"HYPERLINK(実行!$C$10&分析!IK6,\"リンク\")","v":"リンク"},{"$f":"HYPERLINK(実行!$C$10&分析!IL6,\"リンク\")","v":"リンク"},{"$f":"HYPERLINK(実行!$C$10&分析!IM6,\"リンク\")","v":"リンク"},{"$f":"HYPERLINK(実行!$C$10&分析!IN6,\"リンク\")","v":"リンク"},{"$f":"HYPERLINK(実行!$C$10&分析!IO6,\"リンク\")","v":"リンク"},{"$f":"HYPERLINK(実行!$C$10&分析!IP6,\"リンク\")","v":"リンク"},{"$f":"HYPERLINK(実行!$C$10&分析!IQ6,\"リンク\")","v":"リンク"},{"$f":"HYPERLINK(実行!$C$10&分析!IR6,\"リンク\")","v":"リンク"},{"$f":"HYPERLINK(実行!$C$10&分析!IS6,\"リンク\")","v":"リンク"},{"$f":"HYPERLINK(実行!$C$10&分析!IT6,\"リンク\")","v":"リンク"},{"$f":"HYPERLINK(実行!$C$10&分析!IU6,\"リンク\")","v":"リンク"},{"$f":"HYPERLINK(実行!$C$10&分析!IV6,\"リンク\")","v":"リンク"},{"$f":"HYPERLINK(実行!$C$10&分析!IW6,\"リンク\")","v":"リンク"},{"$f":"HYPERLINK(実行!$C$10&分析!IX6,\"リンク\")","v":"リンク"},{"$f":"HYPERLINK(実行!$C$10&分析!IY6,\"リンク\")","v":"リンク"},{"$f":"HYPERLINK(実行!$C$10&分析!IZ6,\"リンク\")","v":"リンク"},{"$f":"HYPERLINK(実行!$C$10&分析!JA6,\"リンク\")","v":"リンク"},{"$f":"HYPERLINK(実行!$C$10&分析!JB6,\"リンク\")","v":"リンク"},{"$f":"HYPERLINK(実行!$C$10&分析!JC6,\"リンク\")","v":"リンク"},{"$f":"HYPERLINK(実行!$C$10&分析!JD6,\"リンク\")","v":"リンク"},{"$f":"HYPERLINK(実行!$C$10&分析!JE6,\"リンク\")","v":"リンク"},{"$f":"HYPERLINK(実行!$C$10&分析!JF6,\"リンク\")","v":"リンク"},{"$f":"HYPERLINK(実行!$C$10&分析!JG6,\"リンク\")","v":"リンク"},{"$f":"HYPERLINK(実行!$C$10&分析!JH6,\"リンク\")","v":"リンク"},{"$f":"HYPERLINK(実行!$C$10&分析!JI6,\"リンク\")","v":"リンク"},{"$f":"HYPERLINK(実行!$C$10&分析!JJ6,\"リンク\")","v":"リンク"},{"$f":"HYPERLINK(実行!$C$10&分析!JK6,\"リンク\")","v":"リンク"},{"$f":"HYPERLINK(実行!$C$10&分析!JL6,\"リンク\")","v":"リンク"},{"$f":"HYPERLINK(実行!$C$10&分析!JM6,\"リンク\")","v":"リンク"},{"$f":"HYPERLINK(実行!$C$10&分析!JN6,\"リンク\")","v":"リンク"},{"$f":"HYPERLINK(実行!$C$10&分析!JO6,\"リンク\")","v":"リンク"},{"$f":"HYPERLINK(実行!$C$10&分析!JP6,\"リンク\")","v":"リンク"},{"$f":"HYPERLINK(実行!$C$10&分析!JQ6,\"リンク\")","v":"リンク"},{"$f":"HYPERLINK(実行!$C$10&分析!JR6,\"リンク\")","v":"リンク"},{"$f":"HYPERLINK(実行!$C$10&分析!JS6,\"リンク\")","v":"リンク"},{"$f":"HYPERLINK(実行!$C$10&分析!JT6,\"リンク\")","v":"リンク"},{"$f":"HYPERLINK(実行!$C$10&分析!JU6,\"リンク\")","v":"リンク"},{"$f":"HYPERLINK(実行!$C$10&分析!JV6,\"リンク\")","v":"リンク"},{"$f":"HYPERLINK(実行!$C$10&分析!JW6,\"リンク\")","v":"リンク"},{"$f":"HYPERLINK(実行!$C$10&分析!JX6,\"リンク\")","v":"リンク"},{"$f":"HYPERLINK(実行!$C$10&分析!JY6,\"リンク\")","v":"リンク"},{"$f":"HYPERLINK(実行!$C$10&分析!JZ6,\"リンク\")","v":"リンク"},{"$f":"HYPERLINK(実行!$C$10&分析!KA6,\"リンク\")","v":"リンク"},{"$f":"HYPERLINK(実行!$C$10&分析!KB6,\"リンク\")","v":"リンク"},{"$f":"HYPERLINK(実行!$C$10&分析!KC6,\"リンク\")","v":"リンク"},{"$f":"HYPERLINK(実行!$C$10&分析!KD6,\"リンク\")","v":"リンク"},{"$f":"HYPERLINK(実行!$C$10&分析!KE6,\"リンク\")","v":"リンク"},{"$f":"HYPERLINK(実行!$C$10&分析!KF6,\"リンク\")","v":"リンク"},{"$f":"HYPERLINK(実行!$C$10&分析!KG6,\"リンク\")","v":"リンク"},{"$f":"HYPERLINK(実行!$C$10&分析!KH6,\"リンク\")","v":"リンク"},{"$f":"HYPERLINK(実行!$C$10&分析!KI6,\"リンク\")","v":"リンク"},{"$f":"HYPERLINK(実行!$C$10&分析!KJ6,\"リンク\")","v":"リンク"},{"$f":"HYPERLINK(実行!$C$10&分析!KK6,\"リンク\")","v":"リンク"},{"$f":"HYPERLINK(実行!$C$10&分析!KL6,\"リンク\")","v":"リンク"},{"$f":"HYPERLINK(実行!$C$10&分析!KM6,\"リンク\")","v":"リンク"},{"$f":"HYPERLINK(実行!$C$10&分析!KN6,\"リンク\")","v":"リンク"},{"$f":"HYPERLINK(実行!$C$10&分析!KO6,\"リンク\")","v":"リンク"},{"$f":"HYPERLINK(実行!$C$10&分析!KP6,\"リンク\")","v":"リンク"},{"$f":"HYPERLINK(実行!$C$10&分析!KQ6,\"リンク\")","v":"リンク"},{"$f":"HYPERLINK(実行!$C$10&分析!KR6,\"リンク\")","v":"リンク"},{"$f":"HYPERLINK(実行!$C$10&分析!KS6,\"リンク\")","v":"リンク"},{"$f":"HYPERLINK(実行!$C$10&分析!KT6,\"リンク\")","v":"リンク"},{"$f":"HYPERLINK(実行!$C$10&分析!KU6,\"リンク\")","v":"リンク"},{"$f":"HYPERLINK(実行!$C$10&分析!KV6,\"リンク\")","v":"リンク"},{"$f":"HYPERLINK(実行!$C$10&分析!KW6,\"リンク\")","v":"リンク"},{"$f":"HYPERLINK(実行!$C$10&分析!KX6,\"リンク\")","v":"リンク"},{"$f":"HYPERLINK(実行!$C$10&分析!KY6,\"リンク\")","v":"リンク"},{"$f":"HYPERLINK(実行!$C$10&分析!KZ6,\"リンク\")","v":"リンク"},{"$f":"HYPERLINK(実行!$C$10&分析!LA6,\"リンク\")","v":"リンク"},{"$f":"HYPERLINK(実行!$C$10&分析!LB6,\"リンク\")","v":"リンク"},{"$f":"HYPERLINK(実行!$C$10&分析!LC6,\"リンク\")","v":"リンク"},{"$f":"HYPERLINK(実行!$C$10&分析!LD6,\"リンク\")","v":"リンク"},{"$f":"HYPERLINK(実行!$C$10&分析!LE6,\"リンク\")","v":"リンク"},{"$f":"HYPERLINK(実行!$C$10&分析!LF6,\"リンク\")","v":"リンク"},{"$f":"HYPERLINK(実行!$C$10&分析!LG6,\"リンク\")","v":"リンク"},{"$f":"HYPERLINK(実行!$C$10&分析!LH6,\"リンク\")","v":"リンク"},{"$f":"HYPERLINK(実行!$C$10&分析!LI6,\"リンク\")","v":"リンク"},{"$f":"HYPERLINK(実行!$C$10&分析!LJ6,\"リンク\")","v":"リンク"},{"$f":"HYPERLINK(実行!$C$10&分析!LK6,\"リンク\")","v":"リンク"},{"$f":"HYPERLINK(実行!$C$10&分析!LL6,\"リンク\")","v":"リンク"},{"$f":"HYPERLINK(実行!$C$10&分析!LM6,\"リンク\")","v":"リンク"},{"$f":"HYPERLINK(実行!$C$10&分析!LN6,\"リンク\")","v":"リンク"},{"$f":"HYPERLINK(実行!$C$10&分析!LO6,\"リンク\")","v":"リンク"},{"$f":"HYPERLINK(実行!$C$10&分析!LP6,\"リンク\")","v":"リンク"},{"$f":"HYPERLINK(実行!$C$10&分析!LQ6,\"リンク\")","v":"リンク"},{"$f":"HYPERLINK(実行!$C$10&分析!LR6,\"リンク\")","v":"リンク"},{"$f":"HYPERLINK(実行!$C$10&分析!LS6,\"リンク\")","v":"リンク"},{"$f":"HYPERLINK(実行!$C$10&分析!LT6,\"リンク\")","v":"リンク"},{"$f":"HYPERLINK(実行!$C$10&分析!LU6,\"リンク\")","v":"リンク"},{"$f":"HYPERLINK(実行!$C$10&分析!LV6,\"リンク\")","v":"リンク"},{"$f":"HYPERLINK(実行!$C$10&分析!LW6,\"リンク\")","v":"リンク"},{"$f":"HYPERLINK(実行!$C$10&分析!LX6,\"リンク\")","v":"リンク"},{"$f":"HYPERLINK(実行!$C$10&分析!LY6,\"リンク\")","v":"リンク"},{"$f":"HYPERLINK(実行!$C$10&分析!LZ6,\"リンク\")","v":"リンク"},{"$f":"HYPERLINK(実行!$C$10&分析!MA6,\"リンク\")","v":"リンク"},{"$f":"HYPERLINK(実行!$C$10&分析!MB6,\"リンク\")","v":"リンク"},{"$f":"HYPERLINK(実行!$C$10&分析!MC6,\"リンク\")","v":"リンク"},{"$f":"HYPERLINK(実行!$C$10&分析!MD6,\"リンク\")","v":"リンク"},{"$f":"HYPERLINK(実行!$C$10&分析!ME6,\"リンク\")","v":"リンク"},{"$f":"HYPERLINK(実行!$C$10&分析!MF6,\"リンク\")","v":"リンク"},{"$f":"HYPERLINK(実行!$C$10&分析!MG6,\"リンク\")","v":"リンク"},{"$f":"HYPERLINK(実行!$C$10&分析!MH6,\"リンク\")","v":"リンク"},{"$f":"HYPERLINK(実行!$C$10&分析!MI6,\"リンク\")","v":"リンク"},{"$f":"HYPERLINK(実行!$C$10&分析!MJ6,\"リンク\")","v":"リンク"},{"$f":"HYPERLINK(実行!$C$10&分析!MK6,\"リンク\")","v":"リンク"},{"$f":"HYPERLINK(実行!$C$10&分析!ML6,\"リンク\")","v":"リンク"},{"$f":"HYPERLINK(実行!$C$10&分析!MM6,\"リンク\")","v":"リンク"},{"$f":"HYPERLINK(実行!$C$10&分析!MN6,\"リンク\")","v":"リンク"},{"$f":"HYPERLINK(実行!$C$10&分析!MO6,\"リンク\")","v":"リンク"},{"$f":"HYPERLINK(実行!$C$10&分析!MP6,\"リンク\")","v":"リンク"},{"$f":"HYPERLINK(実行!$C$10&分析!MQ6,\"リンク\")","v":"リンク"},{"$f":"HYPERLINK(実行!$C$10&分析!MR6,\"リンク\")","v":"リンク"},{"$f":"HYPERLINK(実行!$C$10&分析!MS6,\"リンク\")","v":"リンク"},{"$f":"HYPERLINK(実行!$C$10&分析!MT6,\"リンク\")","v":"リンク"},{"$f":"HYPERLINK(実行!$C$10&分析!MU6,\"リンク\")","v":"リンク"},{"$f":"HYPERLINK(実行!$C$10&分析!MV6,\"リンク\")","v":"リンク"},{"$f":"HYPERLINK(実行!$C$10&分析!MW6,\"リンク\")","v":"リンク"},{"$f":"HYPERLINK(実行!$C$10&分析!MX6,\"リンク\")","v":"リンク"},{"$f":"HYPERLINK(実行!$C$10&分析!MY6,\"リンク\")","v":"リンク"},{"$f":"HYPERLINK(実行!$C$10&分析!MZ6,\"リンク\")","v":"リンク"},{"$f":"HYPERLINK(実行!$C$10&分析!NA6,\"リンク\")","v":"リンク"},{"$f":"HYPERLINK(実行!$C$10&分析!NB6,\"リンク\")","v":"リンク"},{"$f":"HYPERLINK(実行!$C$10&分析!NC6,\"リンク\")","v":"リンク"},{"$f":"HYPERLINK(実行!$C$10&分析!ND6,\"リンク\")","v":"リンク"},{"$f":"HYPERLINK(実行!$C$10&分析!NE6,\"リンク\")","v":"リンク"},{"$f":"HYPERLINK(実行!$C$10&分析!NF6,\"リンク\")","v":"リンク"},{"$f":"HYPERLINK(実行!$C$10&分析!NG6,\"リンク\")","v":"リンク"},{"$f":"HYPERLINK(実行!$C$10&分析!NH6,\"リンク\")","v":"リンク"},{"$f":"HYPERLINK(実行!$C$10&分析!NI6,\"リンク\")","v":"リンク"},{"$f":"HYPERLINK(実行!$C$10&分析!NJ6,\"リンク\")","v":"リンク"},{"$f":"HYPERLINK(実行!$C$10&分析!NK6,\"リンク\")","v":"リンク"},{"$f":"HYPERLINK(実行!$C$10&分析!NL6,\"リンク\")","v":"リンク"},{"$f":"HYPERLINK(実行!$C$10&分析!NM6,\"リンク\")","v":"リンク"},{"$f":"HYPERLINK(実行!$C$10&分析!NN6,\"リンク\")","v":"リンク"},{"$f":"HYPERLINK(実行!$C$10&分析!NO6,\"リンク\")","v":"リンク"},{"$f":"HYPERLINK(実行!$C$10&分析!NP6,\"リンク\")","v":"リンク"},{"$f":"HYPERLINK(実行!$C$10&分析!NQ6,\"リンク\")","v":"リンク"},{"$f":"HYPERLINK(実行!$C$10&分析!NR6,\"リンク\")","v":"リンク"},{"$f":"HYPERLINK(実行!$C$10&分析!NS6,\"リンク\")","v":"リンク"},{"$f":"HYPERLINK(実行!$C$10&分析!NT6,\"リンク\")","v":"リンク"},{"$f":"HYPERLINK(実行!$C$10&分析!NU6,\"リンク\")","v":"リンク"},{"$f":"HYPERLINK(実行!$C$10&分析!NV6,\"リンク\")","v":"リンク"},{"$f":"HYPERLINK(実行!$C$10&分析!NW6,\"リンク\")","v":"リンク"},{"$f":"HYPERLINK(実行!$C$10&分析!NX6,\"リンク\")","v":"リンク"},{"$f":"HYPERLINK(実行!$C$10&分析!NY6,\"リンク\")","v":"リンク"},{"$f":"HYPERLINK(実行!$C$10&分析!NZ6,\"リンク\")","v":"リンク"},{"$f":"HYPERLINK(実行!$C$10&分析!OA6,\"リンク\")","v":"リンク"},{"$f":"HYPERLINK(実行!$C$10&分析!OB6,\"リンク\")","v":"リンク"},{"$f":"HYPERLINK(実行!$C$10&分析!OC6,\"リンク\")","v":"リンク"},{"$f":"HYPERLINK(実行!$C$10&分析!OD6,\"リンク\")","v":"リンク"},{"$f":"HYPERLINK(実行!$C$10&分析!OE6,\"リンク\")","v":"リンク"},{"$f":"HYPERLINK(実行!$C$10&分析!OF6,\"リンク\")","v":"リンク"},{"$f":"HYPERLINK(実行!$C$10&分析!OG6,\"リンク\")","v":"リンク"},{"$f":"HYPERLINK(実行!$C$10&分析!OH6,\"リンク\")","v":"リンク"},{"$f":"HYPERLINK(実行!$C$10&分析!OI6,\"リンク\")","v":"リンク"},{"$f":"HYPERLINK(実行!$C$10&分析!OJ6,\"リンク\")","v":"リンク"},{"$f":"HYPERLINK(実行!$C$10&分析!OK6,\"リンク\")","v":"リンク"},{"$f":"HYPERLINK(実行!$C$10&分析!OL6,\"リンク\")","v":"リンク"},{"$f":"HYPERLINK(実行!$C$10&分析!OM6,\"リンク\")","v":"リンク"},{"$f":"HYPERLINK(実行!$C$10&分析!ON6,\"リンク\")","v":"リンク"},{"$f":"HYPERLINK(実行!$C$10&分析!OO6,\"リンク\")","v":"リンク"},{"$f":"HYPERLINK(実行!$C$10&分析!OP6,\"リンク\")","v":"リンク"},{"$f":"HYPERLINK(実行!$C$10&分析!OQ6,\"リンク\")","v":"リンク"},{"$f":"HYPERLINK(実行!$C$10&分析!OR6,\"リンク\")","v":"リンク"},{"$f":"HYPERLINK(実行!$C$10&分析!OS6,\"リンク\")","v":"リンク"},{"$f":"HYPERLINK(実行!$C$10&分析!OT6,\"リンク\")","v":"リンク"},{"$f":"HYPERLINK(実行!$C$10&分析!OU6,\"リンク\")","v":"リンク"},{"$f":"HYPERLINK(実行!$C$10&分析!OV6,\"リンク\")","v":"リンク"},{"$f":"HYPERLINK(実行!$C$10&分析!OW6,\"リンク\")","v":"リンク"},{"$f":"HYPERLINK(実行!$C$10&分析!OX6,\"リンク\")","v":"リンク"},{"$f":"HYPERLINK(実行!$C$10&分析!OY6,\"リンク\")","v":"リンク"},{"$f":"HYPERLINK(実行!$C$10&分析!OZ6,\"リンク\")","v":"リンク"},{"$f":"HYPERLINK(実行!$C$10&分析!PA6,\"リンク\")","v":"リンク"},{"$f":"HYPERLINK(実行!$C$10&分析!PB6,\"リンク\")","v":"リンク"},{"$f":"HYPERLINK(実行!$C$10&分析!PC6,\"リンク\")","v":"リンク"},{"$f":"HYPERLINK(実行!$C$10&分析!PD6,\"リンク\")","v":"リンク"},{"$f":"HYPERLINK(実行!$C$10&分析!PE6,\"リンク\")","v":"リンク"},{"$f":"HYPERLINK(実行!$C$10&分析!PF6,\"リンク\")","v":"リンク"},{"$f":"HYPERLINK(実行!$C$10&分析!PG6,\"リンク\")","v":"リンク"},{"$f":"HYPERLINK(実行!$C$10&分析!PH6,\"リンク\")","v":"リンク"},{"$f":"HYPERLINK(実行!$C$10&分析!PI6,\"リンク\")","v":"リンク"},{"$f":"HYPERLINK(実行!$C$10&分析!PJ6,\"リンク\")","v":"リンク"},{"$f":"HYPERLINK(実行!$C$10&分析!PK6,\"リンク\")","v":"リンク"},{"$f":"HYPERLINK(実行!$C$10&分析!PL6,\"リンク\")","v":"リンク"},{"$f":"HYPERLINK(実行!$C$10&分析!PM6,\"リンク\")","v":"リンク"},{"$f":"HYPERLINK(実行!$C$10&分析!PN6,\"リンク\")","v":"リンク"},{"$f":"HYPERLINK(実行!$C$10&分析!PO6,\"リンク\")","v":"リンク"},{"$f":"HYPERLINK(実行!$C$10&分析!PP6,\"リンク\")","v":"リンク"},{"$f":"HYPERLINK(実行!$C$10&分析!PQ6,\"リンク\")","v":"リンク"},{"$f":"HYPERLINK(実行!$C$10&分析!PR6,\"リンク\")","v":"リンク"},{"$f":"HYPERLINK(実行!$C$10&分析!PS6,\"リンク\")","v":"リンク"},{"$f":"HYPERLINK(実行!$C$10&分析!PT6,\"リンク\")","v":"リンク"},{"$f":"HYPERLINK(実行!$C$10&分析!PU6,\"リンク\")","v":"リンク"},{"$f":"HYPERLINK(実行!$C$10&分析!PV6,\"リンク\")","v":"リンク"},{"$f":"HYPERLINK(実行!$C$10&分析!PW6,\"リンク\")","v":"リンク"},{"$f":"HYPERLINK(実行!$C$10&分析!PX6,\"リンク\")","v":"リンク"},{"$f":"HYPERLINK(実行!$C$10&分析!PY6,\"リンク\")","v":"リンク"},{"$f":"HYPERLINK(実行!$C$10&分析!PZ6,\"リンク\")","v":"リンク"},{"$f":"HYPERLINK(実行!$C$10&分析!QA6,\"リンク\")","v":"リンク"},{"$f":"HYPERLINK(実行!$C$10&分析!QB6,\"リンク\")","v":"リンク"},{"$f":"HYPERLINK(実行!$C$10&分析!QC6,\"リンク\")","v":"リンク"},{"$f":"HYPERLINK(実行!$C$10&分析!QD6,\"リンク\")","v":"リンク"},{"$f":"HYPERLINK(実行!$C$10&分析!QE6,\"リンク\")","v":"リンク"},{"$f":"HYPERLINK(実行!$C$10&分析!QF6,\"リンク\")","v":"リンク"},{"$f":"HYPERLINK(実行!$C$10&分析!QG6,\"リンク\")","v":"リンク"},{"$f":"HYPERLINK(実行!$C$10&分析!QH6,\"リンク\")","v":"リンク"},{"$f":"HYPERLINK(実行!$C$10&分析!QI6,\"リンク\")","v":"リンク"},{"$f":"HYPERLINK(実行!$C$10&分析!QJ6,\"リンク\")","v":"リンク"},{"$f":"HYPERLINK(実行!$C$10&分析!QK6,\"リンク\")","v":"リンク"},{"$f":"HYPERLINK(実行!$C$10&分析!QL6,\"リンク\")","v":"リンク"},{"$f":"HYPERLINK(実行!$C$10&分析!QM6,\"リンク\")","v":"リンク"},{"$f":"HYPERLINK(実行!$C$10&分析!QN6,\"リンク\")","v":"リンク"},{"$f":"HYPERLINK(実行!$C$10&分析!QO6,\"リンク\")","v":"リンク"},{"$f":"HYPERLINK(実行!$C$10&分析!QP6,\"リンク\")","v":"リンク"},{"$f":"HYPERLINK(実行!$C$10&分析!QQ6,\"リンク\")","v":"リンク"},{"$f":"HYPERLINK(実行!$C$10&分析!QR6,\"リンク\")","v":"リンク"},{"$f":"HYPERLINK(実行!$C$10&分析!QS6,\"リンク\")","v":"リンク"},{"$f":"HYPERLINK(実行!$C$10&分析!QT6,\"リンク\")","v":"リンク"},{"$f":"HYPERLINK(実行!$C$10&分析!QU6,\"リンク\")","v":"リンク"},{"$f":"HYPERLINK(実行!$C$10&分析!QV6,\"リンク\")","v":"リンク"},{"$f":"HYPERLINK(実行!$C$10&分析!QW6,\"リンク\")","v":"リンク"},{"$f":"HYPERLINK(実行!$C$10&分析!QX6,\"リンク\")","v":"リンク"},{"$f":"HYPERLINK(実行!$C$10&分析!QY6,\"リンク\")","v":"リンク"},{"$f":"HYPERLINK(実行!$C$10&分析!QZ6,\"リンク\")","v":"リンク"},{"$f":"HYPERLINK(実行!$C$10&分析!RA6,\"リンク\")","v":"リンク"},{"$f":"HYPERLINK(実行!$C$10&分析!RB6,\"リンク\")","v":"リンク"},{"$f":"HYPERLINK(実行!$C$10&分析!RC6,\"リンク\")","v":"リンク"},{"$f":"HYPERLINK(実行!$C$10&分析!RD6,\"リンク\")","v":"リンク"},{"$f":"HYPERLINK(実行!$C$10&分析!RE6,\"リンク\")","v":"リンク"},{"$f":"HYPERLINK(実行!$C$10&分析!RF6,\"リンク\")","v":"リンク"},{"$f":"HYPERLINK(実行!$C$10&分析!RG6,\"リンク\")","v":"リンク"},{"$f":"HYPERLINK(実行!$C$10&分析!RH6,\"リンク\")","v":"リンク"},{"$f":"HYPERLINK(実行!$C$10&分析!RI6,\"リンク\")","v":"リンク"},{"$f":"HYPERLINK(実行!$C$10&分析!RJ6,\"リンク\")","v":"リンク"},{"$f":"HYPERLINK(実行!$C$10&分析!RK6,\"リンク\")","v":"リンク"},{"$f":"HYPERLINK(実行!$C$10&分析!RL6,\"リンク\")","v":"リンク"},{"$f":"HYPERLINK(実行!$C$10&分析!RM6,\"リンク\")","v":"リンク"},{"$f":"HYPERLINK(実行!$C$10&分析!RN6,\"リンク\")","v":"リンク"},{"$f":"HYPERLINK(実行!$C$10&分析!RO6,\"リンク\")","v":"リンク"},{"$f":"HYPERLINK(実行!$C$10&分析!RP6,\"リンク\")","v":"リンク"},{"$f":"HYPERLINK(実行!$C$10&分析!RQ6,\"リンク\")","v":"リンク"},{"$f":"HYPERLINK(実行!$C$10&分析!RR6,\"リンク\")","v":"リンク"},{"$f":"HYPERLINK(実行!$C$10&分析!RS6,\"リンク\")","v":"リンク"},{"$f":"HYPERLINK(実行!$C$10&分析!RT6,\"リンク\")","v":"リンク"},{"$f":"HYPERLINK(実行!$C$10&分析!RU6,\"リンク\")","v":"リンク"},{"$f":"HYPERLINK(実行!$C$10&分析!RV6,\"リンク\")","v":"リンク"},{"$f":"HYPERLINK(実行!$C$10&分析!RW6,\"リンク\")","v":"リンク"},{"$f":"HYPERLINK(実行!$C$10&分析!RX6,\"リンク\")","v":"リンク"},{"$f":"HYPERLINK(実行!$C$10&分析!RY6,\"リンク\")","v":"リンク"},{"$f":"HYPERLINK(実行!$C$10&分析!RZ6,\"リンク\")","v":"リンク"},{"$f":"HYPERLINK(実行!$C$10&分析!SA6,\"リンク\")","v":"リンク"},{"$f":"HYPERLINK(実行!$C$10&分析!SB6,\"リンク\")","v":"リンク"},{"$f":"HYPERLINK(実行!$C$10&分析!SC6,\"リンク\")","v":"リンク"},{"$f":"HYPERLINK(実行!$C$10&分析!SD6,\"リンク\")","v":"リンク"},{"$f":"HYPERLINK(実行!$C$10&分析!SE6,\"リンク\")","v":"リンク"},{"$f":"HYPERLINK(実行!$C$10&分析!SF6,\"リンク\")","v":"リンク"},{"$f":"HYPERLINK(実行!$C$10&分析!SG6,\"リンク\")","v":"リンク"},{"$f":"HYPERLINK(実行!$C$10&分析!SH6,\"リンク\")","v":"リンク"},{"$f":"HYPERLINK(実行!$C$10&分析!SI6,\"リンク\")","v":"リンク"},{"$f":"HYPERLINK(実行!$C$10&分析!SJ6,\"リンク\")","v":"リンク"},{"$f":"HYPERLINK(実行!$C$10&分析!SK6,\"リンク\")","v":"リンク"},{"$f":"HYPERLINK(実行!$C$10&分析!SL6,\"リンク\")","v":"リンク"},{"$f":"HYPERLINK(実行!$C$10&分析!SM6,\"リンク\")","v":"リンク"},{"$f":"HYPERLINK(実行!$C$10&分析!SN6,\"リンク\")","v":"リンク"},{"$f":"HYPERLINK(実行!$C$10&分析!SO6,\"リンク\")","v":"リンク"},{"$f":"HYPERLINK(実行!$C$10&分析!SP6,\"リンク\")","v":"リンク"},{"$f":"HYPERLINK(実行!$C$10&分析!SQ6,\"リンク\")","v":"リンク"},{"$f":"HYPERLINK(実行!$C$10&分析!SR6,\"リンク\")","v":"リンク"},{"$f":"HYPERLINK(実行!$C$10&分析!SS6,\"リンク\")","v":"リンク"},{"$f":"HYPERLINK(実行!$C$10&分析!ST6,\"リンク\")","v":"リンク"},{"$f":"HYPERLINK(実行!$C$10&分析!SU6,\"リンク\")","v":"リンク"},{"$f":"HYPERLINK(実行!$C$10&分析!SV6,\"リンク\")","v":"リンク"},{"$f":"HYPERLINK(実行!$C$10&分析!SW6,\"リンク\")","v":"リンク"},{"$f":"HYPERLINK(実行!$C$10&分析!SX6,\"リンク\")","v":"リンク"},{"$f":"HYPERLINK(実行!$C$10&分析!SY6,\"リンク\")","v":"リンク"},{"$f":"HYPERLINK(実行!$C$10&分析!SZ6,\"リンク\")","v":"リンク"},{"$f":"HYPERLINK(実行!$C$10&分析!TA6,\"リンク\")","v":"リンク"},{"$f":"HYPERLINK(実行!$C$10&分析!TB6,\"リンク\")","v":"リンク"},{"$f":"HYPERLINK(実行!$C$10&分析!TC6,\"リンク\")","v":"リンク"},{"$f":"HYPERLINK(実行!$C$10&分析!TD6,\"リンク\")","v":"リンク"},{"$f":"HYPERLINK(実行!$C$10&分析!TE6,\"リンク\")","v":"リンク"},{"$f":"HYPERLINK(実行!$C$10&分析!TF6,\"リンク\")","v":"リンク"},{"$f":"HYPERLINK(実行!$C$10&分析!TG6,\"リンク\")","v":"リンク"},{"$f":"HYPERLINK(実行!$C$10&分析!TH6,\"リンク\")","v":"リンク"},{"$f":"HYPERLINK(実行!$C$10&分析!TI6,\"リンク\")","v":"リンク"},{"$f":"HYPERLINK(実行!$C$10&分析!TJ6,\"リンク\")","v":"リンク"},{"$f":"HYPERLINK(実行!$C$10&分析!TK6,\"リンク\")","v":"リンク"},{"$f":"HYPERLINK(実行!$C$10&分析!TL6,\"リンク\")","v":"リンク"},{"$f":"HYPERLINK(実行!$C$10&分析!TM6,\"リンク\")","v":"リンク"},{"$f":"HYPERLINK(実行!$C$10&分析!TN6,\"リンク\")","v":"リンク"},{"$f":"HYPERLINK(実行!$C$10&分析!TO6,\"リンク\")","v":"リンク"},{"$f":"HYPERLINK(実行!$C$10&分析!TP6,\"リンク\")","v":"リンク"},{"$f":"HYPERLINK(実行!$C$10&分析!TQ6,\"リンク\")","v":"リンク"},{"$f":"HYPERLINK(実行!$C$10&分析!TR6,\"リンク\")","v":"リンク"},{"$f":"HYPERLINK(実行!$C$10&分析!TS6,\"リンク\")","v":"リンク"},{"$f":"HYPERLINK(実行!$C$10&分析!TT6,\"リンク\")","v":"リンク"},{"$f":"HYPERLINK(実行!$C$10&分析!TU6,\"リンク\")","v":"リンク"},{"$f":"HYPERLINK(実行!$C$10&分析!TV6,\"リンク\")","v":"リンク"},{"$f":"HYPERLINK(実行!$C$10&分析!TW6,\"リンク\")","v":"リンク"},{"$f":"HYPERLINK(実行!$C$10&分析!TX6,\"リンク\")","v":"リンク"},{"$f":"HYPERLINK(実行!$C$10&分析!TY6,\"リンク\")","v":"リンク"},{"$f":"HYPERLINK(実行!$C$10&分析!TZ6,\"リンク\")","v":"リンク"},{"$f":"HYPERLINK(実行!$C$10&分析!UA6,\"リンク\")","v":"リンク"},{"$f":"HYPERLINK(実行!$C$10&分析!UB6,\"リンク\")","v":"リンク"},{"$f":"HYPERLINK(実行!$C$10&分析!UC6,\"リンク\")","v":"リンク"},{"$f":"HYPERLINK(実行!$C$10&分析!UD6,\"リンク\")","v":"リンク"},{"$f":"HYPERLINK(実行!$C$10&分析!UE6,\"リンク\")","v":"リンク"},{"$f":"HYPERLINK(実行!$C$10&分析!UF6,\"リンク\")","v":"リンク"},{"$f":"HYPERLINK(実行!$C$10&分析!UG6,\"リンク\")","v":"リンク"}]
[]
[null,{"$f":"SUM(D7:RT7)","v":0}]
[null,{"$f":"AVERAGE(D8:RT8)","v":{"$error":"#DIV/0!"}}]
[null,{"$f":"SUM(D9:RT9)","v":0}]
[null,{"$f":"AVERAGE(D10:RT10)","v":{"$error":"#DIV/0!"}}]
[null,{"$f":"AVERAGE(D11:RT11)","v":{"$error":"#DIV/0!"}}]
[null,{"$f":"AVERAGE(D12:RT12)","v":{"$error":"#DIV/0!"}}]
[]
[]
[]
[]
[]
[]
[null,null,null,{"$f":"IF(D20>50,\"ロングテール\",\"\")","v":""},{"$f":"IF(E20>50,\"ロングテール\",\"\")","v":""},"","","","","","","","","","","","","","","","","","","","","","","","","","","","","","","","","","","","","","","","","","","","","","","","","","","","","","","","","","","","","","","",{"$f":"IF(BQ20>50,\"ロングテール\",\"\")","v":""},"","","","","","","","","","","","","","","","","","","","","","","","","","","","","","","","","","","","","","","","","","","","","","","","","","","","","","","","","","","","","","","",{"$f":"IF(EC20>50,\"ロングテール\",\"\")","v":""},"","","","","","","","","","","","","","","","","","","","","","","","","","","","","","","","","","","","","","","","","","","","","","","","","","","","","","","","","","","","","","","",{"$f":"IF(GO20>50,\"ロングテール\",\"\")","v":""},"","","","","","","","","","","","","","","","","","","","","","","","","","","","","","","","","","","","","","","","","","","","","","","","","","","","","","","","","","","","","","","",{"$f":"IF(JA20>50,\"ロングテール\",\"\")","v":""},"","","","","","","","","","","","","","","","","","","","","","","","","","","","","","","","","","","","","","","","","","","","","","","","","","","","","","","","","","","","","","","",{"$f":"IF(LM20>50,\"ロングテール\",\"\")","v":""},"","","","","","","","","","","","","","","","","","","","","","","","","","","","","","","","","","","","","","","","","","","","","","","","","","","","","","","","","","","","","","","",{"$f":"IF(NY20>50,\"ロングテール\",\"\")","v":""},"","","","","","","","","","","","","","","","","","","","","","","","","","","","","","","","","","","","","","","","","","","","","","","","","","","","","","","","","","","","","","","",{"$f":"IF(QK20>50,\"ロングテール\",\"\")","v":""},"","","","","","","","","","","","","","","","","","","","","","","","","","","","","","","","","","","","","","","","","","","","","","","","","","","","","","","","","","","","","","","",{"$f":"IF(SW20>50,\"ロングテール\",\"\")","v":""},"","","","","","","","","","","","","","","","","","","","","","","","","","","","","","","","","","","",""]
[10,"位以内で","キーワード数",{"$f":"202-COUNTBLANK(D$25:D$1035)/5","v":-0.19999999999998863},{"$f":"202-COUNTBLANK(E$25:E$1035)/5","v":-0.19999999999998863},-0.19999999999998863,-0.19999999999998863,-0.19999999999998863,-0.19999999999998863,-0.19999999999998863,-0.19999999999998863,-0.19999999999998863,-0.19999999999998863,-0.19999999999998863,-0.19999999999998863,-0.19999999999998863,-0.19999999999998863,-0.19999999999998863,-0.19999999999998863,-0.19999999999998863,-0.19999999999998863,-0.19999999999998863,-0.19999999999998863,-0.19999999999998863,-0.19999999999998863,-0.19999999999998863,-0.19999999999998863,-0.19999999999998863,-0.19999999999998863,-0.19999999999998863,-0.19999999999998863,-0.19999999999998863,-0.19999999999998863,-0.19999999999998863,-0.19999999999998863,-0.19999999999998863,-0.19999999999998863,-0.19999999999998863,-0.19999999999998863,-0.19999999999998863,-0.19999999999998863,-0.19999999999998863,-0.19999999999998863,-0.19999999999998863,-0.19999999999998863,-0.19999999999998863,-0.19999999999998863,-0.19999999999998863,-0.19999999999998863,-0.19999999999998863,-0.19999999999998863,-0.19999999999998863,-0.19999999999998863,-0.19999999999998863,-0.19999999999998863,-0.19999999999998863,-0.19999999999998863,-0.19999999999998863,-0.19999999999998863,-0.19999999999998863,-0.19999999999998863,-0.19999999999998863,-0.19999999999998863,-0.19999999999998863,-0.19999999999998863,-0.19999999999998863,-0.19999999999998863,-0.19999999999998863,{"$f":"202-COUNTBLANK(BQ$25:BQ$1035)/5","v":-0.19999999999998863},-0.19999999999998863,-0.19999999999998863,-0.19999999999998863,-0.19999999999998863,-0.19999999999998863,-0.19999999999998863,-0.19999999999998863,-0.19999999999998863,-0.19999999999998863,-0.19999999999998863,-0.19999999999998863,-0.19999999999998863,-0.19999999999998863,-0.19999999999998863,-0.19999999999998863,-0.19999999999998863,-0.19999999999998863,-0.19999999999998863,-0.19999999999998863,-0.19999999999998863,-0.19999999999998863,-0.19999999999998863,-0.19999999999998863,-0.19999999999998863,-0.19999999999998863,-0.19999999999998863,-0.19999999999998863,-0.19999999999998863,-0.19999999999998863,-0.19999999999998863,-0.19999999999998863,-0.19999999999998863,-0.19999999999998863,-0.19999999999998863,-0.19999999999998863,-0.19999999999998863,-0.19999999999998863,-0.19999999999998863,-0.19999999999998863,-0.19999999999998863,-0.19999999999998863,-0.19999999999998863,-0.19999999999998863,-0.19999999999998863,-0.19999999999998863,-0.19999999999998863,-0.19999999999998863,-0.19999999999998863,-0.19999999999998863,-0.19999999999998863,-0.19999999999998863,-0.19999999999998863,-0.19999999999998863,-0.19999999999998863,-0.19999999999998863,-0.19999999999998863,-0.19999999999998863,-0.19999999999998863,-0.19999999999998863,-0.19999999999998863,-0.19999999999998863,-0.19999999999998863,-0.19999999999998863,{"$f":"202-COUNTBLANK(EC$25:EC$1035)/5","v":-0.19999999999998863},-0.19999999999998863,-0.19999999999998863,-0.19999999999998863,-0.19999999999998863,-0.19999999999998863,-0.19999999999998863,-0.19999999999998863,-0.19999999999998863,-0.19999999999998863,-0.19999999999998863,-0.19999999999998863,-0.19999999999998863,-0.19999999999998863,-0.19999999999998863,-0.19999999999998863,-0.19999999999998863,-0.19999999999998863,-0.19999999999998863,-0.19999999999998863,-0.19999999999998863,-0.19999999999998863,-0.19999999999998863,-0.19999999999998863,-0.19999999999998863,-0.19999999999998863,-0.19999999999998863,-0.19999999999998863,-0.19999999999998863,-0.19999999999998863,-0.19999999999998863,-0.19999999999998863,-0.19999999999998863,-0.19999999999998863,-0.19999999999998863,-0.19999999999998863,-0.19999999999998863,-0.19999999999998863,-0.19999999999998863,-0.19999999999998863,-0.19999999999998863,-0.19999999999998863,-0.19999999999998863,-0.19999999999998863,-0.19999999999998863,-0.19999999999998863,-0.19999999999998863,-0.19999999999998863,-0.19999999999998863,-0.19999999999998863,-0.19999999999998863,-0.19999999999998863,-0.19999999999998863,-0.19999999999998863,-0.19999999999998863,-0.19999999999998863,-0.19999999999998863,-0.19999999999998863,-0.19999999999998863,-0.19999999999998863,-0.19999999999998863,-0.19999999999998863,-0.19999999999998863,-0.19999999999998863,{"$f":"202-COUNTBLANK(GO$25:GO$1035)/5","v":-0.19999999999998863},-0.19999999999998863,-0.19999999999998863,-0.19999999999998863,-0.19999999999998863,-0.19999999999998863,-0.19999999999998863,-0.19999999999998863,-0.19999999999998863,-0.19999999999998863,-0.19999999999998863,-0.19999999999998863,-0.19999999999998863,-0.19999999999998863,-0.19999999999998863,-0.19999999999998863,-0.19999999999998863,-0.19999999999998863,-0.19999999999998863,-0.19999999999998863,-0.19999999999998863,-0.19999999999998863,-0.19999999999998863,-0.19999999999998863,-0.19999999999998863,-0.19999999999998863,-0.19999999999998863,-0.19999999999998863,-0.19999999999998863,-0.19999999999998863,-0.19999999999998863,-0.19999999999998863,-0.19999999999998863,-0.19999999999998863,-0.19999999999998863,-0.19999999999998863,-0.19999999999998863,-0.19999999999998863,-0.19999999999998863,-0.19999999999998863,-0.19999999999998863,-0.19999999999998863,-0.19999999999998863,-0.19999999999998863,-0.19999999999998863,-0.19999999999998863,-0.19999999999998863,-0.19999999999998863,-0.19999999999998863,-0.19999999999998863,-0.19999999999998863,-0.19999999999998863,-0.19999999999998863,-0.19999999999998863,-0.19999999999998863,-0.19999999999998863,-0.19999999999998863,-0.19999999999998863,-0.19999999999998863,-0.19999999999998863,-0.19999999999998863,-0.19999999999998863,-0.19999999999998863,-0.19999999999998863,{"$f":"202-COUNTBLANK(JA$25:JA$1035)/5","v":-0.19999999999998863},-0.19999999999998863,-0.19999999999998863,-0.19999999999998863,-0.19999999999998863,-0.19999999999998863,-0.19999999999998863,-0.19999999999998863,-0.19999999999998863,-0.19999999999998863,-0.19999999999998863,-0.19999999999998863,-0.19999999999998863,-0.19999999999998863,-0.19999999999998863,-0.19999999999998863,-0.19999999999998863,-0.19999999999998863,-0.19999999999998863,-0.19999999999998863,-0.19999999999998863,-0.19999999999998863,-0.19999999999998863,-0.19999999999998863,-0.19999999999998863,-0.19999999999998863,-0.19999999999998863,-0.19999999999998863,-0.19999999999998863,-0.19999999999998863,-0.19999999999998863,-0.19999999999998863,-0.19999999999998863,-0.19999999999998863,-0.19999999999998863,-0.19999999999998863,-0.19999999999998863,-0.19999999999998863,-0.19999999999998863,-0.19999999999998863,-0.19999999999998863,-0.19999999999998863,-0.19999999999998863,-0.19999999999998863,-0.19999999999998863,-0.19999999999998863,-0.19999999999998863,-0.19999999999998863,-0.19999999999998863,-0.19999999999998863,-0.19999999999998863,-0.19999999999998863,-0.19999999999998863,-0.19999999999998863,-0.19999999999998863,-0.19999999999998863,-0.19999999999998863,-0.19999999999998863,-0.19999999999998863,-0.19999999999998863,-0.19999999999998863,-0.19999999999998863,-0.19999999999998863,-0.19999999999998863,{"$f":"202-COUNTBLANK(LM$25:LM$1035)/5","v":-0.19999999999998863},-0.19999999999998863,-0.19999999999998863,-0.19999999999998863,-0.19999999999998863,-0.19999999999998863,-0.19999999999998863,-0.19999999999998863,-0.19999999999998863,-0.19999999999998863,-0.19999999999998863,-0.19999999999998863,-0.19999999999998863,-0.19999999999998863,-0.19999999999998863,-0.19999999999998863,-0.19999999999998863,-0.19999999999998863,-0.19999999999998863,-0.19999999999998863,-0.19999999999998863,-0.19999999999998863,-0.19999999999998863,-0.19999999999998863,-0.19999999999998863,-0.19999999999998863,-0.19999999999998863,-0.19999999999998863,-0.19999999999998863,-0.19999999999998863,-0.19999999999998863,-0.19999999999998863,-0.19999999999998863,-0.19999999999998863,-0.19999999999998863,-0.19999999999998863,-0.19999999999998863,-0.19999999999998863,-0.19999999999998863,-0.19999999999998863,-0.19999999999998863,-0.19999999999998863,-0.19999999999998863,-0.19999999999998863,-0.19999999999998863,-0.19999999999998863,-0.19999999999998863,-0.19999999999998863,-0.19999999999998863,-0.19999999999998863,-0.19999999999998863,-0.19999999999998863,-0.19999999999998863,-0.19999999999998863,-0.19999999999998863,-0.19999999999998863,-0.19999999999998863,-0.19999999999998863,-0.19999999999998863,-0.19999999999998863,-0.19999999999998863,-0.19999999999998863,-0.19999999999998863,-0.19999999999998863,{"$f":"202-COUNTBLANK(NY$25:NY$1035)/5","v":-0.19999999999998863},-0.19999999999998863,-0.19999999999998863,-0.19999999999998863,-0.19999999999998863,-0.19999999999998863,-0.19999999999998863,-0.19999999999998863,-0.19999999999998863,-0.19999999999998863,-0.19999999999998863,-0.19999999999998863,-0.19999999999998863,-0.19999999999998863,-0.19999999999998863,-0.19999999999998863,-0.19999999999998863,-0.19999999999998863,-0.19999999999998863,-0.19999999999998863,-0.19999999999998863,-0.19999999999998863,-0.19999999999998863,-0.19999999999998863,-0.19999999999998863,-0.19999999999998863,-0.19999999999998863,-0.19999999999998863,-0.19999999999998863,-0.19999999999998863,-0.19999999999998863,-0.19999999999998863,-0.19999999999998863,-0.19999999999998863,-0.19999999999998863,-0.19999999999998863,-0.19999999999998863,-0.19999999999998863,-0.19999999999998863,-0.19999999999998863,-0.19999999999998863,-0.19999999999998863,-0.19999999999998863,-0.19999999999998863,-0.19999999999998863,-0.19999999999998863,-0.19999999999998863,-0.19999999999998863,-0.19999999999998863,-0.19999999999998863,-0.19999999999998863,-0.19999999999998863,-0.19999999999998863,-0.19999999999998863,-0.19999999999998863,-0.19999999999998863,-0.19999999999998863,-0.19999999999998863,-0.19999999999998863,-0.19999999999998863,-0.19999999999998863,-0.19999999999998863,-0.19999999999998863,-0.19999999999998863,{"$f":"202-COUNTBLANK(QK$25:QK$1035)/5","v":-0.19999999999998863},-0.19999999999998863,-0.19999999999998863,-0.19999999999998863,-0.19999999999998863,-0.19999999999998863,-0.19999999999998863,-0.19999999999998863,-0.19999999999998863,-0.19999999999998863,-0.19999999999998863,-0.19999999999998863,-0.19999999999998863,-0.19999999999998863,-0.19999999999998863,-0.19999999999998863,-0.19999999999998863,-0.19999999999998863,-0.19999999999998863,-0.19999999999998863,-0.19999999999998863,-0.19999999999998863,-0.19999999999998863,-0.19999999999998863,-0.19999999999998863,-0.19999999999998863,-0.19999999999998863,-0.19999999999998863,-0.19999999999998863,-0.19999999999998863,-0.19999999999998863,-0.19999999999998863,-0.19999999999998863,-0.19999999999998863,-0.19999999999998863,-0.19999999999998863,-0.19999999999998863,-0.19999999999998863,-0.19999999999998863,-0.19999999999998863,-0.19999999999998863,-0.19999999999998863,-0.19999999999998863,-0.19999999999998863,-0.19999999999998863,-0.19999999999998863,-0.19999999999998863,-0.19999999999998863,-0.19999999999998863,-0.19999999999998863,-0.19999999999998863,-0.19999999999998863,-0.19999999999998863,-0.19999999999998863,-0.19999999999998863,-0.19999999999998863,-0.19999999999998863,-0.19999999999998863,-0.19999999999998863,-0.19999999999998863,-0.19999999999998863,-0.19999999999998863,-0.19999999999998863,-0.19999999999998863,{"$f":"202-COUNTBLANK(SW$25:SW$1035)/5","v":-0.19999999999998863},-0.19999999999998863,-0.19999999999998863,-0.19999999999998863,-0.19999999999998863,-0.19999999999998863,-0.19999999999998863,-0.19999999999998863,-0.19999999999998863,-0.19999999999998863,-0.19999999999998863,-0.19999999999998863,-0.19999999999998863,-0.19999999999998863,-0.19999999999998863,-0.19999999999998863,-0.19999999999998863,-0.19999999999998863,-0.19999999999998863,-0.19999999999998863,-0.19999999999998863,-0.19999999999998863,-0.19999999999998863,-0.19999999999998863,-0.19999999999998863,-0.19999999999998863,-0.19999999999998863,-0.19999999999998863,-0.19999999999998863,-0.19999999999998863,-0.19999999999998863,-0.19999999999998863,-0.19999999999998863,-0.19999999999998863,-0.19999999999998863,-0.19999999999998863,-0.19999999999998863]
[200,"回/月以上表示","クリック数",{"$f":"SUMIF($C$25:$C$1034,$C21,D$25:D$1034)","v":0},0,0,0,0,0,0,0,0,0,{"$f":"SUMIF($C$25:$C$1034,$C21,N$25:N$1034)","v":0},0,0,0,0,0,0,0,0,0,{"$f":"SUMIF($C$25:$C$1034,$C21,X$25:X$1034)","v":0},0,0,0,0,0,0,{"$f":"SUMIF($C$25:$C$1034,$C21,AE$25:AE$1034)","v":0},0,0,0,0,0,0,0,0,0,0,0,0,0,0,0,0,0,0,0,0,0,0,0,0,0,0,0,0,0,0,0,0,0,0,0,0,0,0,0,0,0,0,0,0,0,0,0,0,0,0,0,0,0,0,0,0,0,0,0,0,0,0,0,{"$f":"SUMIF($C$25:$C$1034,$C21,CQ$25:CQ$1034)","v":0},0,0,0,0,0,0,0,0,0,0,0,0,0,0,0,0,0,0,0,0,0,0,0,0,0,0,0,0,0,0,0,0,0,0,0,0,0,0,0,0,0,0,0,0,0,0,0,0,0,0,0,0,0,0,0,0,0,0,0,0,0,0,0,{"$f":"SUMIF($C$25:$C$1034,$C21,FC$25:FC$1034)","v":0},0,0,0,0,0,0,0,0,0,0,0,0,0,0,0,0,0,0,0,0,0,0,0,0,0,0,0,0,0,0,0,0,0,0,0,0,0,0,0,0,0,0,0,0,0,0,0,0,0,0,0,0,0,0,0,0,0,0,0,0,0,0,0,{"$f":"SUMIF($C$25:$C$1034,$C21,HO$25:HO$1034)","v":0},0,0,0,0,0,0,0,0,0,0,0,0,0,0,0,0,0,0,0,0,0,0,0,0,0,0,0,0,0,0,0,0,0,0,0,0,0,0,0,0,0,0,0,0,0,0,0,0,0,0,0,0,0,0,0,0,0,0,0,0,0,0,0,{"$f":"SUMIF($C$25:$C$1034,$C21,KA$25:KA$1034)","v":0},0,0,0,0,0,0,0,0,0,0,0,0,0,0,0,0,0,0,0,0,0,0,0,0,0,0,0,0,0,0,0,0,0,0,0,0,0,0,0,0,0,0,0,0,0,0,0,0,0,0,0,0,0,0,0,0,0,0,0,0,0,0,0,{"$f":"SUMIF($C$25:$C$1034,$C21,MM$25:MM$1034)","v":0},0,0,0,0,0,0,0,0,0,0,0,0,0,0,0,0,0,0,0,0,0,0,0,0,0,0,0,0,0,0,0,0,0,0,0,0,0,0,0,0,0,0,0,0,0,0,0,0,0,0,0,0,0,0,0,0,0,0,0,0,0,0,0,{"$f":"SUMIF($C$25:$C$1034,$C21,OY$25:OY$1034)","v":0},0,0,0,0,0,0,0,0,0,0,0,0,0,0,0,0,0,0,0,0,0,0,0,0,0,0,0,0,0,0,0,0,0,0,0,0,0,0,0,0,0,0,0,0,0,0,0,0,0,0,0,0,0,0,0,0,0,0,0,0,0,0,0,{"$f":"SUMIF($C$25:$C$1034,$C21,RK$25:RK$1034)","v":0},0,0,0,0,0,0,0,0,0,0,0,0,0,0,0,0,0,0,0,0,0,0,0,0,0,0,{"$f":"SUMIF($C$25:$C$1034,$C21,SL$25:SL$1034)","v":0},0,0,0,0,0,0,0,0,0,0,0,0,0,0,0,0,0,0,0,0,0,0,0,0,0,0,0,0,0,0,0,0,0,0,0,0,0,0,0,0,0,0,0,0,0,0,0]
[11,"位以上で","表示回数",0,0,0,0,0,0,0,0,0,0,0,0,0,0,0,0,0,0,0,0,0,0,0,0,0,0,0,0,0,0,0,0,0,0,0,0,0,0,0,0,0,0,0,0,0,0,0,0,0,0,0,0,0,0,0,0,0,0,0,0,0,0,0,0,0,0,0,0,0,0,0,0,0,0,0,0,0,0,0,0,0,0,0,0,0,0,0,0,0,0,0,0,0,0,0,0,0,0,0,0,0,0,0,0,0,0,0,0,0,0,0,0,0,0,0,0,0,0,0,0,0,0,0,0,0,0,0,0,0,0,0,0,0,0,0,0,0,0,0,0,0,0,0,0,0,0,0,0,0,0,0,0,0,0,0,0,0,0,0,0,0,0,0,0,0,0,0,0,0,0,0,0,0,0,0,0,0,0,0,0,0,0,0,0,0,0,0,0,0,0,0,0,0,0,0,0,0,0,0,0,0,0,0,0,0,0,0,0,0,0,0,0,0,0,0,0,0,0,0,0,0,0,0,0,0,0,0,0,0,0,0,0,0,0,0,0,0,0,0,0,0,0,0,0,0,0,0,0,0,0,0,0,0,0,0,0,0,0,0,0,0,0,0,0,0,0,0,0,0,0,0,0,0,0,0,0,0,0,0,0,0,0,0,0,0,0,0,0,0,0,0,0,0,0,0,0,0,0,0,0,0,0,0,0,0,0,0,0,0,0,0,0,0,0,0,0,0,0,0,0,0,0,0,0,0,0,0,0,0,0,0,0,0,0,0,0,0,0,0,0,0,0,0,0,0,0,0,0,0,0,0,0,0,0,0,0,0,0,0,0,0,0,0,0,0,0,0,0,0,0,0,0,0,0,0,0,0,{"$f":"SUMIF($C$25:$C$1034,$C22,NQ$25:NQ$1034)","v":0},0,0,0,0,0,0,0,0,0,0,0,0,0,0,0,0,0,0,0,0,0,0,0,0,0,0,0,0,0,0,0,0,0,0,0,0,0,0,0,0,0,0,0,0,0,0,0,0,0,0,0,0,0,0,0,0,0,0,0,0,0,0,0,0,0,0,0,0,0,0,0,0,0,0,0,0,0,0,0,0,0,0,0,0,0,0,0,0,0,0,0,0,0,0,0,0,0,0,0,0,0,0,0,0,0,0,0,0,0,0,0,0,0,0,0,0,0,0,0,0,0,0,0,0,0,0,0,0,0,0,0,0,0,0,0,0,0,0,0,0,0,0,0,0,0,0,0,0,0,0,0,0,0,0,0,0,0,0,0,0,0,0,0,0,0,0,0,0,0,0,0,0]
[80,"回/月以上表示","CTR",{"$f":"D21/D22","v":{"$error":"#DIV/0!"}},{"$f":"E21/E22","v":{"$error":"#DIV/0!"}},{"$error":"#DIV/0!"},{"$error":"#DIV/0!"},{"$error":"#DIV/0!"},{"$error":"#DIV/0!"},{"$error":"#DIV/0!"},{"$error":"#DIV/0!"},{"$error":"#DIV/0!"},{"$error":"#DIV/0!"},{"$error":"#DIV/0!"},{"$error":"#DIV/0!"},{"$error":"#DIV/0!"},{"$error":"#DIV/0!"},{"$error":"#DIV/0!"},{"$error":"#DIV/0!"},{"$error":"#DIV/0!"},{"$error":"#DIV/0!"},{"$error":"#DIV/0!"},{"$error":"#DIV/0!"},{"$error":"#DIV/0!"},{"$error":"#DIV/0!"},{"$error":"#DIV/0!"},{"$error":"#DIV/0!"},{"$error":"#DIV/0!"},{"$error":"#DIV/0!"},{"$error":"#DIV/0!"},{"$error":"#DIV/0!"},{"$error":"#DIV/0!"},{"$error":"#DIV/0!"},{"$error":"#DIV/0!"},{"$error":"#DIV/0!"},{"$error":"#DIV/0!"},{"$error":"#DIV/0!"},{"$error":"#DIV/0!"},{"$error":"#DIV/0!"},{"$error":"#DIV/0!"},{"$error":"#DIV/0!"},{"$error":"#DIV/0!"},{"$error":"#DIV/0!"},{"$error":"#DIV/0!"},{"$error":"#DIV/0!"},{"$error":"#DIV/0!"},{"$error":"#DIV/0!"},{"$error":"#DIV/0!"},{"$error":"#DIV/0!"},{"$error":"#DIV/0!"},{"$error":"#DIV/0!"},{"$error":"#DIV/0!"},{"$error":"#DIV/0!"},{"$error":"#DIV/0!"},{"$error":"#DIV/0!"},{"$error":"#DIV/0!"},{"$error":"#DIV/0!"},{"$error":"#DIV/0!"},{"$error":"#DIV/0!"},{"$error":"#DIV/0!"},{"$error":"#DIV/0!"},{"$error":"#DIV/0!"},{"$error":"#DIV/0!"},{"$error":"#DIV/0!"},{"$error":"#DIV/0!"},{"$error":"#DIV/0!"},{"$error":"#DIV/0!"},{"$error":"#DIV/0!"},{"$f":"BQ21/BQ22","v":{"$error":"#DIV/0!"}},{"$error":"#DIV/0!"},{"$error":"#DIV/0!"},{"$error":"#DIV/0!"},{"$error":"#DIV/0!"},{"$error":"#DIV/0!"},{"$error":"#DIV/0!"},{"$error":"#DIV/0!"},{"$error":"#DIV/0!"},{"$error":"#DIV/0!"},{"$error":"#DIV/0!"},{"$error":"#DIV/0!"},{"$error":"#DIV/0!"},{"$error":"#DIV/0!"},{"$error":"#DIV/0!"},{"$error":"#DIV/0!"},{"$error":"#DIV/0!"},{"$error":"#DIV/0!"},{"$error":"#DIV/0!"},{"$error":"#DIV/0!"},{"$error":"#DIV/0!"},{"$error":"#DIV/0!"},{"$error":"#DIV/0!"},{"$error":"#DIV/0!"},{"$error":"#DIV/0!"},{"$error":"#DIV/0!"},{"$error":"#DIV/0!"},{"$error":"#DIV/0!"},{"$error":"#DIV/0!"},{"$error":"#DIV/0!"},{"$error":"#DIV/0!"},{"$error":"#DIV/0!"},{"$error":"#DIV/0!"},{"$error":"#DIV/0!"},{"$error":"#DIV/0!"},{"$error":"#DIV/0!"},{"$error":"#DIV/0!"},{"$error":"#DIV/0!"},{"$error":"#DIV/0!"},{"$error":"#DIV/0!"},{"$error":"#DIV/0!"},{"$error":"#DIV/0!"},{"$error":"#DIV/0!"},{"$error":"#DIV/0!"},{"$error":"#DIV/0!"},{"$error":"#DIV/0!"},{"$error":"#DIV/0!"},{"$error":"#DIV/0!"},{"$error":"#DIV/0!"},{"$error":"#DIV/0!"},{"$error":"#DIV/0!"},{"$error":"#DIV/0!"},{"$error":"#DIV/0!"},{"$error":"#DIV/0!"},{"$error":"#DIV/0!"},{"$error":"#DIV/0!"},{"$error":"#DIV/0!"},{"$error":"#DIV/0!"},{"$error":"#DIV/0!"},{"$error":"#DIV/0!"},{"$error":"#DIV/0!"},{"$error":"#DIV/0!"},{"$error":"#DIV/0!"},{"$error":"#DIV/0!"},{"$f":"EC21/EC22","v":{"$error":"#DIV/0!"}},{"$error":"#DIV/0!"},{"$error":"#DIV/0!"},{"$error":"#DIV/0!"},{"$error":"#DIV/0!"},{"$error":"#DIV/0!"},{"$error":"#DIV/0!"},{"$error":"#DIV/0!"},{"$error":"#DIV/0!"},{"$error":"#DIV/0!"},{"$error":"#DIV/0!"},{"$error":"#DIV/0!"},{"$error":"#DIV/0!"},{"$error":"#DIV/0!"},{"$error":"#DIV/0!"},{"$error":"#DIV/0!"},{"$error":"#DIV/0!"},{"$error":"#DIV/0!"},{"$error":"#DIV/0!"},{"$error":"#DIV/0!"},{"$error":"#DIV/0!"},{"$error":"#DIV/0!"},{"$error":"#DIV/0!"},{"$error":"#DIV/0!"},{"$error":"#DIV/0!"},{"$error":"#DIV/0!"},{"$error":"#DIV/0!"},{"$error":"#DIV/0!"},{"$error":"#DIV/0!"},{"$error":"#DIV/0!"},{"$error":"#DIV/0!"},{"$error":"#DIV/0!"},{"$error":"#DIV/0!"},{"$error":"#DIV/0!"},{"$error":"#DIV/0!"},{"$error":"#DIV/0!"},{"$error":"#DIV/0!"},{"$error":"#DIV/0!"},{"$error":"#DIV/0!"},{"$error":"#DIV/0!"},{"$error":"#DIV/0!"},{"$error":"#DIV/0!"},{"$error":"#DIV/0!"},{"$error":"#DIV/0!"},{"$error":"#DIV/0!"},{"$error":"#DIV/0!"},{"$error":"#DIV/0!"},{"$error":"#DIV/0!"},{"$error":"#DIV/0!"},{"$error":"#DIV/0!"},{"$error":"#DIV/0!"},{"$error":"#DIV/0!"},{"$error":"#DIV/0!"},{"$error":"#DIV/0!"},{"$error":"#DIV/0!"},{"$error":"#DIV/0!"},{"$error":"#DIV/0!"},{"$error":"#DIV/0!"},{"$error":"#DIV/0!"},{"$error":"#DIV/0!"},{"$error":"#DIV/0!"},{"$error":"#DIV/0!"},{"$error":"#DIV/0!"},{"$error":"#DIV/0!"},{"$f":"GO21/GO22","v":{"$error":"#DIV/0!"}},{"$error":"#DIV/0!"},{"$error":"#DIV/0!"},{"$error":"#DIV/0!"},{"$error":"#DIV/0!"},{"$error":"#DIV/0!"},{"$error":"#DIV/0!"},{"$error":"#DIV/0!"},{"$error":"#DIV/0!"},{"$error":"#DIV/0!"},{"$error":"#DIV/0!"},{"$error":"#DIV/0!"},{"$error":"#DIV/0!"},{"$error":"#DIV/0!"},{"$error":"#DIV/0!"},{"$error":"#DIV/0!"},{"$error":"#DIV/0!"},{"$error":"#DIV/0!"},{"$error":"#DIV/0!"},{"$error":"#DIV/0!"},{"$error":"#DIV/0!"},{"$error":"#DIV/0!"},{"$error":"#DIV/0!"},{"$error":"#DIV/0!"},{"$error":"#DIV/0!"},{"$error":"#DIV/0!"},{"$error":"#DIV/0!"},{"$error":"#DIV/0!"},{"$error":"#DIV/0!"},{"$error":"#DIV/0!"},{"$error":"#DIV/0!"},{"$error":"#DIV/0!"},{"$error":"#DIV/0!"},{"$error":"#DIV/0!"},{"$error":"#DIV/0!"},{"$error":"#DIV/0!"},{"$error":"#DIV/0!"},{"$error":"#DIV/0!"},{"$error":"#DIV/0!"},{"$error":"#DIV/0!"},{"$error":"#DIV/0!"},{"$error":"#DIV/0!"},{"$error":"#DIV/0!"},{"$error":"#DIV/0!"},{"$error":"#DIV/0!"},{"$error":"#DIV/0!"},{"$error":"#DIV/0!"},{"$error":"#DIV/0!"},{"$error":"#DIV/0!"},{"$error":"#DIV/0!"},{"$error":"#DIV/0!"},{"$error":"#DIV/0!"},{"$error":"#DIV/0!"},{"$error":"#DIV/0!"},{"$error":"#DIV/0!"},{"$error":"#DIV/0!"},{"$error":"#DIV/0!"},{"$error":"#DIV/0!"},{"$error":"#DIV/0!"},{"$error":"#DIV/0!"},{"$error":"#DIV/0!"},{"$error":"#DIV/0!"},{"$error":"#DIV/0!"},{"$error":"#DIV/0!"},{"$f":"JA21/JA22","v":{"$error":"#DIV/0!"}},{"$error":"#DIV/0!"},{"$error":"#DIV/0!"},{"$error":"#DIV/0!"},{"$error":"#DIV/0!"},{"$error":"#DIV/0!"},{"$error":"#DIV/0!"},{"$error":"#DIV/0!"},{"$error":"#DIV/0!"},{"$error":"#DIV/0!"},{"$error":"#DIV/0!"},{"$error":"#DIV/0!"},{"$error":"#DIV/0!"},{"$error":"#DIV/0!"},{"$error":"#DIV/0!"},{"$error":"#DIV/0!"},{"$error":"#DIV/0!"},{"$error":"#DIV/0!"},{"$error":"#DIV/0!"},{"$error":"#DIV/0!"},{"$error":"#DIV/0!"},{"$error":"#DIV/0!"},{"$error":"#DIV/0!"},{"$error":"#DIV/0!"},{"$error":"#DIV/0!"},{"$error":"#DIV/0!"},{"$error":"#DIV/0!"},{"$error":"#DIV/0!"},{"$error":"#DIV/0!"},{"$error":"#DIV/0!"},{"$error":"#DIV/0!"},{"$error":"#DIV/0!"},{"$error":"#DIV/0!"},{"$error":"#DIV/0!"},{"$error":"#DIV/0!"},{"$error":"#DIV/0!"},{"$error":"#DIV/0!"},{"$error":"#DIV/0!"},{"$error":"#DIV/0!"},{"$error":"#DIV/0!"},{"$error":"#DIV/0!"},{"$error":"#DIV/0!"},{"$error":"#DIV/0!"},{"$error":"#DIV/0!"},{"$error":"#DIV/0!"},{"$error":"#DIV/0!"},{"$error":"#DIV/0!"},{"$error":"#DIV/0!"},{"$error":"#DIV/0!"},{"$error":"#DIV/0!"},{"$error":"#DIV/0!"},{"$error":"#DIV/0!"},{"$error":"#DIV/0!"},{"$error":"#DIV/0!"},{"$error":"#DIV/0!"},{"$error":"#DIV/0!"},{"$error":"#DIV/0!"},{"$error":"#DIV/0!"},{"$error":"#DIV/0!"},{"$error":"#DIV/0!"},{"$error":"#DIV/0!"},{"$error":"#DIV/0!"},{"$error":"#DIV/0!"},{"$error":"#DIV/0!"},{"$f":"LM21/LM22","v":{"$error":"#DIV/0!"}},{"$error":"#DIV/0!"},{"$error":"#DIV/0!"},{"$error":"#DIV/0!"},{"$error":"#DIV/0!"},{"$error":"#DIV/0!"},{"$error":"#DIV/0!"},{"$error":"#DIV/0!"},{"$error":"#DIV/0!"},{"$error":"#DIV/0!"},{"$error":"#DIV/0!"},{"$error":"#DIV/0!"},{"$error":"#DIV/0!"},{"$error":"#DIV/0!"},{"$error":"#DIV/0!"},{"$error":"#DIV/0!"},{"$error":"#DIV/0!"},{"$error":"#DIV/0!"},{"$error":"#DIV/0!"},{"$error":"#DIV/0!"},{"$error":"#DIV/0!"},{"$error":"#DIV/0!"},{"$error":"#DIV/0!"},{"$error":"#DIV/0!"},{"$error":"#DIV/0!"},{"$error":"#DIV/0!"},{"$error":"#DIV/0!"},{"$error":"#DIV/0!"},{"$error":"#DIV/0!"},{"$error":"#DIV/0!"},{"$error":"#DIV/0!"},{"$error":"#DIV/0!"},{"$error":"#DIV/0!"},{"$error":"#DIV/0!"},{"$error":"#DIV/0!"},{"$error":"#DIV/0!"},{"$error":"#DIV/0!"},{"$error":"#DIV/0!"},{"$error":"#DIV/0!"},{"$error":"#DIV/0!"},{"$error":"#DIV/0!"},{"$error":"#DIV/0!"},{"$error":"#DIV/0!"},{"$error":"#DIV/0!"},{"$error":"#DIV/0!"},{"$error":"#DIV/0!"},{"$error":"#DIV/0!"},{"$error":"#DIV/0!"},{"$error":"#DIV/0!"},{"$error":"#DIV/0!"},{"$error":"#DIV/0!"},{"$error":"#DIV/0!"},{"$error":"#DIV/0!"},{"$error":"#DIV/0!"},{"$error":"#DIV/0!"},{"$error":"#DIV/0!"},{"$f":"NQ21/NQ22","v":{"$error":"#DIV/0!"}},{"$error":"#DIV/0!"},{"$error":"#DIV/0!"},{"$error":"#DIV/0!"},{"$error":"#DIV/0!"},{"$error":"#DIV/0!"},{"$error":"#DIV/0!"},{"$error":"#DIV/0!"},{"$error":"#DIV/0!"},{"$error":"#DIV/0!"},{"$error":"#DIV/0!"},{"$error":"#DIV/0!"},{"$error":"#DIV/0!"},{"$error":"#DIV/0!"},{"$error":"#DIV/0!"},{"$error":"#DIV/0!"},{"$error":"#DIV/0!"},{"$error":"#DIV/0!"},{"$error":"#DIV/0!"},{"$error":"#DIV/0!"},{"$error":"#DIV/0!"},{"$error":"#DIV/0!"},{"$error":"#DIV/0!"},{"$error":"#DIV/0!"},{"$error":"#DIV/0!"},{"$error":"#DIV/0!"},{"$error":"#DIV/0!"},{"$error":"#DIV/0!"},{"$error":"#DIV/0!"},{"$error":"#DIV/0!"},{"$error":"#DIV/0!"},{"$error":"#DIV/0!"},{"$error":"#DIV/0!"},{"$error":"#DIV/0!"},{"$error":"#DIV/0!"},{"$error":"#DIV/0!"},{"$error":"#DIV/0!"},{"$error":"#DIV/0!"},{"$error":"#DIV/0!"},{"$error":"#DIV/0!"},{"$error":"#DIV/0!"},{"$error":"#DIV/0!"},{"$error":"#DIV/0!"},{"$error":"#DIV/0!"},{"$error":"#DIV/0!"},{"$error":"#DIV/0!"},{"$error":"#DIV/0!"},{"$error":"#DIV/0!"},{"$error":"#DIV/0!"},{"$error":"#DIV/0!"},{"$error":"#DIV/0!"},{"$error":"#DIV/0!"},{"$error":"#DIV/0!"},{"$error":"#DIV/0!"},{"$error":"#DIV/0!"},{"$error":"#DIV/0!"},{"$error":"#DIV/0!"},{"$error":"#DIV/0!"},{"$error":"#DIV/0!"},{"$error":"#DIV/0!"},{"$error":"#DIV/0!"},{"$error":"#DIV/0!"},{"$error":"#DIV/0!"},{"$error":"#DIV/0!"},{"$f":"QC21/QC22","v":{"$error":"#DIV/0!"}},{"$error":"#DIV/0!"},{"$error":"#DIV/0!"},{"$error":"#DIV/0!"},{"$error":"#DIV/0!"},{"$error":"#DIV/0!"},{"$error":"#DIV/0!"},{"$error":"#DIV/0!"},{"$error":"#DIV/0!"},{"$error":"#DIV/0!"},{"$error":"#DIV/0!"},{"$error":"#DIV/0!"},{"$error":"#DIV/0!"},{"$error":"#DIV/0!"},{"$error":"#DIV/0!"},{"$error":"#DIV/0!"},{"$error":"#DIV/0!"},{"$error":"#DIV/0!"},{"$error":"#DIV/0!"},{"$error":"#DIV/0!"},{"$error":"#DIV/0!"},{"$error":"#DIV/0!"},{"$error":"#DIV/0!"},{"$error":"#DIV/0!"},{"$error":"#DIV/0!"},{"$error":"#DIV/0!"},{"$error":"#DIV/0!"},{"$error":"#DIV/0!"},{"$error":"#DIV/0!"},{"$error":"#DIV/0!"},{"$error":"#DIV/0!"},{"$error":"#DIV/0!"},{"$error":"#DIV/0!"},{"$error":"#DIV/0!"},{"$error":"#DIV/0!"},{"$error":"#DIV/0!"},{"$error":"#DIV/0!"},{"$error":"#DIV/0!"},{"$error":"#DIV/0!"},{"$error":"#DIV/0!"},{"$error":"#DIV/0!"},{"$error":"#DIV/0!"},{"$error":"#DIV/0!"},{"$error":"#DIV/0!"},{"$error":"#DIV/0!"},{"$error":"#DIV/0!"},{"$error":"#DIV/0!"},{"$error":"#DIV/0!"},{"$error":"#DIV/0!"},{"$error":"#DIV/0!"},{"$error":"#DIV/0!"},{"$error":"#DIV/0!"},{"$error":"#DIV/0!"},{"$error":"#DIV/0!"},{"$error":"#DIV/0!"},{"$error":"#DIV/0!"},{"$error":"#DIV/0!"},{"$error":"#DIV/0!"},{"$error":"#DIV/0!"},{"$error":"#DIV/0!"},{"$f":"SK21/SK22","v":{"$error":"#DIV/0!"}},{"$error":"#DIV/0!"},{"$error":"#DIV/0!"},{"$error":"#DIV/0!"},{"$error":"#DIV/0!"},{"$error":"#DIV/0!"},{"$error":"#DIV/0!"},{"$error":"#DIV/0!"},{"$error":"#DIV/0!"},{"$error":"#DIV/0!"},{"$error":"#DIV/0!"},{"$error":"#DIV/0!"},{"$error":"#DIV/0!"},{"$error":"#DIV/0!"},{"$error":"#DIV/0!"},{"$error":"#DIV/0!"},{"$error":"#DIV/0!"},{"$error":"#DIV/0!"},{"$error":"#DIV/0!"},{"$error":"#DIV/0!"},{"$error":"#DIV/0!"},{"$error":"#DIV/0!"},{"$error":"#DIV/0!"},{"$error":"#DIV/0!"},{"$error":"#DIV/0!"},{"$error":"#DIV/0!"},{"$error":"#DIV/0!"},{"$error":"#DIV/0!"},{"$error":"#DIV/0!"},{"$error":"#DIV/0!"},{"$error":"#DIV/0!"},{"$error":"#DIV/0!"},{"$error":"#DIV/0!"},{"$error":"#DIV/0!"},{"$error":"#DIV/0!"},{"$error":"#DIV/0!"},{"$error":"#DIV/0!"},{"$error":"#DIV/0!"},{"$error":"#DIV/0!"},{"$error":"#DIV/0!"},{"$error":"#DIV/0!"},{"$error":"#DIV/0!"},{"$error":"#DIV/0!"},{"$error":"#DIV/0!"},{"$error":"#DIV/0!"},{"$error":"#DIV/0!"},{"$error":"#DIV/0!"},{"$error":"#DIV/0!"},{"$error":"#DIV/0!"}]
[30,"位以上で","検索順位",{"$f":"AVERAGEIF($C$25:$C$1034,$C24,D$25:D$1034)","v":{"$error":"#DIV/0!"}},{"$error":"#DIV/0!"},{"$error":"#DIV/0!"},{"$error":"#DIV/0!"},{"$error":"#DIV/0!"},{"$error":"#DIV/0!"},{"$error":"#DIV/0!"},{"$error":"#DIV/0!"},{"$error":"#DIV/0!"},{"$error":"#DIV/0!"},{"$error":"#DIV/0!"},{"$error":"#DIV/0!"},{"$error":"#DIV/0!"},{"$error":"#DIV/0!"},{"$error":"#DIV/0!"},{"$error":"#DIV/0!"},{"$error":"#DIV/0!"},{"$error":"#DIV/0!"},{"$error":"#DIV/0!"},{"$error":"#DIV/0!"},{"$error":"#DIV/0!"},{"$error":"#DIV/0!"},{"$error":"#DIV/0!"},{"$error":"#DIV/0!"},{"$error":"#DIV/0!"},{"$error":"#DIV/0!"},{"$error":"#DIV/0!"},{"$f":"AVERAGEIF($C$25:$C$1034,$C24,AE$25:AE$1034)","v":{"$error":"#DIV/0!"}},{"$error":"#DIV/0!"},{"$error":"#DIV/0!"},{"$error":"#DIV/0!"},{"$error":"#DIV/0!"},{"$error":"#DIV/0!"},{"$error":"#DIV/0!"},{"$error":"#DIV/0!"},{"$error":"#DIV/0!"},{"$error":"#DIV/0!"},{"$error":"#DIV/0!"},{"$error":"#DIV/0!"},{"$error":"#DIV/0!"},{"$error":"#DIV/0!"},{"$error":"#DIV/0!"},{"$error":"#DIV/0!"},{"$error":"#DIV/0!"},{"$error":"#DIV/0!"},{"$error":"#DIV/0!"},{"$error":"#DIV/0!"},{"$error":"#DIV/0!"},{"$error":"#DIV/0!"},{"$error":"#DIV/0!"},{"$error":"#DIV/0!"},{"$error":"#DIV/0!"},{"$error":"#DIV/0!"},{"$error":"#DIV/0!"},{"$error":"#DIV/0!"},{"$error":"#DIV/0!"},{"$error":"#DIV/0!"},{"$error":"#DIV/0!"},{"$error":"#DIV/0!"},{"$error":"#DIV/0!"},{"$error":"#DIV/0!"},{"$error":"#DIV/0!"},{"$error":"#DIV/0!"},{"$error":"#DIV/0!"},{"$error":"#DIV/0!"},{"$error":"#DIV/0!"},{"$error":"#DIV/0!"},{"$error":"#DIV/0!"},{"$error":"#DIV/0!"},{"$error":"#DIV/0!"},{"$error":"#DIV/0!"},{"$error":"#DIV/0!"},{"$error":"#DIV/0!"},{"$error":"#DIV/0!"},{"$error":"#DIV/0!"},{"$error":"#DIV/0!"},{"$error":"#DIV/0!"},{"$error":"#DIV/0!"},{"$error":"#DIV/0!"},{"$error":"#DIV/0!"},{"$error":"#DIV/0!"},{"$error":"#DIV/0!"},{"$error":"#DIV/0!"},{"$error":"#DIV/0!"},{"$error":"#DIV/0!"},{"$error":"#DIV/0!"},{"$error":"#DIV/0!"},{"$error":"#DIV/0!"},{"$error":"#DIV/0!"},{"$error":"#DIV/0!"},{"$error":"#DIV/0!"},{"$f":"AVERAGEIF($C$25:$C$1034,$C24,CQ$25:CQ$1034)","v":{"$error":"#DIV/0!"}},{"$error":"#DIV/0!"},{"$error":"#DIV/0!"},{"$error":"#DIV/0!"},{"$error":"#DIV/0!"},{"$error":"#DIV/0!"},{"$error":"#DIV/0!"},{"$error":"#DIV/0!"},{"$error":"#DIV/0!"},{"$error":"#DIV/0!"},{"$error":"#DIV/0!"},{"$error":"#DIV/0!"},{"$error":"#DIV/0!"},{"$error":"#DIV/0!"},{"$error":"#DIV/0!"},{"$error":"#DIV/0!"},{"$error":"#DIV/0!"},{"$error":"#DIV/0!"},{"$error":"#DIV/0!"},{"$error":"#DIV/0!"},{"$error":"#DIV/0!"},{"$error":"#DIV/0!"},{"$error":"#DIV/0!"},{"$error":"#DIV/0!"},{"$error":"#DIV/0!"},{"$error":"#DIV/0!"},{"$error":"#DIV/0!"},{"$error":"#DIV/0!"},{"$error":"#DIV/0!"},{"$error":"#DIV/0!"},{"$error":"#DIV/0!"},{"$error":"#DIV/0!"},{"$error":"#DIV/0!"},{"$error":"#DIV/0!"},{"$error":"#DIV/0!"},{"$error":"#DIV/0!"},{"$error":"#DIV/0!"},{"$error":"#DIV/0!"},{"$error":"#DIV/0!"},{"$error":"#DIV/0!"},{"$error":"#DIV/0!"},{"$error":"#DIV/0!"},{"$error":"#DIV/0!"},{"$error":"#DIV/0!"},{"$error":"#DIV/0!"},{"$error":"#DIV/0!"},{"$error":"#DIV/0!"},{"$error":"#DIV/0!"},{"$error":"#DIV/0!"},{"$error":"#DIV/0!"},{"$error":"#DIV/0!"},{"$error":"#DIV/0!"},{"$error":"#DIV/0!"},{"$error":"#DIV/0!"},{"$error":"#DIV/0!"},{"$error":"#DIV/0!"},{"$error":"#DIV/0!"},{"$error":"#DIV/0!"},{"$error":"#DIV/0!"},{"$error":"#DIV/0!"},{"$error":"#DIV/0!"},{"$error":"#DIV/0!"},{"$error":"#DIV/0!"},{"$error":"#DIV/0!"},{"$f":"AVERAGEIF($C$25:$C$1034,$C24,FC$25:FC$1034)","v":{"$error":"#DIV/0!"}},{"$error":"#DIV/0!"},{"$error":"#DIV/0!"},{"$error":"#DIV/0!"},{"$error":"#DIV/0!"},{"$error":"#DIV/0!"},{"$error":"#DIV/0!"},{"$error":"#DIV/0!"},{"$error":"#DIV/0!"},{"$error":"#DIV/0!"},{"$error":"#DIV/0!"},{"$error":"#DIV/0!"},{"$error":"#DIV/0!"},{"$error":"#DIV/0!"},{"$error":"#DIV/0!"},{"$error":"#DIV/0!"},{"$error":"#DIV/0!"},{"$error":"#DIV/0!"},{"$error":"#DIV/0!"},{"$error":"#DIV/0!"},{"$error":"#DIV/0!"},{"$error":"#DIV/0!"},{"$error":"#DIV/0!"},{"$error":"#DIV/0!"},{"$error":"#DIV/0!"},{"$error":"#DIV/0!"},{"$error":"#DIV/0!"},{"$error":"#DIV/0!"},{"$error":"#DIV/0!"},{"$error":"#DIV/0!"},{"$error":"#DIV/0!"},{"$error":"#DIV/0!"},{"$error":"#DIV/0!"},{"$error":"#DIV/0!"},{"$error":"#DIV/0!"},{"$error":"#DIV/0!"},{"$error":"#DIV/0!"},{"$error":"#DIV/0!"},{"$error":"#DIV/0!"},{"$error":"#DIV/0!"},{"$error":"#DIV/0!"},{"$error":"#DIV/0!"},{"$error":"#DIV/0!"},{"$error":"#DIV/0!"},{"$error":"#DIV/0!"},{"$error":"#DIV/0!"},{"$error":"#DIV/0!"},{"$error":"#DIV/0!"},{"$error":"#DIV/0!"},{"$error":"#DIV/0!"},{"$error":"#DIV/0!"},{"$error":"#DIV/0!"},{"$error":"#DIV/0!"},{"$error":"#DIV/0!"},{"$error":"#DIV/0!"},{"$error":"#DIV/0!"},{"$error":"#DIV/0!"},{"$error":"#DIV/0!"},{"$error":"#DIV/0!"},{"$error":"#DIV/0!"},{"$error":"#DIV/0!"},{"$error":"#DIV/0!"},{"$error":"#DIV/0!"},{"$error":"#DIV/0!"},{"$f":"AVERAGEIF($C$25:$C$1034,$C24,HO$25:HO$1034)","v":{"$error":"#DIV/0!"}},{"$error":"#DIV/0!"},{"$error":"#DIV/0!"},{"$error":"#DIV/0!"},{"$error":"#DIV/0!"},{"$error":"#DIV/0!"},{"$error":"#DIV/0!"},{"$error":"#DIV/0!"},{"$error":"#DIV/0!"},{"$error":"#DIV/0!"},{"$error":"#DIV/0!"},{"$error":"#DIV/0!"},{"$error":"#DIV/0!"},{"$error":"#DIV/0!"},{"$error":"#DIV/0!"},{"$error":"#DIV/0!"},{"$error":"#DIV/0!"},{"$error":"#DIV/0!"},{"$error":"#DIV/0!"},{"$error":"#DIV/0!"},{"$error":"#DIV/0!"},{"$error":"#DIV/0!"},{"$error":"#DIV/0!"},{"$error":"#DIV/0!"},{"$error":"#DIV/0!"},{"$error":"#DIV/0!"},{"$error":"#DIV/0!"},{"$error":"#DIV/0!"},{"$error":"#DIV/0!"},{"$error":"#DIV/0!"},{"$error":"#DIV/0!"},{"$error":"#DIV/0!"},{"$error":"#DIV/0!"},{"$error":"#DIV/0!"},{"$error":"#DIV/0!"},{"$error":"#DIV/0!"},{"$error":"#DIV/0!"},{"$error":"#DIV/0!"},{"$error":"#DIV/0!"},{"$error":"#DIV/0!"},{"$error":"#DIV/0!"},{"$error":"#DIV/0!"},{"$error":"#DIV/0!"},{"$error":"#DIV/0!"},{"$error":"#DIV/0!"},{"$error":"#DIV/0!"},{"$error":"#DIV/0!"},{"$error":"#DIV/0!"},{"$error":"#DIV/0!"},{"$error":"#DIV/0!"},{"$error":"#DIV/0!"},{"$error":"#DIV/0!"},{"$error":"#DIV/0!"},{"$error":"#DIV/0!"},{"$error":"#DIV/0!"},{"$error":"#DIV/0!"},{"$error":"#DIV/0!"},{"$error":"#DIV/0!"},{"$error":"#DIV/0!"},{"$error":"#DIV/0!"},{"$error":"#DIV/0!"},{"$error":"#DIV/0!"},{"$error":"#DIV/0!"},{"$error":"#DIV/0!"},{"$f":"AVERAGEIF($C$25:$C$1034,$C24,KA$25:KA$1034)","v":{"$error":"#DIV/0!"}},{"$error":"#DIV/0!"},{"$error":"#DIV/0!"},{"$error":"#DIV/0!"},{"$error":"#DIV/0!"},{"$error":"#DIV/0!"},{"$error":"#DIV/0!"},{"$error":"#DIV/0!"},{"$error":"#DIV/0!"},{"$error":"#DIV/0!"},{"$error":"#DIV/0!"},{"$error":"#DIV/0!"},{"$error":"#DIV/0!"},{"$error":"#DIV/0!"},{"$error":"#DIV/0!"},{"$error":"#DIV/0!"},{"$error":"#DIV/0!"},{"$error":"#DIV/0!"},{"$error":"#DIV/0!"},{"$error":"#DIV/0!"},{"$error":"#DIV/0!"},{"$error":"#DIV/0!"},{"$error":"#DIV/0!"},{"$error":"#DIV/0!"},{"$error":"#DIV/0!"},{"$error":"#DIV/0!"},{"$error":"#DIV/0!"},{"$error":"#DIV/0!"},{"$error":"#DIV/0!"},{"$error":"#DIV/0!"},{"$error":"#DIV/0!"},{"$error":"#DIV/0!"},{"$error":"#DIV/0!"},{"$error":"#DIV/0!"},{"$error":"#DIV/0!"},{"$error":"#DIV/0!"},{"$error":"#DIV/0!"},{"$error":"#DIV/0!"},{"$error":"#DIV/0!"},{"$error":"#DIV/0!"},{"$error":"#DIV/0!"},{"$error":"#DIV/0!"},{"$error":"#DIV/0!"},{"$error":"#DIV/0!"},{"$error":"#DIV/0!"},{"$error":"#DIV/0!"},{"$error":"#DIV/0!"},{"$error":"#DIV/0!"},{"$error":"#DIV/0!"},{"$error":"#DIV/0!"},{"$error":"#DIV/0!"},{"$error":"#DIV/0!"},{"$error":"#DIV/0!"},{"$error":"#DIV/0!"},{"$error":"#DIV/0!"},{"$error":"#DIV/0!"},{"$error":"#DIV/0!"},{"$error":"#DIV/0!"},{"$error":"#DIV/0!"},{"$error":"#DIV/0!"},{"$error":"#DIV/0!"},{"$error":"#DIV/0!"},{"$error":"#DIV/0!"},{"$error":"#DIV/0!"},{"$f":"AVERAGEIF($C$25:$C$1034,$C24,MM$25:MM$1034)","v":{"$error":"#DIV/0!"}},{"$error":"#DIV/0!"},{"$error":"#DIV/0!"},{"$error":"#DIV/0!"},{"$error":"#DIV/0!"},{"$error":"#DIV/0!"},{"$error":"#DIV/0!"},{"$error":"#DIV/0!"},{"$error":"#DIV/0!"},{"$error":"#DIV/0!"},{"$error":"#DIV/0!"},{"$error":"#DIV/0!"},{"$error":"#DIV/0!"},{"$error":"#DIV/0!"},{"$error":"#DIV/0!"},{"$error":"#DIV/0!"},{"$error":"#DIV/0!"},{"$error":"#DIV/0!"},{"$error":"#DIV/0!"},{"$error":"#DIV/0!"},{"$error":"#DIV/0!"},{"$error":"#DIV/0!"},{"$error":"#DIV/0!"},{"$error":"#DIV/0!"},{"$error":"#DIV/0!"},{"$error":"#DIV/0!"},{"$error":"#DIV/0!"},{"$error":"#DIV/0!"},{"$error":"#DIV/0!"},{"$error":"#DIV/0!"},{"$error":"#DIV/0!"},{"$error":"#DIV/0!"},{"$error":"#DIV/0!"},{"$error":"#DIV/0!"},{"$error":"#DIV/0!"},{"$error":"#DIV/0!"},{"$error":"#DIV/0!"},{"$error":"#DIV/0!"},{"$error":"#DIV/0!"},{"$error":"#DIV/0!"},{"$error":"#DIV/0!"},{"$error":"#DIV/0!"},{"$error":"#DIV/0!"},{"$error":"#DIV/0!"},{"$error":"#DIV/0!"},{"$error":"#DIV/0!"},{"$error":"#DIV/0!"},{"$error":"#DIV/0!"},{"$error":"#DIV/0!"},{"$error":"#DIV/0!"},{"$error":"#DIV/0!"},{"$error":"#DIV/0!"},{"$error":"#DIV/0!"},{"$error":"#DIV/0!"},{"$error":"#DIV/0!"},{"$error":"#DIV/0!"},{"$error":"#DIV/0!"},{"$error":"#DIV/0!"},{"$error":"#DIV/0!"},{"$error":"#DIV/0!"},{"$error":"#DIV/0!"},{"$error":"#DIV/0!"},{"$error":"#DIV/0!"},{"$error":"#DIV/0!"},{"$f":"AVERAGEIF($C$25:$C$1034,$C24,OY$25:OY$1034)","v":{"$error":"#DIV/0!"}},{"$error":"#DIV/0!"},{"$error":"#DIV/0!"},{"$error":"#DIV/0!"},{"$error":"#DIV/0!"},{"$error":"#DIV/0!"},{"$error":"#DIV/0!"},{"$error":"#DIV/0!"},{"$error":"#DIV/0!"},{"$error":"#DIV/0!"},{"$error":"#DIV/0!"},{"$error":"#DIV/0!"},{"$error":"#DIV/0!"},{"$error":"#DIV/0!"},{"$error":"#DIV/0!"},{"$error":"#DIV/0!"},{"$error":"#DIV/0!"},{"$error":"#DIV/0!"},{"$error":"#DIV/0!"},{"$error":"#DIV/0!"},{"$error":"#DIV/0!"},{"$error":"#DIV/0!"},{"$error":"#DIV/0!"},{"$error":"#DIV/0!"},{"$error":"#DIV/0!"},{"$error":"#DIV/0!"},{"$error":"#DIV/0!"},{"$error":"#DIV/0!"},{"$error":"#DIV/0!"},{"$error":"#DIV/0!"},{"$error":"#DIV/0!"},{"$error":"#DIV/0!"},{"$error":"#DIV/0!"},{"$error":"#DIV/0!"},{"$error":"#DIV/0!"},{"$error":"#DIV/0!"},{"$error":"#DIV/0!"},{"$error":"#DIV/0!"},{"$error":"#DIV/0!"},{"$error":"#DIV/0!"},{"$error":"#DIV/0!"},{"$error":"#DIV/0!"},{"$error":"#DIV/0!"},{"$error":"#DIV/0!"},{"$error":"#DIV/0!"},{"$error":"#DIV/0!"},{"$error":"#DIV/0!"},{"$error":"#DIV/0!"},{"$error":"#DIV/0!"},{"$error":"#DIV/0!"},{"$error":"#DIV/0!"},{"$error":"#DIV/0!"},{"$error":"#DIV/0!"},{"$error":"#DIV/0!"},{"$error":"#DIV/0!"},{"$error":"#DIV/0!"},{"$error":"#DIV/0!"},{"$error":"#DIV/0!"},{"$error":"#DIV/0!"},{"$error":"#DIV/0!"},{"$error":"#DIV/0!"},{"$error":"#DIV/0!"},{"$error":"#DIV/0!"},{"$error":"#DIV/0!"},{"$f":"AVERAGEIF($C$25:$C$1034,$C24,RK$25:RK$1034)","v":{"$error":"#DIV/0!"}},{"$error":"#DIV/0!"},{"$error":"#DIV/0!"},{"$error":"#DIV/0!"},{"$error":"#DIV/0!"},{"$error":"#DIV/0!"},{"$error":"#DIV/0!"},{"$error":"#DIV/0!"},{"$error":"#DIV/0!"},{"$error":"#DIV/0!"},{"$error":"#DIV/0!"},{"$error":"#DIV/0!"},{"$error":"#DIV/0!"},{"$error":"#DIV/0!"},{"$error":"#DIV/0!"},{"$error":"#DIV/0!"},{"$error":"#DIV/0!"},{"$error":"#DIV/0!"},{"$error":"#DIV/0!"},{"$error":"#DIV/0!"},{"$error":"#DIV/0!"},{"$error":"#DIV/0!"},{"$error":"#DIV/0!"},{"$error":"#DIV/0!"},{"$error":"#DIV/0!"},{"$error":"#DIV/0!"},{"$error":"#DIV/0!"},{"$error":"#DIV/0!"},{"$error":"#DIV/0!"},{"$error":"#DIV/0!"},{"$error":"#DIV/0!"},{"$error":"#DIV/0!"},{"$error":"#DIV/0!"},{"$error":"#DIV/0!"},{"$error":"#DIV/0!"},{"$error":"#DIV/0!"},{"$error":"#DIV/0!"},{"$error":"#DIV/0!"},{"$error":"#DIV/0!"},{"$error":"#DIV/0!"},{"$error":"#DIV/0!"},{"$error":"#DIV/0!"},{"$error":"#DIV/0!"},{"$error":"#DIV/0!"},{"$error":"#DIV/0!"},{"$error":"#DIV/0!"},{"$error":"#DIV/0!"},{"$error":"#DIV/0!"},{"$error":"#DIV/0!"},{"$error":"#DIV/0!"},{"$error":"#DIV/0!"},{"$error":"#DIV/0!"},{"$error":"#DIV/0!"},{"$error":"#DIV/0!"},{"$error":"#DIV/0!"},{"$error":"#DIV/0!"},{"$error":"#DIV/0!"},{"$error":"#DIV/0!"},{"$error":"#DIV/0!"},{"$error":"#DIV/0!"},{"$error":"#DIV/0!"},{"$error":"#DIV/0!"},{"$error":"#DIV/0!"},{"$error":"#DIV/0!"},{"$f":"AVERAGEIF($C$25:$C$1034,$C24,TW$25:TW$1034)","v":{"$error":"#DIV/0!"}},{"$error":"#DIV/0!"},{"$error":"#DIV/0!"},{"$error":"#DIV/0!"},{"$error":"#DIV/0!"},{"$error":"#DIV/0!"},{"$error":"#DIV/0!"},{"$error":"#DIV/0!"},{"$error":"#DIV/0!"},{"$error":"#DIV/0!"},{"$error":"#DIV/0!"}]
[20,"回/月以上表示","キーワード"]
[null,null,"クリック数"]
[null,null,"表示回数"]
[null,null,"CTR"]
[null,null,"検索順位"]
[null,null,"キーワード"]
[null,null,"クリック数"]
[null,null,"表示回数"]
[null,null,"CTR"]
[null,null,"検索順位"]
[null,null,"キーワード"]
[null,null,"クリック数"]
[null,null,"表示回数"]
[null,null,"CTR"]
[null,null,"検索順位"]
[null,null,"キーワード"]
[null,null,"クリック数"]
[null,null,"表示回数"]
[null,null,"CTR"]
[null,null,"検索順位"]
[null,null,"キーワード"]
[null,null,"クリック数"]
[null,null,"表示回数"]
[null,null,"CTR"]
[null,null,"検索順位"]
[null,null,"キーワード"]
[null,null,"クリック数"]
[null,null,"表示回数"]
[null,null,"CTR"]
[null,null,"検索順位"]
[null,null,"キーワード"]
[null,null,"クリック数"]
[null,null,"表示回数"]
[null,null,"CTR"]
[null,null,"検索順位"]
[null,null,"キーワード"]
[null,null,"クリック数"]
[null,null,"表示回数"]
[null,null,"CTR"]
[null,null,"検索順位"]
[null,null,"キーワード"]
[null,null,"クリック数"]
[null,null,"表示回数"]
[null,null,"CTR"]
[null,null,"検索順位"]
[null,null,"キーワード"]
[null,null,"クリック数"]
[null,null,"表示回数"]
[null,null,"CTR"]
[null,null,"検索順位"]
[null,null,"キーワード"]
[null,null,"クリック数"]
[null,null,"表示回数"]
[null,null,"CTR"]
[null,null,"検索順位"]
[null,null,"キーワード"]
[null,null,"クリック数"]
[null,null,"表示回数"]
[null,null,"CTR"]
[null,null,"検索順位"]
[null,null,"キーワード"]
[null,null,"クリック数"]
[null,null,"表示回数"]
[null,null,"CTR"]
[null,null,"検索順位"]
[null,null,"キーワード"]
[null,null,"クリック数"]
[null,null,"表示回数"]
[null,null,"CTR"]
[null,null,"検索順位"]
[null,null,"キーワード"]
[null,null,"クリック数"]
[null,null,"表示回数"]
[null,null,"CTR"]
[null,null,"検索順位"]
[null,null,"キーワード"]
[null,null,"クリック数"]
[null,null,"表示回数"]
[null,null,"CTR"]
[null,null,"検索順位"]
[null,null,"キーワード"]
[null,null,"クリック数"]
[null,null,"表示回数"]
[null,null,"CTR"]
[null,null,"検索順位"]
[null,null,"キーワード"]
[null,null,"クリック数"]
[null,null,"表示回数"]
[null,null,"CTR"]
[null,null,"検索順位"]
[null,null,"キーワード"]
[null,null,"クリック数"]
[null,null,"表示回数"]
[null,null,"CTR"]
[null,null,"検索順位"]
[null,null,"キーワード"]
[null,null,"クリック数"]
[null,null,"表示回数"]
[null,null,"CTR"]
[null,null,"検索順位"]
[null,null,"キーワード"]
[null,null,"クリック数"]
[null,null,"表示回数"]
[null,null,"CTR"]
[null,null,"検索順位"]
[null,null,"キーワード"]
[null,null,"クリック数"]
[null,null,"表示回数"]
[null,null,"CTR"]
[null,null,"検索順位"]
[null,null,"キーワード"]
[null,null,"クリック数"]
[null,null,"表示回数"]
[null,null,"CTR"]
[null,null,"検索順位"]
[null,null,"キーワード"]
[null,null,"クリック数"]
[null,null,"表示回数"]
[null,null,"CTR"]
[null,null,"検索順位"]
[null,null,"キーワード"]
[null,null,"クリック数"]
[null,null,"表示回数"]
[null,null,"CTR"]
[null,null,"検索順位"]
[null,null,"キーワード"]
[null,null,"クリック数"]
[null,null,"表示回数"]
[null,null,"CTR"]
[null,null,"検索順位"]
[null,null,"キーワード"]
[null,null,"クリック数"]
[null,null,"表示回数"]
[null,null,"CTR"]
[null,null,"検索順位"]
[null,null,"キーワード"]
[null,null,"クリック数"]
[null,null,"表示回数"]
[null,null,"CTR"]
[null,null,"検索順位"]
[null,null,"キーワード"]
[null,null,"クリック数"]
[null,null,"表示回数"]
[null,null,"CTR"]
[null,null,"検索順位"]
[null,null,"キーワード"]
[null,null,"クリック数"]
[null,null,"表示回数"]
[null,null,"CTR"]
[null,null,"検索順位"]
[null,null,"キーワード"]
[null,null,"クリック数"]
[null,null,"表示回数"]
[null,null,"CTR"]
[null,null,"検索順位"]
[null,null,"キーワード"]
[null,null,"クリック数"]
[null,null,"表示回数"]
[null,null,"CTR"]
[null,null,"検索順位"]
[null,null,"キーワード"]
[null,null,"クリック数"]
[null,null,"表示回数"]
[null,null,"CTR"]
[null,null,"検索順位"]
[null,null,"キーワード"]
[null,null,"クリック数"]
[null,null,"表示回数"]
[null,null,"CTR"]
[null,null,"検索順位"]
[null,null,"キーワード"]
[null,null,"クリック数"]
[null,null,"表示回数"]
[null,null,"CTR"]
[null,null,"検索順位"]
[null,null,"キーワード"]
[null,null,"クリック数"]
[null,null,"表示回数"]
[null,null,"CTR"]
[null,null,"検索順位"]
[null,null,"キーワード"]
[null,null,"クリック数"]
[null,null,"表示回数"]
[null,null,"CTR"]
[null,null,"検索順位"]
[null,null,"キーワード"]
[null,null,"クリック数"]
[null,null,"表示回数"]
[null,null,"CTR"]
[null,null,"検索順位"]
[null,null,"キーワード"]
[null,null,"クリック数"]
[null,null,"表示回数"]
[null,null,"CTR"]
[null,null,"検索順位"]
[null,null,"キーワード"]
[null,null,"クリック数"]
[null,null,"表示回数"]
[null,null,"CTR"]
[null,null,"検索順位"]
[null,null,"キーワード"]
[null,null,"クリック数"]
[null,null,"表示回数"]
[null,null,"CTR"]
[null,null,"検索順位"]
[null,null,"キーワード"]
[null,null,"クリック数"]
[null,null,"表示回数"]
[null,null,"CTR"]
[null,null,"検索順位"]
[null,null,"キーワード"]
[null,null,"クリック数"]
[null,null,"表示回数"]
[null,null,"CTR"]
[null,null,"検索順位"]
[null,null,"キーワード"]
[null,null,"クリック数"]
[null,null,"表示回数"]
[null,null,"CTR"]
[null,null,"検索順位"]
[null,null,"キーワード"]
[null,null,"クリック数"]
[null,null,"表示回数"]
[null,null,"CTR"]
[null,null,"検索順位"]
[null,null,"キーワード"]
[null,null,"クリック数"]
[null,null,"表示回数"]
[null,null,"CTR"]
[null,null,"検索順位"]
[null,null,"キーワード"]
[null,null,"クリック数"]
[null,null,"表示回数"]
[null,null,"CTR"]
[null,null,"検索順位"]
[null,null,"キーワード"]
[null,null,"クリック数"]
[null,null,"表示回数"]
[null,null,"CTR"]
[null,null,"検索順位"]
[null,null,"キーワード"]
[null,null,"クリック数"]
[null,null,"表示回数"]
[null,null,"CTR"]
[null,null,"検索順位"]
[null,null,"キーワード"]
[null,null,"クリック数"]
[null,null,"表示回数"]
[null,null,"CTR"]
[null,null,"検索順位"]
[null,null,"キーワード"]
[null,null,"クリック数"]
[null,null,"表示回数"]
[null,null,"CTR"]
[null,null,"検索順位"]
[null,null,"キーワード"]
[null,null,"クリック数"]
[null,null,"表示回数"]
[null,null,"CTR"]
[null,null,"検索順位"]
[null,null,"キーワード"]
[null,null,"クリック数"]
[null,null,"表示回数"]
[null,null,"CTR"]
[null,null,"検索順位"]
[null,null,"キーワード"]
[null,null,"クリック数"]
[null,null,"表示回数"]
[null,null,"CTR"]
[null,null,"検索順位"]
[null,null,"キーワード"]
[null,null,"クリック数"]
[null,null,"表示回数"]
[null,null,"CTR"]
[null,null,"検索順位"]
[null,null,"キーワード"]
[null,null,"クリック数"]
[null,null,"表示回数"]
[null,null,"CTR"]
[null,null,"検索順位"]
[null,null,"キーワード"]
[null,null,"クリック数"]
[null,null,"表示回数"]
[null,null,"CTR"]
[null,null,"検索順位"]
[null,null,"キーワード"]
[null,null,"クリック数"]
[null,null,"表示回数"]
[null,null,"CTR"]
[null,null,"検索順位"]
[null,null,"キーワード"]
[null,null,"クリック数"]
[null,null,"表示回数"]
[null,null,"CTR"]
[null,null,"検索順位"]
[null,null,"キーワード"]
[null,null,"クリック数"]
[null,null,"表示回数"]
[null,null,"CTR"]
[null,null,"検索順位"]
[null,null,"キーワード"]
[null,null,"クリック数"]
[null,null,"表示回数"]
[null,null,"CTR"]
[null,null,"検索順位"]
[null,null,"キーワード"]
[null,null,"クリック数"]
[null,null,"表示回数"]
[null,null,"CTR"]
[null,null,"検索順位"]
[null,null,"キーワード"]
[null,null,"クリック数"]
[null,null,"表示回数"]
[null,null,"CTR"]
[null,null,"検索順位"]
[null,null,"キーワード"]
[null,null,"クリック数"]
[null,null,"表示回数"]
[null,null,"CTR"]
[null,null,"検索順位"]
[null,null,"キーワード"]
[null,null,"クリック数"]
[null,null,"表示回数"]
[null,null,"CTR"]
[null,null,"検索順位"]
[null,null,"キーワード"]
[null,null,"クリック数"]
[null,null,"表示回数"]
[null,null,"CTR"]
[null,null,"検索順位"]
[null,null,"キーワード"]
[null,null,"クリック数"]
[null,null,"表示回数"]
[null,null,"CTR"]
[null,null,"検索順位"]
[null,null,"キーワード"]
[null,null,"クリック数"]
[null,null,"表示回数"]
[null,null,"CTR"]
[null,null,"検索順位"]
[null,null,"キーワード"]
[null,null,"クリック数"]
[null,null,"表示回数"]
[null,null,"CTR"]
[null,null,"検索順位"]
[null,null,"キーワード"]
[null,null,"クリック数"]
[null,null,"表示回数"]
[null,null,"CTR"]
[null,null,"検索順位"]
[null,null,"キーワード"]
[null,null,"クリック数"]
[null,null,"表示回数"]
[null,null,"CTR"]
[null,null,"検索順位"]
[null,null,"キーワード"]
[null,null,"クリック数"]
[null,null,"表示回数"]
[null,null,"CTR"]
[null,null,"検索順位"]
[null,null,"キーワード"]
[null,null,"クリック数"]
[null,null,"表示回数"]
[null,null,"CTR"]
[null,null,"検索順位"]
[null,null,"キーワード"]
[null,null,"クリック数"]
[null,null,"表示回数"]
[null,null,"CTR"]
[null,null,"検索順位"]
[null,null,"キーワード"]
[null,null,"クリック数"]
[null,null,"表示回数"]
[null,null,"CTR"]
[null,null,"検索順位"]
[null,null,"キーワード"]
[null,null,"クリック数"]
[null,null,"表示回数"]
[null,null,"CTR"]
[null,null,"検索順位"]
[null,null,"キーワード"]
[null,null,"クリック数"]
[null,null,"表示回数"]
[null,null,"CTR"]
[null,null,"検索順位"]
[null,null,"キーワード"]
[null,null,"クリック数"]
[null,null,"表示回数"]
[null,null,"CTR"]
[null,null,"検索順位"]
[null,null,"キーワード"]
[null,null,"クリック数"]
[null,null,"表示回数"]
[null,null,"CTR"]
[null,null,"検索順位"]
[null,null,"キーワード"]
[null,null,"クリック数"]
[null,null,"表示回数"]
[null,null,"CTR"]
[null,null,"検索順位"]
[null,null,"キーワード"]
[null,null,"クリック数"]
[null,null,"表示回数"]
[null,null,"CTR"]
[null,null,"検索順位"]
[null,null,"キーワード"]
[null,null,"クリック数"]
[null,null,"表示回数"]
[null,null,"CTR"]
[null,null,"検索順位"]
[null,null,"キーワード"]
[null,null,"クリック数"]
[null,null,"表示回数"]
[null,null,"CTR"]
[null,null,"検索順位"]
[null,null,"キーワード"]
[null,null,"クリック数"]
[null,null,"表示回数"]
[null,null,"CTR"]
[null,null,"検索順位"]
[null,null,"キーワード"]
[null,null,"クリック数"]
[null,null,"表示回数"]
[null,null,"CTR"]
[null,null,"検索順位"]
[null,null,"キーワード"]
[null,null,"クリック数"]
[null,null,"表示回数"]
[null,null,"CTR"]
[null,null,"検索順位"]
[null,null,"キーワード"]
[null,null,"クリック数"]
[null,null,"表示回数"]
[null,null,"CTR"]
[null,null,"検索順位"]
[null,null,"キーワード"]
[null,null,"クリック数"]
[null,null,"表示回数"]
[null,null,"CTR"]
[null,null,"検索順位"]
[null,null,"キーワード"]
[null,null,"クリック数"]
[null,null,"表示回数"]
[null,null,"CTR"]
[null,null,"検索順位"]
[null,null,"キーワード"]
[null,null,"クリック数"]
[null,null,"表示回数"]
[null,null,"CTR"]
[null,null,"検索順位"]
[null,null,"キーワード"]
[null,null,"クリック数"]
[null,null,"表示回数"]
[null,null,"CTR"]
[null,null,"検索順位"]
[null,null,"キーワード"]
[null,null,"クリック数"]
[null,null,"表示回数"]
[null,null,"CTR"]
[null,null,"検索順位"]
[null,null,"キーワード"]
[null,null,"クリック数"]
[null,null,"表示回数"]
[null,null,"CTR"]
[null,null,"検索順位"]
[null,null,"キーワード"]
[null,null,"クリック数"]
[null,null,"表示回数"]
[null,null,"CTR"]
[null,null,"検索順位"]
[null,null,"キーワード"]
[null,null,"クリック数"]
[null,null,"表示回数"]
[null,null,"CTR"]
[null,null,"検索順位"]
[null,null,"キーワード"]
[null,null,"クリック数"]
[null,null,"表示回数"]
[null,null,"CTR"]
[null,null,"検索順位"]
[null,null,"キーワード"]
[null,null,"クリック数"]
[null,null,"表示回数"]
[null,null,"CTR"]
[null,null,"検索順位"]
[null,null,"キーワード"]
[null,null,"クリック数"]
[null,null,"表示回数"]
[null,null,"CTR"]
[null,null,"検索順位"]
[null,null,"キーワード"]
[null,null,"クリック数"]
[null,null,"表示回数"]
[null,null,"CTR"]
[null,null,"検索順位"]
[null,null,"キーワード"]
[null,null,"クリック数"]
[null,null,"表示回数"]
[null,null,"CTR"]
[null,null,"検索順位"]
[null,null,"キーワード"]
[null,null,"クリック数"]
[null,null,"表示回数"]
[null,null,"CTR"]
[null,null,"検索順位"]
[null,null,"キーワード"]
[null,null,"クリック数"]
[null,null,"表示回数"]
[null,null,"CTR"]
[null,null,"検索順位"]
[null,null,"キーワード"]
[null,null,"クリック数"]
[null,null,"表示回数"]
[null,null,"CTR"]
[null,null,"検索順位"]
[null,null,"キーワード"]
[null,null,"クリック数"]
[null,null,"表示回数"]
[null,null,"CTR"]
[null,null,"検索順位"]
[null,null,"キーワード"]
[null,null,"クリック数"]
[null,null,"表示回数"]
[null,null,"CTR"]
[null,null,"検索順位"]
[null,null,"キーワード"]
[null,null,"クリック数"]
[null,null,"表示回数"]
[null,null,"CTR"]
[null,null,"検索順位"]
[null,null,"キーワード"]
[null,null,"クリック数"]
[null,null,"表示回数"]
[null,null,"CTR"]
[null,null,"検索順位"]
[null,null,"キーワード"]
[null,null,"クリック数"]
[null,null,"表示回数"]
[null,null,"CTR"]
[null,null,"検索順位"]
[null,null,"キーワード"]
[null,null,"クリック数"]
[null,null,"表示回数"]
[null,null,"CTR"]
[null,null,"検索順位"]
[null,null,"キーワード"]
[null,null,"クリック数"]
[null,null,"表示回数"]
[null,null,"CTR"]
[null,null,"検索順位"]
[null,null,"キーワード"]
[null,null,"クリック数"]
[null,null,"表示回数"]
[null,null,"CTR"]
[null,null,"検索順位"]
[null,null,"キーワード"]
[null,null,"クリック数"]
[null,null,"表示回数"]
[null,null,"CTR"]
[null,null,"検索順位"]
[null,null,"キーワード"]
[null,null,"クリック数"]
[null,null,"表示回数"]
[null,null,"CTR"]
[null,null,"検索順位"]
[null,null,"キーワード"]
[null,null,"クリック数"]
[null,null,"表示回数"]
[null,null,"CTR"]
[null,null,"検索順位"]
[null,null,"キーワード"]
[null,null,"クリック数"]
[null,null,"表示回数"]
[null,null,"CTR"]
[null,null,"検索順位"]
[null,null,"キーワード"]
[null,null,"クリック数"]
[null,null,"表示回数"]
[null,null,"CTR"]
[null,null,"検索順位"]
[null,null,"キーワード"]
[null,null,"クリック数"]
[null,null,"表示回数"]
[null,null,"CTR"]
[null,null,"検索順位"]
[null,null,"キーワード"]
[null,null,"クリック数"]
[null,null,"表示回数"]
[null,null,"CTR"]
[null,null,"検索順位"]
[null,null,"キーワード"]
[null,null,"クリック数"]
[null,null,"表示回数"]
[null,null,"CTR"]
[null,null,"検索順位"]
[null,null,"キーワード"]
[null,null,"クリック数"]
[null,null,"表示回数"]
[null,null,"CTR"]
[null,null,"検索順位"]
[null,null,"キーワード"]
[null,null,"クリック数"]
[null,null,"表示回数"]
[null,null,"CTR"]
[null,null,"検索順位"]
[null,null,"キーワード"]
[null,null,"クリック数"]
[null,null,"表示回数"]
[null,null,"CTR"]
[null,null,"検索順位"]
[null,null,"キーワード"]
[null,null,"クリック数"]
[null,null,"表示回数"]
[null,null,"CTR"]
[null,null,"検索順位"]
[null,null,"キーワード"]
[null,null,"クリック数"]
[null,null,"表示回数"]
[null,null,"CTR"]
[null,null,"検索順位"]
[null,null,"キーワード"]
[null,null,"クリック数"]
[null,null,"表示回数"]
[null,null,"CTR"]
[null,null,"検索順位"]
[null,null,"キーワード"]
[null,null,"クリック数"]
[null,null,"表示回数"]
[null,null,"CTR"]
[null,null,"検索順位"]
[null,null,"キーワード"]
[null,null,"クリック数"]
[null,null,"表示回数"]
[null,null,"CTR"]
[null,null,"検索順位"]
[null,null,"キーワード"]
[null,null,"クリック数"]
[null,null,"表示回数"]
[null,null,"CTR"]
[null,null,"検索順位"]
[null,null,"キーワード"]
[null,null,"クリック数"]
[null,null,"表示回数"]
[null,null,"CTR"]
[null,null,"検索順位"]
[null,null,"キーワード"]
[null,null,"クリック数"]
[null,null,"表示回数"]
[null,null,"CTR"]
[null,null,"検索順位"]
[null,null,"キーワード"]
[null,null,"クリック数"]
[null,null,"表示回数"]
[null,null,"CTR"]
[null,null,"検索順位"]
[null,null,"キーワード"]
[null,null,"クリック数"]
[null,null,"表示回数"]
[null,null,"CTR"]
[null,null,"検索順位"]
[null,null,"キーワード"]
[null,null,"クリック数"]
[null,null,"表示回数"]
[null,null,"CTR"]
[null,null,"検索順位"]
[null,null,"キーワード"]
[null,null,"クリック数"]
[null,null,"表示回数"]
[null,null,"CTR"]
[null,null,"検索順位"]
[null,null,"キーワード"]
[null,null,"クリック数"]
[null,null,"表示回数"]
[null,null,"CTR"]
[null,null,"検索順位"]
[null,null,"キーワード"]
[null,null,"クリック数"]
[null,null,"表示回数"]
[null,null,"CTR"]
[null,null,"検索順位"]
[null,null,"キーワード"]
[null,null,"クリック数"]
[null,null,"表示回数"]
[null,null,"CTR"]
[null,null,"検索順位"]
[null,null,"キーワード"]
[null,null,"クリック数"]
[null,null,"表示回数"]
[null,null,"CTR"]
[null,null,"検索順位"]
[null,null,"キーワード"]
[null,null,"クリック数"]
[null,null,"表示回数"]
[null,null,"CTR"]
[null,null,"検索順位"]
[null,null,"キーワード"]
[null,null,"クリック数"]
[null,null,"表示回数"]
[null,null,"CTR"]
[null,null,"検索順位"]
[null,null,"キーワード"]
[null,null,"クリック数"]
[null,null,"表示回数"]
[null,null,"CTR"]
[null,null,"検索順位"]
[null,null,"キーワード"]
[null,null,"クリック数"]
[null,null,"表示回数"]
[null,null,"CTR"]
[null,null,"検索順位"]
[null,null,"キーワード"]
[null,null,"クリック数"]
[null,null,"表示回数"]
[null,null,"CTR"]
[null,null,"検索順位"]
[null,null,"キーワード"]
[null,null,"クリック数"]
[null,null,"表示回数"]
[null,null,"CTR"]
[null,null,"検索順位"]
[null,null,"キーワード"]
[null,null,"クリック数"]
[null,null,"表示回数"]
[null,null,"CTR"]
[null,null,"検索順位"]
[null,null,"キーワード"]
[null,null,"クリック数"]
[null,null,"表示回数"]
[null,null,"CTR"]
[null,null,"検索順位"]
[null,null,"キーワード"]
[null,null,"クリック数"]
[null,null,"表示回数"]
[null,null,"CTR"]
[null,null,"検索順位"]
[null,null,"キーワード"]
[null,null,"クリック数"]
[null,null,"表示回数"]
[null,null,"CTR"]
[null,null,"検索順位"]
[null,null,"キーワード"]
[null,null,"クリック数"]
[null,null,"表示回数"]
[null,null,"CTR"]
[null,null,"検索順位"]
[null,null,"キーワード"]
[null,null,"クリック数"]
[null,null,"表示回数"]
[null,null,"CTR"]
[null,null,"検索順位"]
[null,null,"キーワード"]
[null,null,"クリック数"]
[null,null,"表示回数"]
[null,null,"CTR"]
[null,null,"検索順位"]
[null,null,"キーワード"]
[null,null,"クリック数"]
[null,null,"表示回数"]
[null,null,"CTR"]
[null,null,"検索順位"]
[null,null,"キーワード"]
[null,null,"クリック数"]
[null,null,"表示回数"]
[null,null,"CTR"]
[null,null,"検索順位"]
[null,null,"キーワード"]
[null,null,"クリック数"]
[null,null,"表示回数"]
[null,null,"CTR"]
[null,null,"検索順位"]
[null,null,"キーワード"]
[null,null,"クリック数"]
[null,null,"表示回数"]
[null,null,"CTR"]
[null,null,"検索順位"]
[null,null,"キーワード"]
[null,null,"クリック数"]
[null,null,"表示回数"]
[null,null,"CTR"]
[null,null,"検索順位"]
[null,null,"キーワード"]
[null,null,"クリック数"]
[null,null,"表示回数"]
[null,null,"CTR"]
[null,null,"検索順位"]
[null,null,"キーワード"]
[null,null,"クリック数"]
[null,null,"表示回数"]
[null,null,"CTR"]
[null,null,"検索順位"]
[null,null,"キーワード"]
[null,null,"クリック数"]
[null,null,"表示回数"]
[null,null,"CTR"]
[null,null,"検索順位"]
[null,null,"キーワード"]
[null,null,"クリック数"]
[null,null,"表示回数"]
[null,null,"CTR"]
[null,null,"検索順位"]
[null,null,"キーワード"]
[null,null,"クリック数"]
[null,null,"表示回数"]
[null,null,"CTR"]
[null,null,"検索順位"]
[null,null,"キーワード"]
[null,null,"クリック数"]
[null,null,"表示回数"]
[null,null,"CTR"]
[null,null,"検索順位"]
[null,null,"キーワード"]
[null,null,"クリック数"]
[null,null,"表示回数"]
[null,null,"CTR"]
[null,null,"検索順位"]
[null,null,"キーワード"]
[null,null,"クリック数"]
[null,null,"表示回数"]
[null,null,"CTR"]
[null,null,"検索順位"]
[null,null,"キーワード"]
[null,null,"クリック数"]
[null,null,"表示回数"]
[null,null,"CTR"]
[null,null,"検索順位"]
[null,null,"キーワード"]
[null,null,"クリック数"]
[null,null,"表示回数"]
[null,null,"CTR"]
[null,null,"検索順位"]
[null,null,"キーワード"]
[null,null,"クリック数"]
[null,null,"表示回数"]
[null,null,"CTR"]
[null,null,"検索順位"]
[null,null,"キーワード"]
[null,null,"クリック数"]
[null,null,"表示回数"]
[null,null,"CTR"]
[null,null,"検索順位"]
[null,null,"キーワード"]
[null,null,"クリック数"]
[null,null,"表示回数"]
[null,null,"CTR"]
[null,null,"検索順位"]
[null,null,"キーワード"]
[null,null,"クリック数"]
[null,null,"表示回数"]
[null,null,"CTR"]
[null,null,"検索順位"]
[null,null,"キーワード"]
[null,null,"クリック数"]
[null,null,"表示回数"]
[null,null,"CTR"]
[null,null,"検索順位"]
[null,null,"キーワード"]
[null,null,"クリック数"]
[null,null,"表示回数"]
[null,null,"CTR"]
[null,null,"検索順位"]
[null,null,"キーワード"]
[null,null,"クリック数"]
[null,null,"表示回数"]
[null,null,"CTR"]
[null,null,"検索順位"]
[null,null,"キーワード"]
[null,null,"クリック数"]
[null,null,"表示回数"]
[null,null,"CTR"]
[null,null,"検索順位"]
[null,null,"キーワード"]
[null,null,"クリック数"]
[null,null,"表示回数"]
[null,null,"CTR"]
[null,null,"検索順位"]
[null,null,"キーワード"]
[null,null,"クリック数"]
[null,null,"表示回数"]
[null,null,"CTR"]
[null,null,"検索順位"]
[null,null,"キーワード"]
[null,null,"クリック数"]
[null,null,"表示回数"]
[null,null,"CTR"]
[null,null,"検索順位"]
[null,null,"キーワード"]
[null,null,"クリック数"]
[null,null,"表示回数"]
[null,null,"CTR"]
[null,null,"検索順位"]
[null,null,"キーワード"]
[null,null,"クリック数"]
[null,null,"表示回数"]
[null,null,"CTR"]
[null,null,"検索順位"]
[null,null,"キーワード"]
[null,null,"クリック数"]
[null,null,"表示回数"]
[null,null,"CTR"]
[null,null,"検索順位"]
[null,null,"キーワード"]
[null,null,"クリック数"]
[null,null,"表示回数"]
[null,null,"CTR"]
[null,null,"検索順位"]
[null,null,"キーワード"]
[null,null,"クリック数"]
[null,null,"表示回数"]
[null,null,"CTR"]
[null,null,"検索順位"]
[null,null,"キーワード"]
[null,null,"クリック数"]
[null,null,"表示回数"]
[null,null,"CTR"]
[null,null,"検索順位"]
[null,null,"キーワード"]
[null,null,"クリック数"]
[null,null,"表示回数"]
[null,null,"CTR"]
[null,null,"検索順位"]
[null,null,"キーワード"]
[null,null,"クリック数"]
[null,null,"表示回数"]
[null,null,"CTR"]
[null,null,"検索順位"]
[null,null,"キーワード"]
[null,null,"クリック数"]
[null,null,"表示回数"]
[null,null,"CTR"]
[null,null,"検索順位"]
[null,null,"キーワード"]
[null,null,"クリック数"]
[null,null,"表示回数"]
[null,null,"CTR"]
[null,null,"検索順位"]
[null,null,"キーワード"]
[null,null,"クリック数"]
[null,null,"表示回数"]
[null,null,"CTR"]
[null,null,"検索順位"]
[null,null,"キーワード"]
[null,null,"クリック数"]
[null,null,"表示回数"]
[null,null,"CTR"]
[null,null,"検索順位"]
[null,null,"キーワード"]
[null,null,"クリック数"]
[null,null,"表示回数"]
[null,null,"CTR"]
[null,null,"検索順位"]
[null,null,"キーワード"]
[null,null,"クリック数"]
[null,null,"表示回数"]
[null,null,"CTR"]
[null,null,"検索順位"]
[null,null,"キーワード"]
[null,null,"クリック数"]
[null,null,"表示回数"]
[null,null,"CTR"]
[null,null,"検索順位"]
[null,null,"キーワード"]
[null,null,"クリック数"]
[null,null,"表示回数"]
[null,null,"CTR"]
[null,null,"検索順位"]
[null,null,"キーワード"]
[null,null,"クリック数"]
[null,null,"表示回数"]
[null,null,"CTR"]
[null,null,"検索順位"]
[null,null,"キーワード"]
[null,null,"クリック数"]
[null,null,"表示回数"]
[null,null,"CTR"]
[null,null,"検索順位"]
[null,null,"キーワード"]
[null,null,"クリック数"]
[null,null,"表示回数"]
[null,null,"CTR"]
[null,null,"検索順位"]
[null,null,"キーワード"]
[null,null,"クリック数"]
[null,null,"表示回数"]
[null,null,"CTR"]
[null,null,"検索順位"]
[null,null,"キーワード"]
[null,null,"クリック数"]
[null,null,"表示回数"]
[null,null,"CTR"]
[null,null,"検索順位"]
[null,null,"キーワード"]
[null,null,"クリック数"]
[null,null,"表示回数"]
[null,null,"CTR"]
[null,null,"検索順位"]
[null,null,"キーワード"]
[null,null,"クリック数"]
[null,null,"表示回数"]
[null,null,"CTR"]
[null,null,"検索順位"]
[null,null,"キーワード"]
[null,null,"クリック数"]
[null,null,"表示回数"]
[null,null,"CTR"]
[null,null,"検索順位"]
[null,null,"キーワード"]
[null,null,"クリック数"]
[null,null,"表示回数"]
[null,null,"CTR"]
[null,null,"検索順位"]

{"sheet":"②ANALYTICSマニュアル","index":2,"n_rows":112,"n_cols":2,"rows_kept":112,"cut":false,"hidden":false,"merged":[]}
[]
[null,"①アナリティクスを立ち上げます。"]
[null,"https://analytics.google.com/analytics/web/?hl=ja#/"]
[]
[null,"②「行動」→「サイトコンテンツ」→「ランディングページ」を選択"]
[]
[]
[]
[]
[]
[]
[]
[]
[]
[]
[]
[]
[]
[]
[]
[]
[]
[]
[]
[]
[]
[]
[]
[]
[]
[]
[]
[]
[]
[]
[]
[]
[]
[]
[]
[]
[]
[]
[]
[]
[]
[]
[]
[null,"③期間を決めて、表示数を「5000」に設定"]
[]
[]
[]
[]
[]
[]
[]
[]
[]
[]
[]
[]
[]
[]
[]
[]
[]
[]
[]
[]
[]
[]
[]
[]
[]
[]
[]
[]
[]
[]
[]
[]
[]
[]
[]
[]
[]
[]
[]
[]
[]
[]
[]
[]
[]
[]
[]
[]
[]
[]
[]
[null,"④ページ上部のエクスポートより、EXCELファイルでダウンロード"]
[]
[]
[]
[]
[]
[]
[]
[]
[]
[]
[null,"⑤名前を付けて保存で任意の場所に保存"]